Workbook

Sheet 1. Information Sheet
U1: a | AA1: =IF(OR(F16="", F16="(if applicable)"), F14, F14 & " - " & F16) -> Cambridge and North Dumfries Hydro Inc.
M12: Version | N12: 1.1
E14: Utility Name | F14: Cambridge and North Dumfries Hydro Inc.
E16: Service Territory
E18: Assigned EB Number | F18: EB-2014-0060
E20: Name of Contact and Title | F20: Grant Brooker, Manager, Regulatory Affairs
E22: Phone Number | F22: 519.621.8405 ext 2340
E24: Email Address | F24: gbrooker@camhydro.com
E26: We are applying for rates effective | F26: 2015-05-01
E28: Rate-Setting Method | F28: Price Cap IR
A30: Please indicate in which Rate Year the Group 1 accounts were last cleared1 | F30: 2014
A32: Please indicate the last Cost of Service Re-Basing Year | F32: 2014
B35: Notes
C37: Pale green cells represent input cells.
C39: Pale blue cells represent drop-down lists. The applicant should select the appropriate item from the drop-down list.
C41: White cells contain fixed values, automatically generated values or formulae.
A44: Note: 1. Rate year of application

Sheet 2. Related Links
A13: ● | B13: Ontario Energy Board's 2015 Electricity Distribution Rates Webpage
A15: ● | B15: An updated version of Chapter 3 of the Filing Requirements for Electricity Distribution Rate Applications for 2015 rates.

Sheet 3. Rate Class Selection
A12: Select the appropriate rate classes as they appear on your most recent Board-Approved Tariff of Rates and Charges, including the MicroFit Class.
A14: How many classes are on your most recent Board-Approved Tariff of Rates and Charges? | J14: 10
A16: Select Your Rate Classes from the Blue Cells below. Please ensure that a rate class is assigned to each shaded cell.
B18: Rate Class Classification | Q18: # of duplicates
A19: 1 | B19: RESIDENTIAL | P19: =COUNTIF($B$19:$J$40, B19) -> 1 | Q19: =COUNTIF(P19:P40, 2)/2 -> 0
A20: 2 | B20: GENERAL SERVICE LESS THAN 50 KW | P20: =COUNTIF($B$19:$J$40, B20) -> 1
A21: 3 | B21: GENERAL SERVICE 50 TO 999 KW | P21: 1
A22: 4 | B22: GENERAL SERVICE 1,000 TO 4,999 KW | P22: 1
A23: 5 | B23: GENERAL SERVICE GREATER THAN 50 kW - WMP | P23: 1
A24: 6 | B24: LARGE USE | P24: 1
A25: 7 | B25: UNMETERED SCATTERED LOAD | P25: 1
A26: 8 | B26: STREET LIGHTING | P26: 1
A27: 9 | B27: EMBEDDED DISTRIBUTOR | P27: 1
A28: 10 | B28: microFIT | P28: 1
P29: 0
P30: 0
P31: 0
P32: 0
P33: 0

Sheet 4. Current Tariff Schedule
Z1: 3 | AA1: January | AB1: ≥
AA2: February
AA3: March
AA4: April
AA5: May
AA6: June
AA7: July
AA8: August
AA9: September
AA10: October
AA11: November
B12: For each class, Applicants are required to copy and paste the class descriptions (located directly under the class name) and the description of the applicability of those rates (description is found under the class name and directly under the word "APPLICATION"). By using the drop-down lists located under the column labeled "Rate Description", please select the descriptions of the rates and charges that BEST MATCHES the descriptions on your most recent Board-Approved Tariff of Rates and Charges. If the description is not found in the drop-down list, please enter the description in the green cells under the correct class exactly as it appears on the tariff. Please do not enter more than one "Service Charge" for each class for which a base monthly fixed charge applies. | AA12: December
B21: =IF(ISBLANK('1. Information Sheet'!F14), "Please Choose Distributor Name on Sheet 1", '1. Information Sheet'!F14) -> Cambridge and North Dumfries Hydro Inc.
B22: TARIFF OF RATES AND CHARGES
A24: RESIDENTIAL | B24: RESIDENTIAL Service Classification
A25: RESIDENTIAL
A26: RESIDENTIAL | B26: Residential refers to the supply of electrical energy to detached, semi-detached and row-housing units (freehold or condominium). This classification typically refers to an account taking electricity at 750 volts or less where electricity is used exclusively in a separate metered living accommodation. Customers shall be residing in single-dwelling units that consist of a detached house or one unit of a semi-detached, duplex, triplex, or quadruplex house, with a residential zoning. Separate metered dwellings within a town house complex, condominium, or apartment building also qualify as residential customers. Further servicing details are available in the distributor's Conditions of Service.
A27: RESIDENTIAL
A28: RESIDENTIAL
A29: RESIDENTIAL
A30: RESIDENTIAL
A31: RESIDENTIAL
A32: RESIDENTIAL | B32: APPLICATION
A33: RESIDENTIAL
A34: RESIDENTIAL | B34: The application of these rates and charges shall be in accordance with the Licence of the Distributor and any Code or Order of the Board, and amendments thereto as approved by the Board, which may be applicable to the administration of this schedule.
A35: RESIDENTIAL
A36: RESIDENTIAL
A37: RESIDENTIAL | B37: No rates and charges for the distribution of electricity and charges to meet the costs of any work or service done or furnished for the purpose of the distributor of electricity shall be made except as permitted by this schedule, unless required by the Distributor's Licence or a Code or Order of the Board, and amendments thereto as approved by the Board, or as specified herein.
A38: RESIDENTIAL
A39: RESIDENTIAL
A40: RESIDENTIAL
A41: RESIDENTIAL | B41: Unless specifically noted, this schedule does not contain any charges for the electricity commodity, be it under the Regulated Price Plan, a contract with a retailer or the wholesale market price, as applicable. In addition, the charges in the MONTHLY RATES AND CHARGES - Regulatory Component of this schedule do not apply to a customer that is an embedded wholesale market participant.
A42: RESIDENTIAL
A43: RESIDENTIAL
A44: RESIDENTIAL | B44: It should be noted that this schedule does not list any charges or assessments that are required by law to be charged by a distributor and that are not subject to Board approval, such as the Debt Retirement Charge, the Global Adjustment, the Ontario Clean Energy Benefit and the HST.
A45: RESIDENTIAL
A46: RESIDENTIAL
A47: RESIDENTIAL
A48: RESIDENTIAL | B48: MONTHLY RATES AND CHARGES - Delivery Component (If applicable, Effective Date MUST be included in rate description)
A49: RESIDENTIAL | B49: Service Charge | H49: $ | I49: 11 | K49: 1_C_MSC
A50: RESIDENTIAL | B50: Rate Rider for Recovery of Stranded Meter Assets – effective until April 30, 2015 | H50: $ | I50: 4.33 | K50: 1_C_MSC_Rate_Rider_1 | L50: 2015-04-30
A51: RESIDENTIAL
A52: RESIDENTIAL | B52: Rate Rider for Smart Metering Entity Charge - effective until October 31, 2018 | H52: $ | I52: 0.79 | K52: 1_C_SMEC | L52: 2018-10-31
A53: RESIDENTIAL | B53: Distribution Volumetric Rate | H53: $/kWh | I53: 0.0178 | K53: 1_C_VC_1
A54: RESIDENTIAL | B54: Low Voltage Service Rate | H54: $/kWh | I54: 0.0001 | K54: 1_C_LVrate
A55: RESIDENTIAL
A56: RESIDENTIAL
A57: RESIDENTIAL
A58: RESIDENTIAL
A59: RESIDENTIAL | B59: Retail Transmission Rate - Network Service Rate | H59: $/kWh | I59: 0.0067 | K59: 1_C_RTSR_Network
A60: RESIDENTIAL | B60: Retail Transmission Rate - Line and Transformation Connection Service Rate | H60: $/kWh | I60: 0.0042 | K60: 1_C_RTSR_Connection
A61: RESIDENTIAL
A62: RESIDENTIAL
A63: RESIDENTIAL
A64: RESIDENTIAL
A65: RESIDENTIAL
A66: RESIDENTIAL
A67: RESIDENTIAL
A68: RESIDENTIAL
A69: RESIDENTIAL
A70: RESIDENTIAL
A71: RESIDENTIAL
A72: RESIDENTIAL
A73: RESIDENTIAL | B73: Rate Rider for Disposition of Accounts 1575 & 1576 - effective until April 30, 2015 | H73: $/kWh | I73: -0.004 | K73: 1_C_VC_Rate_Rider_kWh_1 | L73: 2015-04-30
A74: RESIDENTIAL | B74: Rate Rider for Recovery of Forgone Revenue - effective until October 31, 2014 | H74: $ | I74: -1.31 | K74: 1_C_MSC_Rate_Rider_3 | L74: 2014-10-31
A75: RESIDENTIAL | B75: Rate Rider for Recovery of Forgone Revenue - effective until October 31, 2014 | H75: $/kWh | I75: 0.0016 | K75: 1_C_VC_Rate_Rider_kWh_2 | L75: 2014-10-31
A76: RESIDENTIAL
A77: RESIDENTIAL | B77: Rate Rider for Disposition of Global Adjustment Sub-Account (2014) - effective until April 30, 2015 Applicable only for Non-RPP Customers | H77: $/kWh | I77: -0.0048 | K77: 1_C_VC_GA_Rate_Rider_kWh_1 | L77: 2015-04-30
A78: RESIDENTIAL | B78: Rate Rider for Disposition of Deferral/Variance Accounts (2014) - effective until April 30, 2015 | H78: $/kWh | I78: -0.002 | K78: 1_C_VC_DEFVAR_kWh_1 | L78: 2015-04-30
A79: RESIDENTIAL | B79: MONTHLY RATES AND CHARGES - Regulatory Component
A80: RESIDENTIAL
A81: RESIDENTIAL | B81: Wholesale Market Service Rate | H81: $/kWh | I81: 0.0044 | K81: 1_C_WMSR
A82: RESIDENTIAL | B82: Rural or Remote Electricity Rate Protection Charge (RRRP) | H82: $/kWh | I82: 0.0013 | K82: 1_C_RRPC
A83: RESIDENTIAL | B83: Standard Supply Service - Administrative Charge (if applicable) | H83: $ | I83: 0.25 | K83: 1_C_SSS
A84: RESIDENTIAL
A87: GENERAL SERVICE LESS THAN 50 KW | B87: GENERAL SERVICE LESS THAN 50 KW Service Classification
A88: GENERAL SERVICE LESS THAN 50 KW
A89: GENERAL SERVICE LESS THAN 50 KW | B89: General Service refers to the supply of electrical energy to business customers, to bulk-metered residential buildings and to combined residential and business or residential and agricultural buildings. Apartment buildings that are bulk metered will be billed at the appropriate General Service rate. This classification refers to a non-residential account taking electricity at 750 volts or less whose average monthly peak demand is less than, or is forecast to be less than, 50 kW. Further servicing details are available in the distributor's Conditions of Service.
A90: GENERAL SERVICE LESS THAN 50 KW
A91: GENERAL SERVICE LESS THAN 50 KW
A92: GENERAL SERVICE LESS THAN 50 KW
A93: GENERAL SERVICE LESS THAN 50 KW
A94: GENERAL SERVICE LESS THAN 50 KW
A95: GENERAL SERVICE LESS THAN 50 KW | B95: APPLICATION
A96: GENERAL SERVICE LESS THAN 50 KW
A97: GENERAL SERVICE LESS THAN 50 KW | B97: The application of these rates and charges shall be in accordance with the Licence of the Distributor and any Code or Order of the Board, and amendments thereto as approved by the Board, which may be applicable to the administration of this schedule.
A98: GENERAL SERVICE LESS THAN 50 KW
A99: GENERAL SERVICE LESS THAN 50 KW
A100: GENERAL SERVICE LESS THAN 50 KW | B100: No rates and charges for the distribution of electricity and charges to meet the costs of any work or service done or furnished for the purpose of the distributor of electricity shall be made except as permitted by this schedule, unless required by the Distributor's Licence or a Code or Order of the Board, and amendments thereto as approved by the Board, or as specified herein.
A101: GENERAL SERVICE LESS THAN 50 KW
A102: GENERAL SERVICE LESS THAN 50 KW
A103: GENERAL SERVICE LESS THAN 50 KW
A104: GENERAL SERVICE LESS THAN 50 KW | B104: Unless specifically noted, this schedule does not contain any charges for the elcetricity commodity, be it under the Regulated Price Plan, a contract with a retailer or the wholesale market price, as applicable. In addition, the charges in the MONTHLY RATES AND CHARGES - Regulatory Component of this schedule do not apply to a customer that is an embedded wholesale market participant.
A105: GENERAL SERVICE LESS THAN 50 KW
A106: GENERAL SERVICE LESS THAN 50 KW
A107: GENERAL SERVICE LESS THAN 50 KW | B107: It should be noted that this schedule does not list any charges or assessments that are required by law to be charged by a distributor and that are not subject to Board approval, such as the Debt Retirement Charge, the Global Adjustment, the Ontario Clean Energy Benefit and the HST.
A108: GENERAL SERVICE LESS THAN 50 KW
A109: GENERAL SERVICE LESS THAN 50 KW
A110: GENERAL SERVICE LESS THAN 50 KW
A111: GENERAL SERVICE LESS THAN 50 KW | B111: MONTHLY RATES AND CHARGES - Delivery Component (If applicable, Effective Date MUST be included in rate description)
A112: GENERAL SERVICE LESS THAN 50 KW | B112: Service Charge | H112: $ | I112: 13 | K112: 2_C_MSC
A113: GENERAL SERVICE LESS THAN 50 KW | B113: Rate Rider for Recovery of Stranded Meter Assets – effective until April 30, 2015 | H113: $ | I113: 13.36 | K113: 2_C_MSC_Rate_Rider_1 | L113: 2015-04-30
A114: GENERAL SERVICE LESS THAN 50 KW
A115: GENERAL SERVICE LESS THAN 50 KW | B115: Rate Rider for Smart Metering Entity Charge - effective until October 31, 2018 | H115: $ | I115: 0.79 | K115: 2_C_SMEC | L115: 2018-10-31
A116: GENERAL SERVICE LESS THAN 50 KW | B116: Distribution Volumetric Rate | H116: $/kWh | I116: 0.0139 | K116: 2_C_VC_1
A117: GENERAL SERVICE LESS THAN 50 KW | B117: Low Voltage Service Rate | H117: $/kWh | I117: 0.0001 | K117: 2_C_LVrate
A118: GENERAL SERVICE LESS THAN 50 KW | H118: $
A119: GENERAL SERVICE LESS THAN 50 KW
A120: GENERAL SERVICE LESS THAN 50 KW
A121: GENERAL SERVICE LESS THAN 50 KW
A122: GENERAL SERVICE LESS THAN 50 KW | B122: Retail Transmission Rate - Network Service Rate | H122: $/kWh | I122: 0.0058 | K122: 2_C_RTSR_Network
A123: GENERAL SERVICE LESS THAN 50 KW | B123: Retail Transmission Rate - Line and Transformation Connection Service Rate | H123: $/kWh | I123: 0.0039 | K123: 2_C_RTSR_Connection
A124: GENERAL SERVICE LESS THAN 50 KW
A125: GENERAL SERVICE LESS THAN 50 KW
A126: GENERAL SERVICE LESS THAN 50 KW
A127: GENERAL SERVICE LESS THAN 50 KW
A128: GENERAL SERVICE LESS THAN 50 KW
A129: GENERAL SERVICE LESS THAN 50 KW
A130: GENERAL SERVICE LESS THAN 50 KW
A131: GENERAL SERVICE LESS THAN 50 KW
A132: GENERAL SERVICE LESS THAN 50 KW
A133: GENERAL SERVICE LESS THAN 50 KW
A134: GENERAL SERVICE LESS THAN 50 KW
A135: GENERAL SERVICE LESS THAN 50 KW
A136: GENERAL SERVICE LESS THAN 50 KW | B136: Rate Rider for Disposition of Accounts 1575 & 1576 -effective until April 30, 2015 | H136: $/kWh | I136: -0.004 | K136: 2_C_VC_Rate_Rider_kWh_1 | L136: 2015-04-30
A137: GENERAL SERVICE LESS THAN 50 KW | B137: Rate Rider for Recovery of Forgone Revenue - effective until October 31, 2014 | H137: $ | I137: -5.12 | K137: 2_C_MSC_Rate_Rider_3 | L137: 2014-10-31
A138: GENERAL SERVICE LESS THAN 50 KW | B138: Rate Rider for Recovery of Forgone Revenue - effective until October 31, 2014 | H138: $/kWh | I138: 0.0013 | K138: 2_C_VC_Rate_Rider_kWh_2 | L138: 2014-10-31
A139: GENERAL SERVICE LESS THAN 50 KW | B139: Rate Rider for Disposition of Global Adjustment Sub-Account (2014) - effective until April 30, 2015 Applicable only for Non-RPP Customers | H139: $/kWh | I139: -0.0048 | K139: 2_C_VC_GA_Rate_Rider_kWh_1 | L139: 2015-04-30
A140: GENERAL SERVICE LESS THAN 50 KW | B140: Rate Rider for Disposition of Deferral/Variance Accounts (2014) - effective until April 30, 2015 | H140: $/kWh | I140: -0.0019 | K140: 2_C_VC_DEFVAR_kWh_1 | L140: 2015-04-30
A141: GENERAL SERVICE LESS THAN 50 KW
A142: GENERAL SERVICE LESS THAN 50 KW | B142: MONTHLY RATES AND CHARGES - Regulatory Component
A143: GENERAL SERVICE LESS THAN 50 KW
A144: GENERAL SERVICE LESS THAN 50 KW | B144: Wholesale Market Service Rate | H144: $/kWh | I144: 0.0044 | K144: 2_C_WMSR
A145: GENERAL SERVICE LESS THAN 50 KW | B145: Rural or Remote Electricity Rate Protection Charge (RRRP) | H145: $/kWh | I145: 0.0013 | K145: 2_C_RRPC
A146: GENERAL SERVICE LESS THAN 50 KW | B146: Standard Supply Service - Administrative Charge (if applicable) | H146: $ | I146: 0.25 | K146: 2_C_SSS
A147: GENERAL SERVICE LESS THAN 50 KW
A150: GENERAL SERVICE 50 TO 999 KW | B150: GENERAL SERVICE 50 TO 999 KW Service Classification
A151: GENERAL SERVICE 50 TO 999 KW
A152: GENERAL SERVICE 50 TO 999 KW | B152: General Service refers to the supply of electrical energy to business customers, to bulk-metered residential buildings and to combined residential and business or residential and agricultural buildings. Apartment buildings that are bulk metered will be billed at the appropriate General Service rate. This classification refers to a non-residential account whose average monthly peak demand is equal to or greater than, or is forecast to be equal to or greater than, 50 kW but less than 1,000 kW. Further servicing details are available in the distributor's Conditions of Service.
A153: GENERAL SERVICE 50 TO 999 KW
A154: GENERAL SERVICE 50 TO 999 KW
A155: GENERAL SERVICE 50 TO 999 KW
A156: GENERAL SERVICE 50 TO 999 KW
A157: GENERAL SERVICE 50 TO 999 KW
A158: GENERAL SERVICE 50 TO 999 KW | B158: APPLICATION
A159: GENERAL SERVICE 50 TO 999 KW
A160: GENERAL SERVICE 50 TO 999 KW | B160: The application of these rates and charges shall be in accordance with the Licence of the Distributor and any Code or Order of the Board, and amendments thereto as approved by the Board, which may be applicable to the administration of this schedule.
A161: GENERAL SERVICE 50 TO 999 KW
A162: GENERAL SERVICE 50 TO 999 KW
A163: GENERAL SERVICE 50 TO 999 KW | B163: No rates and charges for the distribution of electricity and charges to meet the costs of any work or service done or furnished for the purpose of the distributor of electricity shall be made except as permitted by this schedule, unless required by the Distributor's Licence or a Code or Order of the Board, and amendments thereto as approved by the Board, or as specified herein.
A164: GENERAL SERVICE 50 TO 999 KW
A165: GENERAL SERVICE 50 TO 999 KW
A166: GENERAL SERVICE 50 TO 999 KW
A167: GENERAL SERVICE 50 TO 999 KW | B167: Unless specifically noted, this schedule does not contain any charges for the electricity commodity, be it under the Regulated Price Plan, a contract with a retailer or the wholesale market price, as applicable. In addition, the charges in the MONTHLY RATES AND CHARGES - Regulatory Component of this schedule do not apply to a customer that is an embedded wholesale market participant.
A168: GENERAL SERVICE 50 TO 999 KW
A169: GENERAL SERVICE 50 TO 999 KW
A170: GENERAL SERVICE 50 TO 999 KW | B170: It should be noted that this schedule does not list any charges or assessments that are required by law to be charged by a distributor and that are not subject to Board approval, such as the Debt Retirement Charge, the Global Adjustment, the Ontario Clean Energy Benefit and the HST.
A171: GENERAL SERVICE 50 TO 999 KW
A172: GENERAL SERVICE 50 TO 999 KW
A173: GENERAL SERVICE 50 TO 999 KW
A174: GENERAL SERVICE 50 TO 999 KW | B174: MONTHLY RATES AND CHARGES - Delivery Component (If applicable, Effective Date MUST be included in rate description)
A175: GENERAL SERVICE 50 TO 999 KW | B175: Service Charge | H175: $ | I175: 109.35 | K175: 3_C_MSC
A176: GENERAL SERVICE 50 TO 999 KW | B176: Distribution Volumetric Rate | H176: $/kW | I176: 3.9801 | K176: 3_C_VC_1
A177: GENERAL SERVICE 50 TO 999 KW | B177: Low Voltage Service Rate | H177: $/kW | I177: 0.0537 | K177: 3_C_LVrate
A178: GENERAL SERVICE 50 TO 999 KW
A179: GENERAL SERVICE 50 TO 999 KW
A180: GENERAL SERVICE 50 TO 999 KW
A181: GENERAL SERVICE 50 TO 999 KW
A182: GENERAL SERVICE 50 TO 999 KW | B182: Retail Transmission Rate - Network Service Rate | H182: $/kW | I182: 3.7803 | K182: 3_C_RTSR_Network
A183: GENERAL SERVICE 50 TO 999 KW | B183: Retail Transmission Rate - Line and Transformation Connection Service Rate | H183: $/kW | I183: 2.394 | K183: 3_C_RTSR_Connection
A184: GENERAL SERVICE 50 TO 999 KW
A185: GENERAL SERVICE 50 TO 999 KW
A186: GENERAL SERVICE 50 TO 999 KW
A187: GENERAL SERVICE 50 TO 999 KW
A188: GENERAL SERVICE 50 TO 999 KW
A189: GENERAL SERVICE 50 TO 999 KW
A190: GENERAL SERVICE 50 TO 999 KW
A191: GENERAL SERVICE 50 TO 999 KW
A192: GENERAL SERVICE 50 TO 999 KW
A193: GENERAL SERVICE 50 TO 999 KW
A194: GENERAL SERVICE 50 TO 999 KW
A195: GENERAL SERVICE 50 TO 999 KW
A196: GENERAL SERVICE 50 TO 999 KW
A197: GENERAL SERVICE 50 TO 999 KW
A198: GENERAL SERVICE 50 TO 999 KW
A199: GENERAL SERVICE 50 TO 999 KW | B199: Rate Rider for Disposition of Accounts 1575 & 1576 - effective until April 30, 2015 | H199: $/kW | I199: -1.2179 | K199: 3_C_VC_Rate_Rider_kW_1 | L199: 2015-04-30
A200: GENERAL SERVICE 50 TO 999 KW | B200: Rate Rider for Disposition of Global Adjustment Sub-Account (2014) - effective until April 30, 2015 Applicable only for Non-RPP Customers | H200: $/kW | I200: -1.4848 | K200: 3_C_VC_GA_Rate_Rider_kW_1 | L200: 2015-04-30
A201: GENERAL SERVICE 50 TO 999 KW | B201: Rate Rider for Disposition of Deferral/Variance Accounts (2014) - effective until April 30, 2015 | H201: $/kW | I201: -0.5123 | K201: 3_C_VC_DEFVAR_kW_1 | L201: 2015-04-30
A202: GENERAL SERVICE 50 TO 999 KW | B202: Rate Rider for Recovery of Forgone Revenue - effective until October 31, 2014 | H202: $/kW | I202: 0.3154 | K202: 3_C_VC_Rate_Rider_kW_3 | L202: 2014-10-31
A203: GENERAL SERVICE 50 TO 999 KW
A204: GENERAL SERVICE 50 TO 999 KW
A205: GENERAL SERVICE 50 TO 999 KW | B205: MONTHLY RATES AND CHARGES - Regulatory Component
A206: GENERAL SERVICE 50 TO 999 KW
A207: GENERAL SERVICE 50 TO 999 KW | B207: Wholesale Market Service Rate | H207: $/kWh | I207: 0.0044 | K207: 3_C_WMSR
A208: GENERAL SERVICE 50 TO 999 KW | B208: Rural or Remote Electricity Rate Protection Charge (RRRP) | H208: $/kWh | I208: 0.0013 | K208: 3_C_RRPC
A209: GENERAL SERVICE 50 TO 999 KW | B209: Standard Supply Service - Administrative Charge (if applicable) | H209: $ | I209: 0.25 | K209: 3_C_SSS
A210: GENERAL SERVICE 50 TO 999 KW
A213: GENERAL SERVICE 1,000 TO 4,999 KW | B213: GENERAL SERVICE 1,000 TO 4,999 KW Service Classification
A214: GENERAL SERVICE 1,000 TO 4,999 KW
A215: GENERAL SERVICE 1,000 TO 4,999 KW | B215: General Service refers to the supply of electrical energy to business customers, to bulk-metered residential buildings and to combined residential and business or residential and agricultural buildings. Apartment buildings that are bulk metered will be billed at the appropriate General Service rate. This classification refers to a non-residential account whose average monthly peak demand is equal to or greater than, or is forecast to be equal to or greater than, 1,000 kW but less than 5,000 kW. Further servicing details are available in the distributor's Conditions of Service.
... 418 more rows

Sheet 4. Hidden (hidden)
M1: Current Rate Classes | N1: Changed to Rate Classes | O1: Values in A that are NOT in B | P1: Values in B that are Not in A | Q1: Count of A | R1: Count of B
M2: RESIDENTIAL | N2: RESIDENTIAL | Q2: 10 | R2: 10
M3: GENERAL SERVICE LESS THAN 50 KW | N3: GENERAL SERVICE LESS THAN 50 KW
M4: GENERAL SERVICE 50 TO 999 KW | N4: GENERAL SERVICE 50 TO 999 KW
M5: GENERAL SERVICE 1,000 TO 4,999 KW | N5: GENERAL SERVICE 1,000 TO 4,999 KW
M6: GENERAL SERVICE GREATER THAN 50 kW - WMP | N6: GENERAL SERVICE GREATER THAN 50 kW - WMP
M7: LARGE USE | N7: LARGE USE
M8: UNMETERED SCATTERED LOAD | N8: UNMETERED SCATTERED LOAD
M9: STREET LIGHTING | N9: STREET LIGHTING
M10: EMBEDDED DISTRIBUTOR | N10: EMBEDDED DISTRIBUTOR
M11: microFIT | N11: microFIT
A24: RESIDENTIAL | B24: RESIDENTIAL Service Classification
A25: RESIDENTIAL
A26: RESIDENTIAL | B26: Residential refers to the supply of electrical energy to detached, semi-detached and row-housing units (freehold or condominium). This classification typically refers to an account taking electricity at 750 volts or less where electricity is used exclusively in a separate metered living accommodation. Customers shall be residing in single-dwelling units that consist of a detached house or one unit of a semi-detached, duplex, triplex, or quadruplex house, with a residential zoning. Separate metered dwellings within a town house complex, condominium, or apartment building also qualify as residential customers. Further servicing details are available in the distributor's Conditions of Service.
A27: RESIDENTIAL
A28: RESIDENTIAL
A29: RESIDENTIAL
A30: RESIDENTIAL
A31: RESIDENTIAL
A32: RESIDENTIAL | B32: APPLICATION
A33: RESIDENTIAL
A34: RESIDENTIAL | B34: The application of these rates and charges shall be in accordance with the Licence of the Distributor and any Code or Order of the Board, and amendments thereto as approved by the Board, which may be applicable to the administration of this schedule.
A35: RESIDENTIAL
A36: RESIDENTIAL
A37: RESIDENTIAL | B37: No rates and charges for the distribution of electricity and charges to meet the costs of any work or service done or furnished for the purpose of the distributor of electricity shall be made except as permitted by this schedule, unless required by the Distributor's Licence or a Code or Order of the Board, and amendments thereto as approved by the Board, or as specified herein.
A38: RESIDENTIAL
A39: RESIDENTIAL
A40: RESIDENTIAL
A41: RESIDENTIAL | B41: Unless specifically noted, this schedule does not contain any charges for the electricity commodity, be it under the Regulated Price Plan, a contract with a retailer or the wholesale market price, as applicable. In addition, the charges in the MONTHLY RATES AND CHARGES - Regulatory Component of this schedule do not apply to a customer that is an embedded wholesale market participant.
A42: RESIDENTIAL
A43: RESIDENTIAL
A44: RESIDENTIAL | B44: It should be noted that this schedule does not list any charges or assessments that are required by law to be charged by a distributor and that are not subject to Board approval, such as the Debt Retirement Charge, the Global Adjustment, the Ontario Clean Energy Benefit and the HST.
A45: RESIDENTIAL
A46: RESIDENTIAL
A47: RESIDENTIAL
A48: RESIDENTIAL | B48: MONTHLY RATES AND CHARGES - Delivery Component (If applicable, Effective Date MUST be included in rate description)
A49: RESIDENTIAL | B49: Service Charge | H49: $ | I49: 11
A50: RESIDENTIAL | B50: Rate Rider for Recovery of Stranded Meter Assets – effective until April 30, 2015 | H50: $ | I50: 4.33
A51: RESIDENTIAL | B51: Rate Rider for Recovery of Forgone Revenue - effective until December 31, 2014 | H51: $ | I51: -1.31
A52: RESIDENTIAL | B52: Rate Rider for Smart Metering Entity Charge - effective until October 31, 2018 | H52: $ | I52: 0.79
A53: RESIDENTIAL | B53: Distribution Volumetric Rate | H53: $/kWh | I53: 0.0178
A54: RESIDENTIAL | B54: Low Voltage Service Rate | H54: $/kWh | I54: 0.0001
A55: RESIDENTIAL | B55: Rate Rider for Disposition of Global Adjustment Sub-Account (2013) - effective until April 30, 2015 Applicable only for Non-RPP Customers | H55: $/kWh | I55: -0.0048
A56: RESIDENTIAL | B56: Rate Rider for Disposition of Deferral/Variance Accounts (2013) - effective until April 30, 2015 | H56: $/kWh | I56: -0.002
A57: RESIDENTIAL
A58: RESIDENTIAL | B58: Rate Rider for Recovery of Forgone Revenue - effective until December 31, 2014 | H58: $/kWh | I58: 0.0016
A59: RESIDENTIAL | B59: Retail Transmission Rate - Network Service Rate | H59: $/kWh | I59: 0.0067
A60: RESIDENTIAL | B60: Retail Transmission Rate - Line and Transformation Connection Service Rate | H60: $/kWh | I60: 0.0042
A61: RESIDENTIAL
A62: RESIDENTIAL
A63: RESIDENTIAL
A64: RESIDENTIAL
A65: RESIDENTIAL
A66: RESIDENTIAL
A67: RESIDENTIAL
A68: RESIDENTIAL
A69: RESIDENTIAL
A70: RESIDENTIAL
A71: RESIDENTIAL
A72: RESIDENTIAL
A73: RESIDENTIAL | B73: Rate Rider for Disposition of Accounts 1575 & 1576 - effective until April 30, 2015 | H73: $/kWh | I73: -0.004
A74: RESIDENTIAL
A75: RESIDENTIAL
A76: RESIDENTIAL
A77: RESIDENTIAL
A78: RESIDENTIAL
A79: RESIDENTIAL | B79: MONTHLY RATES AND CHARGES - Regulatory Component
A80: RESIDENTIAL
A81: RESIDENTIAL | B81: Wholesale Market Service Rate | H81: $/kWh | I81: 0.0044
A82: RESIDENTIAL | B82: Rural or Remote Electricity Rate Protection Charge (RRRP) | H82: $/kWh | I82: 0.0013
A83: RESIDENTIAL | B83: Standard Supply Service - Administrative Charge (if applicable) | H83: $ | I83: 0.25
A84: RESIDENTIAL
A87: GENERAL SERVICE LESS THAN 50 KW | B87: GENERAL SERVICE LESS THAN 50 KW Service Classification
A88: GENERAL SERVICE LESS THAN 50 KW
A89: GENERAL SERVICE LESS THAN 50 KW | B89: General Service refers to the supply of electrical energy to business customers, to bulk-metered residential buildings and to combined residential and business or residential and agricultural buildings. Apartment buildings that are bulk metered will be billed at the appropriate General Service rate. This classification refers to a non-residential account taking electricity at 750 volts or less whose average monthly peak demand is less than, or is forecast to be less than, 50 kW. Further servicing details are available in the distributor's Conditions of Service.
A90: GENERAL SERVICE LESS THAN 50 KW
A91: GENERAL SERVICE LESS THAN 50 KW
A92: GENERAL SERVICE LESS THAN 50 KW
A93: GENERAL SERVICE LESS THAN 50 KW
A94: GENERAL SERVICE LESS THAN 50 KW
A95: GENERAL SERVICE LESS THAN 50 KW | B95: APPLICATION
A96: GENERAL SERVICE LESS THAN 50 KW
A97: GENERAL SERVICE LESS THAN 50 KW | B97: The application of these rates and charges shall be in accordance with the Licence of the Distributor and any Code or Order of the Board, and amendments thereto as approved by the Board, which may be applicable to the administration of this schedule.
A98: GENERAL SERVICE LESS THAN 50 KW
A99: GENERAL SERVICE LESS THAN 50 KW
A100: GENERAL SERVICE LESS THAN 50 KW | B100: No rates and charges for the distribution of electricity and charges to meet the costs of any work or service done or furnished for the purpose of the distributor of electricity shall be made except as permitted by this schedule, unless required by the Distributor's Licence or a Code or Order of the Board, and amendments thereto as approved by the Board, or as specified herein.
A101: GENERAL SERVICE LESS THAN 50 KW
A102: GENERAL SERVICE LESS THAN 50 KW
A103: GENERAL SERVICE LESS THAN 50 KW
A104: GENERAL SERVICE LESS THAN 50 KW | B104: Unless specifically noted, this schedule does not contain any charges for the elcetricity commodity, be it under the Regulated Price Plan, a contract with a retailer or the wholesale market price, as applicable. In addition, the charges in the MONTHLY RATES AND CHARGES - Regulatory Component of this schedule do not apply to a customer that is an embedded wholesale market participant.
A105: GENERAL SERVICE LESS THAN 50 KW
A106: GENERAL SERVICE LESS THAN 50 KW
A107: GENERAL SERVICE LESS THAN 50 KW | B107: It should be noted that this schedule does not list any charges or assessments that are required by law to be charged by a distributor and that are not subject to Board approval, such as the Debt Retirement Charge, the Global Adjustment, the Ontario Clean Energy Benefit and the HST.
A108: GENERAL SERVICE LESS THAN 50 KW
A109: GENERAL SERVICE LESS THAN 50 KW
A110: GENERAL SERVICE LESS THAN 50 KW
A111: GENERAL SERVICE LESS THAN 50 KW | B111: MONTHLY RATES AND CHARGES - Delivery Component (If applicable, Effective Date MUST be included in rate description)
A112: GENERAL SERVICE LESS THAN 50 KW | B112: Service Charge | H112: $ | I112: 13
A113: GENERAL SERVICE LESS THAN 50 KW | B113: Rate Rider for Recovery of Stranded Meter Assets – effective until April 30, 2015 | H113: $ | I113: 13.36
A114: GENERAL SERVICE LESS THAN 50 KW | B114: Rate Rider for Recovery of Forgone Revenue - effective until December 31, 2014 | H114: $ | I114: -5.12
A115: GENERAL SERVICE LESS THAN 50 KW | B115: Rate Rider for Smart Metering Entity Charge - effective until October 31, 2018 | H115: $ | I115: 0.79
A116: GENERAL SERVICE LESS THAN 50 KW | B116: Distribution Volumetric Rate | H116: $/kWh | I116: 0.0139
A117: GENERAL SERVICE LESS THAN 50 KW | B117: Low Voltage Service Rate | H117: $/kWh | I117: 0.0001
A118: GENERAL SERVICE LESS THAN 50 KW | B118: Rate Rider for Disposition of Global Adjustment Sub-Account (2013) - effective until April 30, 2015 Applicable only for Non-RPP Customers | H118: $/kWh | I118: -0.0048
A119: GENERAL SERVICE LESS THAN 50 KW | B119: Rate Rider for Disposition of Deferral/Variance Accounts (2013) - effective until April 30, 2015 | H119: $/kWh | I119: -0.0019
A120: GENERAL SERVICE LESS THAN 50 KW
A121: GENERAL SERVICE LESS THAN 50 KW | B121: Rate Rider for Recovery of Forgone Revenue - effective until December 31, 2014 | H121: $/kWh | I121: 0.0013
A122: GENERAL SERVICE LESS THAN 50 KW | B122: Retail Transmission Rate - Network Service Rate | H122: $/kWh | I122: 0.0058
A123: GENERAL SERVICE LESS THAN 50 KW | B123: Retail Transmission Rate - Line and Transformation Connection Service Rate | H123: $/kWh | I123: 0.0039
A124: GENERAL SERVICE LESS THAN 50 KW
A125: GENERAL SERVICE LESS THAN 50 KW
A126: GENERAL SERVICE LESS THAN 50 KW
A127: GENERAL SERVICE LESS THAN 50 KW
A128: GENERAL SERVICE LESS THAN 50 KW
A129: GENERAL SERVICE LESS THAN 50 KW
A130: GENERAL SERVICE LESS THAN 50 KW
A131: GENERAL SERVICE LESS THAN 50 KW
A132: GENERAL SERVICE LESS THAN 50 KW
A133: GENERAL SERVICE LESS THAN 50 KW
A134: GENERAL SERVICE LESS THAN 50 KW
A135: GENERAL SERVICE LESS THAN 50 KW
A136: GENERAL SERVICE LESS THAN 50 KW | B136: Rate Rider for Disposition of Accounts 1575 & 1576 -effective until April 30, 2015 | H136: $/kWh | I136: -0.004
A137: GENERAL SERVICE LESS THAN 50 KW
A138: GENERAL SERVICE LESS THAN 50 KW
A139: GENERAL SERVICE LESS THAN 50 KW
A140: GENERAL SERVICE LESS THAN 50 KW
A141: GENERAL SERVICE LESS THAN 50 KW
A142: GENERAL SERVICE LESS THAN 50 KW | B142: MONTHLY RATES AND CHARGES - Regulatory Component
A143: GENERAL SERVICE LESS THAN 50 KW
A144: GENERAL SERVICE LESS THAN 50 KW | B144: Wholesale Market Service Rate | H144: =H81 -> $/kWh | I144: 0.0044
A145: GENERAL SERVICE LESS THAN 50 KW | B145: Rural or Remote Electricity Rate Protection Charge (RRRP) | H145: $/kWh | I145: 0.0013
A146: GENERAL SERVICE LESS THAN 50 KW | B146: Standard Supply Service - Administrative Charge (if applicable) | H146: $ | I146: 0.25
A147: GENERAL SERVICE LESS THAN 50 KW
A150: GENERAL SERVICE 50 TO 999 KW | B150: GENERAL SERVICE 50 TO 999 KW Service Classification
A151: GENERAL SERVICE 50 TO 999 KW
A152: GENERAL SERVICE 50 TO 999 KW | B152: General Service refers to the supply of electrical energy to business customers, to bulk-metered residential buildings and to combined residential and business or residential and agricultural buildings. Apartment buildings that are bulk metered will be billed at the appropriate General Service rate. This classification refers to a non-residential account whose average monthly peak demand is equal to or greater than, or is forecast to be equal to or greater than, 50 kW but less than 1,000 kW. Further servicing details are available in the distributor's Conditions of Service.
A153: GENERAL SERVICE 50 TO 999 KW
A154: GENERAL SERVICE 50 TO 999 KW
A155: GENERAL SERVICE 50 TO 999 KW
A156: GENERAL SERVICE 50 TO 999 KW
A157: GENERAL SERVICE 50 TO 999 KW
A158: GENERAL SERVICE 50 TO 999 KW | B158: APPLICATION
A159: GENERAL SERVICE 50 TO 999 KW
A160: GENERAL SERVICE 50 TO 999 KW | B160: The application of these rates and charges shall be in accordance with the Licence of the Distributor and any Code or Order of the Board, and amendments thereto as approved by the Board, which may be applicable to the administration of this schedule.
A161: GENERAL SERVICE 50 TO 999 KW
A162: GENERAL SERVICE 50 TO 999 KW
A163: GENERAL SERVICE 50 TO 999 KW | B163: No rates and charges for the distribution of electricity and charges to meet the costs of any work or service done or furnished for the purpose of the distributor of electricity shall be made except as permitted by this schedule, unless required by the Distributor's Licence or a Code or Order of the Board, and amendments thereto as approved by the Board, or as specified herein.
A164: GENERAL SERVICE 50 TO 999 KW
A165: GENERAL SERVICE 50 TO 999 KW
A166: GENERAL SERVICE 50 TO 999 KW
A167: GENERAL SERVICE 50 TO 999 KW | B167: Unless specifically noted, this schedule does not contain any charges for the electricity commodity, be it under the Regulated Price Plan, a contract with a retailer or the wholesale market price, as applicable. In addition, the charges in the MONTHLY RATES AND CHARGES - Regulatory Component of this schedule do not apply to a customer that is an embedded wholesale market participant.
A168: GENERAL SERVICE 50 TO 999 KW
A169: GENERAL SERVICE 50 TO 999 KW
A170: GENERAL SERVICE 50 TO 999 KW | B170: It should be noted that this schedule does not list any charges or assessments that are required by law to be charged by a distributor and that are not subject to Board approval, such as the Debt Retirement Charge, the Global Adjustment, the Ontario Clean Energy Benefit and the HST.
A171: GENERAL SERVICE 50 TO 999 KW
A172: GENERAL SERVICE 50 TO 999 KW
A173: GENERAL SERVICE 50 TO 999 KW
A174: GENERAL SERVICE 50 TO 999 KW | B174: MONTHLY RATES AND CHARGES - Delivery Component (If applicable, Effective Date MUST be included in rate description)
A175: GENERAL SERVICE 50 TO 999 KW | B175: Service Charge | H175: $ | I175: 109.35
A176: GENERAL SERVICE 50 TO 999 KW | B176: Distribution Volumetric Rate | H176: $/kW | I176: 3.9801
A177: GENERAL SERVICE 50 TO 999 KW | B177: Low Voltage Service Rate | H177: $/kW | I177: 0.0537
A178: GENERAL SERVICE 50 TO 999 KW | B178: Rate Rider for Disposition of Global Adjustment Sub-Account (2013) - effective until April 30, 2015 Applicable only for Non-RPP Customers | H178: $/kW | I178: -1.4848
A179: GENERAL SERVICE 50 TO 999 KW | B179: Rate Rider for Disposition of Deferral/Variance Accounts (2013) - effective until April 30, 2015 | H179: $/kW | I179: -0.5123
A180: GENERAL SERVICE 50 TO 999 KW
A181: GENERAL SERVICE 50 TO 999 KW | B181: Rate Rider for Recovery of Forgone Revenue - effective until December 31, 2014 | H181: $/kW | I181: 0.3154
A182: GENERAL SERVICE 50 TO 999 KW | B182: Retail Transmission Rate - Network Service Rate | H182: $/kW | I182: 3.7803
A183: GENERAL SERVICE 50 TO 999 KW | B183: Retail Transmission Rate - Line and Transformation Connection Service Rate | H183: $/kW | I183: 2.394
A184: GENERAL SERVICE 50 TO 999 KW
A185: GENERAL SERVICE 50 TO 999 KW
A186: GENERAL SERVICE 50 TO 999 KW
A187: GENERAL SERVICE 50 TO 999 KW
A188: GENERAL SERVICE 50 TO 999 KW
A189: GENERAL SERVICE 50 TO 999 KW
A190: GENERAL SERVICE 50 TO 999 KW
A191: GENERAL SERVICE 50 TO 999 KW
A192: GENERAL SERVICE 50 TO 999 KW
A193: GENERAL SERVICE 50 TO 999 KW
A194: GENERAL SERVICE 50 TO 999 KW
A195: GENERAL SERVICE 50 TO 999 KW
A196: GENERAL SERVICE 50 TO 999 KW
A197: GENERAL SERVICE 50 TO 999 KW
A198: GENERAL SERVICE 50 TO 999 KW
A199: GENERAL SERVICE 50 TO 999 KW | B199: Rate Rider for Disposition of Accounts 1575 & 1576 - effective until April 30, 2015 | H199: $/kW | I199: -1.2179
A200: GENERAL SERVICE 50 TO 999 KW
A201: GENERAL SERVICE 50 TO 999 KW
A202: GENERAL SERVICE 50 TO 999 KW
A203: GENERAL SERVICE 50 TO 999 KW
A204: GENERAL SERVICE 50 TO 999 KW
A205: GENERAL SERVICE 50 TO 999 KW | B205: MONTHLY RATES AND CHARGES - Regulatory Component
A206: GENERAL SERVICE 50 TO 999 KW
A207: GENERAL SERVICE 50 TO 999 KW | B207: Wholesale Market Service Rate | H207: =H81 -> $/kWh | I207: 0.0044
A208: GENERAL SERVICE 50 TO 999 KW | B208: Rural or Remote Electricity Rate Protection Charge (RRRP) | H208: $/kWh | I208: 0.0013
A209: GENERAL SERVICE 50 TO 999 KW | B209: Standard Supply Service - Administrative Charge (if applicable) | H209: $ | I209: 0.25
A210: GENERAL SERVICE 50 TO 999 KW
A213: GENERAL SERVICE 1,000 TO 4,999 KW | B213: GENERAL SERVICE 1,000 TO 4,999 KW Service Classification
A214: GENERAL SERVICE 1,000 TO 4,999 KW
A215: GENERAL SERVICE 1,000 TO 4,999 KW | B215: General Service refers to the supply of electrical energy to business customers, to bulk-metered residential buildings and to combined residential and business or residential and agricultural buildings. Apartment buildings that are bulk metered will be billed at the appropriate General Service rate. This classification refers to a non-residential account whose average monthly peak demand is equal to or greater than, or is forecast to be equal to or greater than, 1,000 kW but less than 5,000 kW. Further servicing details are available in the distributor's Conditions of Service.
A216: GENERAL SERVICE 1,000 TO 4,999 KW
A217: GENERAL SERVICE 1,000 TO 4,999 KW
A218: GENERAL SERVICE 1,000 TO 4,999 KW
... 354 more rows

Sheet 5. 2014 Continuity Schedule
C15: Please complete the following continuity schedule for the following Deferral / Variance Accounts. Enter information into green cells only. If you have received approval to dispose of balances from prior years, the starting point for entries in the 2015 DVA schedule below will be the balance sheet date as per your G/L for which you received approval. For example, if in the 2014 EDR process (CoS or IRM) you received approval for the December 31, 2012 balances, the starting point for your entries below should be the 2011 year. This will allow for the correct starting point for the 2012 opening balance columns for both principal and interest. Please refer to the footnotes for further instructions.
E19: 2010 | O19: 2011 | Y19: 2012 | AL19: 2013 | AY19: 2014 | BC19: Projected Interest on Dec-31-13 Balances | BF19: 2.1.7 RRR
C20: Account Descriptions | D20: Account Number | E20: Opening Principal Amounts as of Jan-1-10 | F20: Transactions Debit / (Credit) during 2010 excluding interest and adjustments 2 | G20: Board-Approved Disposition during 2010 | H20: Adjustments during 2010 - other 1 | I20: Closing Principal Balance as of Dec-31-10 | J20: Opening Interest Amounts as of Jan-1-10 | K20: Interest Jan-1 to Dec-31-10 | L20: Board-Approved Disposition during 2010 | M20: Adjustments during 2010 - other 2 | N20: Closing Interest Amounts as of Dec-31-10 | O20: Opening Principal Amounts as of Jan-1-11 | P20: Transactions Debit / (Credit) during 2011 excluding interest and adjustments 2 | Q20: Board-Approved Disposition during 2011 | R20: Adjustments during 2011 - other 1 | S20: Closing Principal Balance as of Dec-31-11 | T20: Opening Interest Amounts as of Jan-1-11 | U20: Interest Jan-1 to Dec-31-11 | V20: Board-Approved Disposition during 2011 | W20: Adjustments during 2011 - other 2 | X20: Closing Interest Amounts as of Dec-31-11 | Y20: Opening Principal Amounts as of Jan-1-12 | Z20: Transactions Debit / (Credit) during 2012 excluding interest and adjustments 2 | AA20: Board-Approved Disposition during 2012 | AB20: Other 1 Adjustments during Q1 2012 | AC20: Other 1 Adjustments during Q2 2012 | AD20: Other 1 Adjustments during Q3 2012 | AE20: Other 1 Adjustments during Q4 2012 | AF20: Closing Principal Balance as of Dec-31-12 | AG20: Opening Interest Amounts as of Jan-1-12 | AH20: Interest Jan-1 to Dec-31-12 | AI20: Board-Approved Disposition during 2012 | AJ20: Adjustments during 2012 - other 1 | AK20: Closing Interest Amounts as of Dec-31-12 | AL20: Opening Principal Amounts as of Jan-1-13 | AM20: Transactions Debit / (Credit) during 2013 excluding interest and adjustments 2 | AN20: Board-Approved Disposition during 2013 | AO20: Other 1 Adjustments during Q1 2013 | AP20: Other 1 Adjustments during Q2 2013 | AQ20: Other 1 Adjustments during Q3 2013 | AR20: Other 1 Adjustments during Q4 2013 | AS20: Closing Principal Balance as of Dec-31-13 | AT20: Opening Interest Amounts as of Jan-1-13 | AU20: Interest Jan-1 to Dec-31-13 | AV20: Board-Approved Disposition during 2013 | AW20: Adjustments during 2013 - other 1 | AX20: Closing Interest Amounts as of Dec-31-13 | AY20: Principal Disposition during 2014 - instructed by Board | AZ20: Interest Disposition during 2014 - instructed by Board | BA20: Closing Principal Balances as of Dec 31-13 Adjusted for Dispositions during 2014 | BB20: Closing Interest Balances as of Dec 31-13 Adjusted for Dispositions during 2014 | BC20: Projected Interest from Jan 1, 2014 to December 31, 2014 on Dec 31 -13 balance adjusted for disposition during 2014 3 | BD20: Projected Interest from January 1, 2015 to April 30, 2015 on Dec 31 -13 balance adjusted for disposition during 2014 3 | BE20: Total Claim | BF20: As of Dec 31-13 | BG20: Variance RRR vs. 2013 Balance (Principal + Interest)
BE22: Claim before Forecasted Transactions
C23: Group 1 Accounts
A24: 1 | C24: LV Variance Account | D24: 1550 | H24: =53546+127156 -> 180702 | I24: =E24+F24-G24+H24 -> 180702 | M24: =5383+ (-1345) -> 4038 | N24: =J24+K24-L24+M24 -> 4038 | O24: =I24 -> 180702 | Q24: 53546 | S24: =O24+P24-Q24+R24 -> 127156 | T24: =N24 -> 4038 | V24: 5383 | X24: =T24+U24-V24+W24 -> -1345 | Y24: =S24 -> 127156 | Z24: 80594 | AF24: =Y24+Z24-AA24+SUM(AB24:AE24) -> 207750 | AG24: =X24 -> -1345 | AH24: 2394 | AK24: =AG24+AH24-AI24+AJ24 -> 1049 | AL24: =AF24 -> 207750 | AM24: 102546 | AN24: 127156 | AS24: =AL24+AM24-AN24+SUM(AO24:AR24) -> 183140 | AT24: =AK24 -> 1049 | AU24: 636 | AV24: -1345 | AX24: =AT24+AU24-AV24+AW24 -> 3030 | AY24: 80594 | AZ24: 2103 | BA24: =AS24-AY24 -> 102546 | BB24: =AX24-AZ24 -> 927 | BC24: =BA24*0.0147 -> 1507.4262 | BD24: =BC24/12*4 -> 502.4754 | BE24: =SUM(BA24:BD24) -> 105482.9016 | BF24: 186170 | BG24: =BF24-SUM(AS24,AX24) -> 0
C25: Smart Metering Entity Charge Variance | D25: 1551 | AK25: 0 | AL25: =AK25 -> 0 | AM25: 66924 | AS25: =AL25+AM25-AN25+SUM(AO25:AR25) -> 66924 | AT25: =AK25 -> 0 | AU25: 550 | AX25: 550 | BA25: =AS25-AY25 -> 66924 | BB25: =AX25-AZ25 -> 550 | BC25: =BA25*0.0147 -> 983.7828 | BD25: 327.9276 | BE25: =SUM(BA25:BD25) -> 68785.7104 | BF25: 67474 | BG25: =BF25-SUM(AS25,AX25) -> 0
A26: 2 | C26: RSVA - Wholesale Market Service Charge | D26: 1580 | H26: =-478275+(-2763667) -> -3241942 | I26: =E26+F26-G26+SUM(H26:H26) -> -3241942 | M26: =-46865+(-53812) -> -100677 | N26: =J26+K26-L26+M26 -> -100677 | O26: =I26 -> -3241942 | Q26: -478275 | S26: =O26+P26-Q26+SUM(R26:R26) -> -2763667 | T26: -100677 | V26: -46865 | X26: =T26+U26-V26+W26 -> -53812 | Y26: =S26 -> -2763667 | Z26: -1827140 | AF26: -4590807 | AG26: =X26 -> -53812 | AH26: -54247 | AK26: -108059 | AL26: =AF26 -> -4590807 | AM26: -1025044 | AN26: -2763667 | AS26: -2852184 | AT26: =AK26 -> -108059 | AU26: -13201 | AV26: -53812 | AX26: -67448 | AY26: -1827140 | AZ26: -49433 | BA26: -1025044 | BB26: -18015 | BC26: -15068.1468 | BD26: -5022.7156 | BE26: =SUM(BA26:BD26) -> -1063149.862 | BF26: -2919632 | BG26: 0
A27: 3 | C27: RSVA - Retail Transmission Network Charge | D27: 1584 | H27: =98276+2462040 -> 2560316 | I27: 2560316 | M27: =-8233+81535 -> 73302 | N27: 73302 | O27: 2560316 | Q27: 98276 | S27: 2462040 | T27: 73302 | V27: -8233 | X27: 81535 | Y27: 2462040 | Z27: 127292 | AF27: 2589332 | AG27: 81535 | AH27: 40586 | AK27: 122121 | AL27: 2589332 | AM27: -80823 | AN27: 2462040 | AS27: 46469 | AT27: 122121 | AU27: -20268 | AV27: 81535 | AX27: 20318 | AY27: 127292 | AZ27: 6889 | BA27: -80823 | BB27: 13429 | BC27: -1188.0981 | BD27: -396.0327 | BE27: -68978.1308 | BF27: 66787 | BG27: 0
A28: 4 | C28: RSVA - Retail Transmission Connection Charge | D28: 1586 | H28: =-1079752+675984 -> -403768 | I28: -403768 | M28: =-41520+40640 -> -880 | N28: -880 | O28: -403768 | Q28: -1079752 | S28: 675984 | T28: -880 | V28: -41520 | X28: 40640 | Y28: 675984 | Z28: 233309 | AF28: 909293 | AG28: 40640 | AH28: 12878 | AK28: 53518 | AL28: 909293 | AM28: -141323 | AN28: 675984 | AS28: 91986 | AT28: 53518 | AU28: -4519 | AV28: 40640 | AX28: 8359 | AY28: 233309 | AZ28: 7514 | BA28: -141323 | BB28: 845 | BC28: -2077.4481 | BD28: -692.4827 | BE28: -143247.9308 | BF28: 100345 | BG28: 0
A29: 5 | C29: RSVA - Power (excluding Global Adjustment) | D29: 1588 | H29: =-1532834+(-141018) -> -1673852 | I29: -1673852 | M29: =61984+40490 -> 102474 | N29: 102474 | O29: -1673852 | Q29: -1532834 | S29: -141018 | T29: 102474 | V29: 61984 | X29: 40490 | Y29: -141018 | Z29: -715910 | AF29: -856928 | AG29: 40490 | AH29: -11004 | AK29: 29486 | AL29: -856928 | AM29: -1371483 | AN29: -141018 | AS29: -2087393 | AT29: 29486 | AU29: -7250 | AV29: 40490 | AX29: -18254 | AY29: -715910 | AZ29: -22964 | BA29: -1371483 | BB29: 4710 | BC29: -20160.8001 | BD29: -6720.2667 | BE29: -1393654.067 | BF29: -2105647 | BG29: 0
A30: 6 | C30: RSVA - Global Adjustment | D30: 1589 | H30: =7778468+3076310 -> 10854778 | I30: 10854778 | M30: =171365+64868 -> 236233 | N30: 236233 | O30: 10854778 | Q30: 7778468 | S30: 3076310 | T30: 236233 | V30: 171365 | X30: 64868 | Y30: 3076310 | Z30: -2765403 | AF30: 310907 | AG30: 64868 | AH30: 803 | AK30: 65671 | AL30: 310907 | AM30: 1987769 | AN30: 3076310 | AS30: -777634 | AT30: 65671 | AU30: -62202 | AV30: 64868 | AX30: -61399 | AY30: -2765403 | AZ30: -98918 | BA30: 1987769 | BB30: 37519 | BC30: 29220.2043 | BD30: 9740.0681 | BE30: 2064248.272 | BF30: -839033 | BG30: 0
A31: 7 | C31: Recovery of Regulatory Asset Balances | D31: 1590 | I31: 0 | M31: -13335 | N31: -13335 | O31: 0 | S31: 0 | T31: -13335 | V31: -13335 | X31: 0 | Y31: 0 | AF31: 0 | AG31: 0 | AK31: 0 | AL31: 0 | AS31: 0 | AT31: 0 | AU31: 0 | AX31: 0 | BA31: 0 | BB31: 0 | BC31: 0 | BE31: 0 | BG31: 0
A32: 8 | C32: Disposition and Recovery/Refund of Regulatory Balances (2008)4 | D32: 1595 | I32: 0 | N32: 0 | O32: =I32 -> 0 | S32: 0 | T32: 0 | X32: 0 | Y32: 0 | AF32: 0 | AG32: 0 | AK32: 0 | AL32: 0 | AS32: 0 | AT32: 0 | AX32: 0 | BA32: 0 | BB32: 0 | BC32: 0 | BE32: 0 | BG32: 0
A33: 9 | C33: Disposition and Recovery/Refund of Regulatory Balances (2009)4 | D33: 1595 | F33: 3870677 | G33: 10576096 | I33: -6705419 | K33: -52614 | L33: 732621 | N33: -785235 | O33: =I33 -> -6705419 | P33: 5739257 | S33: -966162 | T33: -785235 | U33: -60107 | X33: -845342 | Y33: -966162 | Z33: 1964577 | AF33: 998415 | AG33: -845342 | AH33: 8321 | AK33: -837021 | AL33: 998415 | AM33: 0 | AS33: 998415 | AT33: -837021 | AU33: 14677 | AX33: -822344 | AY33: 998415 | AZ33: -817448 | BA33: 0 | BB33: -4896 | BC33: 0 | BE33: -4896 | BF33: 176071 | BG33: 0
A34: 9 | C34: Disposition and Recovery/Refund of Regulatory Balances (2010)4 | D34: 1595 | I34: 0 | N34: 0 | O34: =I34 -> 0 | P34: -3488901 | Q34: -4839431 | S34: 1350530 | T34: 0 | U34: 32173 | V34: -128779 | X34: 160952 | Y34: 1350530 | Z34: -1506788 | AF34: -156258 | AG34: 160952 | AH34: 2143 | AK34: 163095 | AL34: -156258 | AM34: 0 | AS34: -156258 | AT34: 163095 | AU34: -2307 | AX34: 160788 | AY34: 0 | BA34: -156258 | BB34: 160788 | BC34: 0 | BE34: 4530 | BF34: 4530 | BG34: 0
A35: 9 | C35: Disposition and Recovery/Refund of Regulatory Balances (2011)4 | D35: 1595 | I35: 0 | N35: 0 | O35: =I35 -> 0 | S35: 0 | T35: 0 | X35: 0 | Y35: 0 | Z35: 3376 | AA35: 5063 | AF35: -1687 | AG35: 0 | AH35: -143897 | AI35: -231454 | AK35: 87557 | AL35: -1687 | AM35: 1687 | AS35: 0 | AT35: 87557 | AU35: -82540 | AX35: 5017 | AY35: -156258 | AZ35: 160032 | BA35: 156258 | BB35: -155015 | BC35: 2296.9926 | BD35: =BC35/12*4 -> 765.6642 | BE35: =SUM(BA35:BD35) -> 4305.6568 | BF35: 5017 | BG35: 0
A36: 9 | C36: Disposition and Recovery/Refund of Regulatory Balances (2012)4 | D36: 1595 | I36: 0 | N36: 0 | O36: =I36 -> 0 | S36: 0 | T36: =N36 -> 0 | X36: 0 | Y36: =S36 -> 0 | AF36: =Y36+Z36-AA36+SUM(AB36:AE36) -> 0 | AG36: =X36 -> 0 | AK36: =AG36+AH36-AI36+AJ36 -> 0 | AL36: =AF36 -> 0 | AM36: 0 | AN36: 0 | AO36: 0 | AS36: =AL36+AM36-AN36+SUM(AO36:AR36) -> 0 | AT36: =AK36 -> 0 | AU36: 0 | AV36: 0 | AX36: =AT36+AU36-AV36+AW36 -> 0 | AZ36: 0 | BA36: 0 | BB36: 0 | BC36: 0 | BE36: =SUM(BA36:BD36) -> 0 | BF36: 0 | BG36: 0
C38: RSVA - Global Adjustment | D38: 1589 | E38: =E30 -> 0 | F38: =F30 -> 0 | G38: 0 | H38: 10854778 | I38: 10854778 | J38: 0 | K38: 0 | L38: 0 | M38: 236233 | N38: 236233 | O38: =O30 -> 10854778 | P38: =P30 -> 0 | Q38: 7778468 | R38: 0 | S38: 3076310 | T38: 236233 | U38: 0 | V38: 171365 | W38: 0 | X38: 64868 | Y38: =Y30 -> 3076310 | Z38: =Z30 -> -2765403 | AA38: 0 | AB38: 0 | AC38: 0 | AD38: 0 | AE38: 0 | AF38: =AF30 -> 310907 | AG38: 64868 | AH38: 803 | AI38: 0 | AJ38: =AJ30 -> 0 | AK38: 65671 | AL38: =AL30 -> 310907 | AM38: =AM30 -> 1987769 | AN38: 3076310 | AO38: 0 | AP38: 0 | AQ38: 0 | AR38: 0 | AS38: -777634 | AT38: 65671 | AU38: -62202 | AV38: 64868 | AW38: 0 | AX38: -61399 | AY38: -2765403 | AZ38: =AZ30 -> -98918 | BA38: 1987769 | BB38: 37519 | BC38: 29220.2043 | BD38: 9740.0681 | BE38: 2064248.272 | BF38: -839033 | BG38: 0
C39: Total Group 1 Balance excluding Account 1589 - Global Adjustment | E39: =SUM(E24:E29,E31:E36) -> 0 | F39: =SUM(F24:F29,F31:F36) -> 3870677 | G39: 10576096 | H39: -2578544 | I39: -9283963 | J39: 0 | K39: -52614 | L39: 732621 | M39: 64922 | N39: -720313 | O39: =SUM(O24:O29,O31:O36) -> -9283963 | P39: =SUM(P24:P29,P31:P36) -> 2250356 | Q39: -7778470 | R39: 0 | S39: 744863 | T39: -720313 | U39: -27934 | V39: -171365 | W39: 0 | X39: -576882 | Y39: =SUM(Y24:Y29,Y31:Y36) -> 744863 | Z39: =SUM(Z24:Z29,Z31:Z36) -> -1640690 | AA39: 5063 | AB39: 0 | AC39: 0 | AD39: 0 | AE39: 0 | AF39: =SUM(AF24:AF29,AF31:AF36) -> -900890 | AG39: -576882 | AH39: -142826 | AI39: -231454 | AJ39: =SUM(AJ24:AJ29,AJ31:AJ36) -> 0 | AK39: -488254 | AL39: =SUM(AL24:AL29,AL31:AL36) -> -900890 | AM39: =SUM(AM24:AM29,AM31:AM36) -> -2447516 | AN39: 360495 | AO39: 0 | AP39: 0 | AQ39: 0 | AR39: 0 | AS39: -3708901 | AT39: -488254 | AU39: -114222 | AV39: 107508 | AW39: 0 | AX39: -709984 | AY39: -1259698 | AZ39: =SUM(AZ24:AZ29,AZ31:AZ36) -> -713307 | BA39: -2449203 | BB39: 3323 | BC39: -33706.2915 | BD39: -11235.4305 | BE39: -2490821.722 | BF39: -4418885 | BG39: 0
C40: Total Group 1 Balance | E40: =SUM(E24:E36) -> 0 | F40: =SUM(F24:F36) -> 3870677 | G40: 10576096 | H40: 8276234 | I40: 1570815 | J40: 0 | K40: -52614 | L40: 732621 | M40: 301155 | N40: -484080 | O40: =SUM(O24:O36) -> 1570815 | P40: =SUM(P24:P36) -> 2250356 | Q40: -2 | R40: 0 | S40: 3821173 | T40: -484080 | U40: -27934 | V40: 0 | W40: 0 | X40: -512014 | Y40: =SUM(Y24:Y36) -> 3821173 | Z40: =SUM(Z24:Z36) -> -4406093 | AA40: 5063 | AB40: 0 | AC40: 0 | AD40: 0 | AE40: 0 | AF40: =SUM(AF24:AF36) -> -589983 | AG40: -512014 | AH40: -142023 | AI40: -231454 | AJ40: =SUM(AJ24:AJ36) -> 0 | AK40: -422583 | AL40: =SUM(AL24:AL36) -> -589983 | AM40: =SUM(AM24:AM36) -> -459747 | AN40: 3436805 | AO40: 0 | AP40: 0 | AQ40: 0 | AR40: 0 | AS40: -4486535 | AT40: -422583 | AU40: -176424 | AV40: 172376 | AW40: 0 | AX40: -771383 | AY40: -4025101 | AZ40: =SUM(AZ24:AZ36) -> -812225 | BA40: -461434 | BB40: 40842 | BC40: -4486.0872 | BD40: -1495.3624 | BE40: -426573.4496 | BF40: -5257918 | BG40: 0
C42: LRAM Variance Account | D42: 1568 | I42: =E42+F42-G42+SUM(H42:H42) -> 0 | N42: =J42+K42-L42+M42 -> 0 | P42: 53711 | S42: =O42+P42-Q42+SUM(R42:R42) -> 53711 | U42: 360 | X42: =T42+U42-V42+W42 -> 360 | Y42: =S42 -> 53711 | Z42: 53771 | AF42: =Y42+Z42-AA42+SUM(AB42:AE42) -> 107482 | AG42: =X42 -> 360 | AH42: 360 | AK42: =AG42+AH42-AI42+AJ42 -> 720 | AL42: =AF42 -> 107482 | AM42: 346191 | AS42: =AL42+AM42-AN42+SUM(AO42:AR42) -> 453673 | AT42: =AK42 -> 720 | AU42: 3171 | AW42: -97 | AX42: =AT42+AU42-AV42+AW42 -> 3794 | AY42: 178837 | AZ42: 1987 | BA42: =AS42-AY42 -> 274836 | BB42: =AX42-AZ42 -> 1807 | BC42: =BA42*0.0147 -> 4040.0892 | BD42: 1347 | BE42: =SUM(BA42:BD42) -> 282030.0892 | BF42: 181130 | BG42: =BF42-SUM(AS42,AX42) -> -276337
C44: Total including Account 1568 | E44: =E42+E40 -> 0 | F44: =F42+F40 -> 3870677 | G44: 10576096 | H44: 8276234 | I44: 1570815 | J44: 0 | K44: -52614 | L44: 732621 | M44: 301155 | N44: -484080 | O44: 1570815 | P44: 2304067 | Q44: -2 | R44: 0 | S44: 3874884 | T44: -484080 | U44: -27574 | V44: 0 | W44: 0 | X44: -511654 | Y44: 3874884 | Z44: -4352322 | AA44: 5063 | AB44: 0 | AC44: 0 | AD44: 0 | AE44: 0 | AF44: -482501 | AG44: -511654 | AH44: -141663 | AI44: -231454 | AJ44: 0 | AK44: -421863 | AL44: -482501 | AM44: -113556 | AN44: 3436805 | AO44: 0 | AP44: 0 | AQ44: 0 | AR44: 0 | AS44: -4032862 | AT44: -421863 | AU44: -173253 | AV44: 172376 | AW44: -97 | AX44: -767589 | AY44: -3846264 | AZ44: -810238 | BA44: -186598 | BB44: 42649 | BC44: -445.998 | BD44: -148.3624 | BE44: -144543.3604 | BF44: -5076788 | BG44: -276337
C47: For all Board-Approved dispositions, please ensure that the disposition amount has the same sign (e.g: debit balances are to have a positive figure and credit balance are to have a negative figure) as per the related Board decision.
B50: 1 | C50: Please provide explanations for the nature of the adjustments. If the adjustment relates to previously Board Approved disposed balances, please provide amounts for adjustments and include supporting documentations.
B51: 2 | C51: For RSVA accounts only, report the net variance to the account during the year. For all other accounts, record the transactions during the year.
B52: 3 | C52: If the LDC’s rate year begins on January 1, 2015, the projected interest is recorded from January 1, 2014 to December 31, 2014 on the December 31, 2013 balances adjusted for the disposed balances approved by the Board in the 2014 rate decision. If the LDC’s rate year begins on May 1, 2015, the projected interest is recorded from January 1, 2014 to April 30, 2015 on the December 31, 2013 balances adjusted for the disposed interest balances approved by the Board in the 2014 rate decision.
B53: 4 | C53: Include Account 1595 as part of Group 1 accounts (lines 31, 32, 33 and 34) for review and disposition if the recovery (or refund) period has been completed. If the recovery (or refund) period has not been completed, do not include the respective balance in Account 1595 for disposition at this time.

Sheet 6. Billing Det. for Def-Var
AS1: As per Section 3.2.3 of the 2015 Filing Requirements for Electricity Distribution Rate Applications, an applicant may elect to dispose of the Group 1 account balances below the threshold. If doing so, please select YES from the adjacent drop-down cell and also indicate so in the Manager's Summary. If not, please select NO.
A13: In the green shaded cells, enter the most recent Board Approved volumetric forecast. If there is a material difference between the latest Board-approved volumetric forecast and the most recent 12-month actual volumetric data, use the most recent 12-month actual data. Do not enter data for the MicroFit class.
E15: Billed kWh for Non-RPP Customers | F15: Estimated kW for Non-RPP Customers | H15: 1590 Recovery Share Proportion* | I15: 1595 Recovery Share Proportion (2008) 1 | J15: 1595 Recovery Share Proportion (2009) 1 | K15: 1595 Recovery Share Proportion (2010) 1 | L15: 1595 Recovery Share Proportion (2011) 1 | M15: 1595 Recovery Share Proportion (2012) 1 | N15: 1568 LRAM Variance Account Class Allocation ($ amounts) | O15: Number of Customers for Residential and GS<50 classes3
A16: Rate Class | B16: Unit | C16: Metered kWh | D16: Metered kW
A17: RESIDENTIAL | B17: $/kWh | C17: 400646088 | E17: 31090136 | F17: =IF(ISERROR(D17/C17*E17), 0, D17/C17*E17) -> 0 | J17: 0.1894 | K17: 0.1894 | L17: 0.1894 | N17: 55685 | O17: 48091
A18: GENERAL SERVICE LESS THAN 50 KW | B18: $/kWh | C18: 155607417 | E18: 22469711 | F18: 0 | J18: 0.125 | K18: 0.125 | L18: 0.125 | N18: 12271 | O18: 4740
A19: GENERAL SERVICE 50 TO 999 KW | B19: $/kW | C19: 434548089 | D19: 1403590 | E19: 292059771 | F19: 943352.8402 | J19: 0.3876 | K19: 0.3876 | L19: 0.3876 | N19: 175551
A20: GENERAL SERVICE 1,000 TO 4,999 KW | B20: $/kW | C20: 221369807 | D20: 526573 | E20: 221369807 | F20: 526573 | J20: 0.1759 | K20: 0.1759 | L20: 0.1759 | N20: 30406
A21: GENERAL SERVICE GREATER THAN 50 kW - WMP | B21: $/kW | C21: 45894937 | D21: 79211 | F21: 0
A22: LARGE USE | B22: $/kW | C22: 207072349 | D22: 429057 | F22: 0 | J22: 0.1218 | K22: 0.1218 | L22: 0.1218 | N22: 8117
A23: UNMETERED SCATTERED LOAD | B23: $/kWh | C23: 1746895 | E23: 3494 | F23: 0 | J23: 0.0001 | K23: 0.0001 | L23: 0.0001
A24: STREET LIGHTING | B24: $/kW | C24: 9594439 | D24: 25751 | E24: 9594439 | F24: 25751 | J24: 0.0001 | K24: 0.0001 | L24: 0.0001
A25: EMBEDDED DISTRIBUTOR | B25: $/kW | C25: 43430869 | D25: 102844 | E25: 12613577 | F25: 29868.86385 | J25: 0.0001 | K25: 0.0001 | L25: 0.0001
A26: microFIT
B28: Total | C28: =SUM(C17:C26) -> 1519910890 | D28: =SUM(D17:D26) -> 2567026 | E28: 589200935 | F28: 1525545.704 | H28: 0 | I28: 0 | J28: 1 | K28: 1 | L28: 1 | M28: 0 | N28: 282030 | O28: 52831
M29: Balance as per Sheet 5 | N29: =ROUND('5. 2014 Continuity Schedule'!BE42, 0) -> 282030
M30: Variance | N30: =N28-N29 -> 0
A32: Threshold Test
A33: Total Claim (including Account 1568) | B33: ='5. 2014 Continuity Schedule'!BE44 -> -144543.3604
A34: Total Claim for Threshold Test (All Group 1 Accounts) | B34: ='5. 2014 Continuity Schedule'!BE40 -> -426573.4496
A35: Threshold Test (Total claim per kWh) 2 | B35: =IF(ISERROR(B34/C28), 0, B34/C28) -> -0.0002806568809 | D35: =IF(AND(B35>-0.001,B35<0.001),"Claim does not meet the threshold test.","") -> Claim does not meet the threshold test.
A37: =IF(AND(B35>-0.001, B35<0.001), AS1, "") -> As per Section 3.2.3 of the 2015 Filing Requirements for Electricity Distribution Rate Applications, an applicant may elect to dispose of the Group 1 account balances below the threshold. If doing so, please select YES from the adjacent drop-down cell and also indicate so in the Manager's Summary. If not, please select NO. | C37: YES
A41: 1 Residual Account balance to be allocated to rate classes in proportion to the recovery share as established when rate riders were implemented.
A42: 2 The Threshold Test does not include the amount in 1568.
A43: 3 The proportion of customers for the Residential and GS<50 Classes will be used to allocate Account 1551.

Sheet 6. hidden (hidden)
E1: Billed kWh for Non-RPP Customers | F1: Estimated kW for Non-RPP Customers | G1: Distribution Revenue 1 | H1: 1590 Recovery Share Proportion* | I1: 1595 Recovery Share Proportion (2008) 2 | J1: 1595 Recovery Share Proportion (2009) 2 | K1: 1595 Recovery Share Proportion (2010) 2 | L1: 1595 Recovery Share Proportion (2011) 2 | M1: 1568 LRAM Variance Account Class Allocation | AC1: YES
A2: Rate Class | B2: Unit | C2: Metered kWh | D2: Metered kW
A3: RESIDENTIAL | B3: $/kWh | C3: 400646088 | D3: 0 | E3: 31090136 | G3: 0 | H3: 0 | I3: 0 | J3: 0.1894 | K3: 0.1894 | L3: 0.1894 | M3: 0 | N3: 55685 | O3: 48091
A4: GENERAL SERVICE LESS THAN 50 KW | B4: $/kWh | C4: 155607417 | D4: 0 | E4: 22469711 | G4: 0 | H4: 0 | I4: 0 | J4: 0.125 | K4: 0.125 | L4: 0.125 | M4: 0 | N4: 12271 | O4: 4740
A5: GENERAL SERVICE 50 TO 999 KW | B5: $/kW | C5: 434548089 | D5: 1403590 | E5: 292059771 | G5: 0 | H5: 0 | I5: 0 | J5: 0.3876 | K5: 0.3876 | L5: 0.3876 | M5: 0 | N5: 175551 | O5: 0
A6: GENERAL SERVICE 1,000 TO 4,999 KW | B6: $/kW | C6: 221369807 | D6: 526573 | E6: 221369807 | G6: 0 | H6: 0 | I6: 0 | J6: 0.1759 | K6: 0.1759 | L6: 0.1759 | M6: 0 | N6: 30406 | O6: 0
A7: GENERAL SERVICE GREATER THAN 50 kW - WMP | B7: $/kW | C7: 45894937 | D7: 79211 | E7: 0 | G7: 0 | H7: 0 | I7: 0 | J7: 0 | K7: 0 | L7: 0 | M7: 0 | N7: 0 | O7: 0
A8: LARGE USE | B8: $/kW | C8: 207072349 | D8: 429057 | E8: 0 | G8: 0 | H8: 0 | I8: 0 | J8: 0.1218 | K8: 0.1218 | L8: 0.1218 | M8: 0 | N8: 8117 | O8: 0
A9: UNMETERED SCATTERED LOAD | B9: $/kWh | C9: 1746895 | D9: 0 | E9: 3494 | G9: 0 | H9: 0 | I9: 0 | J9: 0.0001 | K9: 0.0001 | L9: 0.0001 | M9: 0 | N9: 0 | O9: 0
A10: STREET LIGHTING | B10: $/kW | C10: 9594439 | D10: 25751 | E10: 9594439 | G10: 0 | H10: 0 | I10: 0 | J10: 0.0001 | K10: 0.0001 | L10: 0.0001 | M10: 0 | N10: 0 | O10: 0
A11: EMBEDDED DISTRIBUTOR | B11: $/kW | C11: 43430869 | D11: 102844 | E11: 12613577 | G11: 0 | H11: 0 | I11: 0 | J11: 0.0001 | K11: 0.0001 | L11: 0.0001 | M11: 0 | N11: 0 | O11: 0
A12: microFIT | B12: 0 | C12: 0 | D12: 0 | E12: 0 | G12: 0 | H12: 0 | I12: 0 | J12: 0 | K12: 0 | L12: 0 | M12: 0 | N12: 0 | O12: 0

Sheet 7. Allocating Def-Var Balances
A13: No input required. This workshseet allocates the deferral/variance account balances (Group 1, 1589, and 1568) to the appropriate classes as per the EDDVAR Report dated July 31, 2009
A15: Allocation of Group 1 Accounts (including Account 1568)
C16: % of Total kWh | D16: % of Total non-RPP kWh | E16: % of Customer Numbers ** | N16: 1595 (2008) | O16: 1595 (2009) | P16: 1595 (2010) | Q16: 1595 (2011) | R16: 1595 (2012) | S16: 1568 | U16: % of Total kWh (without WMP) | V16: 1580 | W16: 1588 | X16: 1589
A17: Rate Class | F17: 1550 | G17: 1551 | H17: 1580 | I17: 1584 | J17: 1586 | K17: 1588 | L17: 1589 | M17: 1590
A19: RESIDENTIAL | C19: =VLOOKUP(A19, '6. Billing Det. for Def-Var'!A17:D26, 3,0)/'6. Billing Det. for Def-Var'!C28 -> 0.2635984061 | D19: =VLOOKUP(A19, '6. Billing Det. for Def-Var'!A17:E26, 5,0)/'6. Billing Det. for Def-Var'!E28 -> 0.05276661009 | E19: =VLOOKUP(A19, '6. Billing Det. for Def-Var'!A17:O26, 15,0)/'6. Billing Det. for Def-Var'!O28 -> 0.9102799493 | F19: =C19* '5. 2014 Continuity Schedule'!BE24 -> 27805.12473 | G19: =E19* '5. 2014 Continuity Schedule'!BE25 -> 62614.25297 | H19: =C19* '5. 2014 Continuity Schedule'!BE26 -> -280244.6092 | I19: =C19* '5. 2014 Continuity Schedule'!BE27 -> -18182.52533 | J19: =C19* '5. 2014 Continuity Schedule'!BE28 -> -37759.92623 | K19: =C19* '5. 2014 Continuity Schedule'!BE29 -> -367364.9906 | L19: =D19* '5. 2014 Continuity Schedule'!BE30 -> 108923.3837 | M19: ='6. Billing Det. for Def-Var'!H17* '5. 2014 Continuity Schedule'!BE31 -> 0 | N19: ='6. Billing Det. for Def-Var'!I17* '5. 2014 Continuity Schedule'!BE32 -> 0 | O19: ='6. Billing Det. for Def-Var'!J17* '5. 2014 Continuity Schedule'!BE33 -> -927.3024 | P19: ='6. Billing Det. for Def-Var'!K17* '5. 2014 Continuity Schedule'!BE34 -> 857.982 | Q19: ='6. Billing Det. for Def-Var'!L17* '5. 2014 Continuity Schedule'!BE35 -> 815.4913979 | R19: ='6. Billing Det. for Def-Var'!M17* '5. 2014 Continuity Schedule'!BE36 -> 0 | S19: ='6. Billing Det. for Def-Var'!N17 -> 55685 | U19: =VLOOKUP(A19, '6. Billing Det. for Def-Var'!A17:D26, 3,0)/1474015953 -> 0.2718058018 | V19: =U19* '5. 2014 Continuity Schedule'!BE26 -> -288970.3008 | W19: =U19* '5. 2014 Continuity Schedule'!BE29 -> -378803.2611
A20: GENERAL SERVICE LESS THAN 50 KW | C20: =VLOOKUP(A20, '6. Billing Det. for Def-Var'!A17:D26, 3,0)/'6. Billing Det. for Def-Var'!C28 -> 0.1023793026 | D20: =VLOOKUP(A20, '6. Billing Det. for Def-Var'!A17:E26, 5,0)/'6. Billing Det. for Def-Var'!E28 -> 0.0381359052 | E20: =VLOOKUP(A20, '6. Billing Det. for Def-Var'!A17:O26, 15,0)/'6. Billing Det. for Def-Var'!O28 -> 0.08972005073 | F20: =C20* '5. 2014 Continuity Schedule'!BE24 -> 10799.26591 | G20: =E20* '5. 2014 Continuity Schedule'!BE25 -> 6171.457426 | H20: =C20* '5. 2014 Continuity Schedule'!BE26 -> -108844.5415 | I20: =C20* '5. 2014 Continuity Schedule'!BE27 -> -7061.932929 | J20: =C20* '5. 2014 Continuity Schedule'!BE28 -> -14665.62326 | K20: =C20* '5. 2014 Continuity Schedule'!BE29 -> -142681.3315 | L20: =D20* '5. 2014 Continuity Schedule'!BE30 -> 78721.97642 | M20: ='6. Billing Det. for Def-Var'!H18* '5. 2014 Continuity Schedule'!BE31 -> 0 | N20: ='6. Billing Det. for Def-Var'!I18* '5. 2014 Continuity Schedule'!BE32 -> 0 | O20: ='6. Billing Det. for Def-Var'!J18* '5. 2014 Continuity Schedule'!BE33 -> -612 | P20: ='6. Billing Det. for Def-Var'!K18* '5. 2014 Continuity Schedule'!BE34 -> 566.25 | Q20: ='6. Billing Det. for Def-Var'!L18* '5. 2014 Continuity Schedule'!BE35 -> 538.2071 | R20: ='6. Billing Det. for Def-Var'!M18* '5. 2014 Continuity Schedule'!BE36 -> 0 | S20: ='6. Billing Det. for Def-Var'!N18 -> 12271 | U20: =VLOOKUP(A20, '6. Billing Det. for Def-Var'!A17:D26, 3,0)/1474015953 -> 0.105566983 | V20: =U20* '5. 2014 Continuity Schedule'!BE26 -> -112233.5234 | W20: =U20* '5. 2014 Continuity Schedule'!BE29 -> -147123.8551
A21: GENERAL SERVICE 50 TO 999 KW | C21: =VLOOKUP(A21, '6. Billing Det. for Def-Var'!A17:D26, 3,0)/'6. Billing Det. for Def-Var'!C28 -> 0.2859036618 | D21: =VLOOKUP(A21, '6. Billing Det. for Def-Var'!A17:E26, 5,0)/'6. Billing Det. for Def-Var'!E28 -> 0.4956878947 | F21: =C21* '5. 2014 Continuity Schedule'!BE24 -> 30157.94782 | G21: =E21* '5. 2014 Continuity Schedule'!BE25 -> 0 | H21: =C21* '5. 2014 Continuity Schedule'!BE26 -> -303958.4387 | I21: =C21* '5. 2014 Continuity Schedule'!BE27 -> -19721.10018 | J21: =C21* '5. 2014 Continuity Schedule'!BE28 -> -40955.10796 | K21: =C21* '5. 2014 Continuity Schedule'!BE29 -> -398450.8009 | L21: =D21* '5. 2014 Continuity Schedule'!BE30 -> 1023222.88 | M21: ='6. Billing Det. for Def-Var'!H19* '5. 2014 Continuity Schedule'!BE31 -> 0 | N21: ='6. Billing Det. for Def-Var'!I19* '5. 2014 Continuity Schedule'!BE32 -> 0 | O21: ='6. Billing Det. for Def-Var'!J19* '5. 2014 Continuity Schedule'!BE33 -> -1897.6896 | P21: ='6. Billing Det. for Def-Var'!K19* '5. 2014 Continuity Schedule'!BE34 -> 1755.828 | Q21: ='6. Billing Det. for Def-Var'!L19* '5. 2014 Continuity Schedule'!BE35 -> 1668.872576 | R21: ='6. Billing Det. for Def-Var'!M19* '5. 2014 Continuity Schedule'!BE36 -> 0 | S21: ='6. Billing Det. for Def-Var'!N19 -> 175551 | U21: =VLOOKUP(A21, '6. Billing Det. for Def-Var'!A17:D26, 3,0)/1474015953 -> 0.2948055536 | V21: =U21* '5. 2014 Continuity Schedule'!BE26 -> -313422.4837 | W21: =U21* '5. 2014 Continuity Schedule'!BE29 -> -410856.9587
A22: GENERAL SERVICE 1,000 TO 4,999 KW | C22: =VLOOKUP(A22, '6. Billing Det. for Def-Var'!A17:D26, 3,0)/'6. Billing Det. for Def-Var'!C28 -> 0.1456465695 | D22: =VLOOKUP(A22, '6. Billing Det. for Def-Var'!A17:E26, 5,0)/'6. Billing Det. for Def-Var'!E28 -> 0.3757119072 | F22: =C22* '5. 2014 Continuity Schedule'!BE24 -> 15363.22275 | G22: =E22* '5. 2014 Continuity Schedule'!BE25 -> 0 | H22: =C22* '5. 2014 Continuity Schedule'!BE26 -> -154844.1303 | I22: =C22* '5. 2014 Continuity Schedule'!BE27 -> -10046.42812 | J22: =C22* '5. 2014 Continuity Schedule'!BE28 -> -20863.5697 | K22: =C22* '5. 2014 Continuity Schedule'!BE29 -> -202980.9338 | L22: =D22* '5. 2014 Continuity Schedule'!BE30 -> 775562.6553 | M22: ='6. Billing Det. for Def-Var'!H20* '5. 2014 Continuity Schedule'!BE31 -> 0 | N22: ='6. Billing Det. for Def-Var'!I20* '5. 2014 Continuity Schedule'!BE32 -> 0 | O22: ='6. Billing Det. for Def-Var'!J20* '5. 2014 Continuity Schedule'!BE33 -> -861.2064 | P22: ='6. Billing Det. for Def-Var'!K20* '5. 2014 Continuity Schedule'!BE34 -> 796.827 | Q22: ='6. Billing Det. for Def-Var'!L20* '5. 2014 Continuity Schedule'!BE35 -> 757.3650311 | R22: ='6. Billing Det. for Def-Var'!M20* '5. 2014 Continuity Schedule'!BE36 -> 0 | S22: ='6. Billing Det. for Def-Var'!N20 -> 30406 | U22: =VLOOKUP(A22, '6. Billing Det. for Def-Var'!A17:D26, 3,0)/1474015953 -> 0.1501814187 | V22: =U22* '5. 2014 Continuity Schedule'!BE26 -> -159665.3546 | W22: =U22* '5. 2014 Continuity Schedule'!BE29 -> -209300.9449
A23: GENERAL SERVICE GREATER THAN 50 kW - WMP | C23: =VLOOKUP(A23, '6. Billing Det. for Def-Var'!A17:D26, 3,0)/'6. Billing Det. for Def-Var'!C28 -> 0.03019580773 | D23: =VLOOKUP(A23, '6. Billing Det. for Def-Var'!A17:E26, 5,0)/'6. Billing Det. for Def-Var'!E28 -> 0 | F23: =C23* '5. 2014 Continuity Schedule'!BE24 -> 3185.141415 | G23: =E23* '5. 2014 Continuity Schedule'!BE25 -> 0 | H23: =C23* '5. 2014 Continuity Schedule'!BE26 -> -32102.66883 | I23: =C23* '5. 2014 Continuity Schedule'!BE27 -> -2082.850375 | J23: =C23* '5. 2014 Continuity Schedule'!BE28 -> -4325.486976 | K23: =C23* '5. 2014 Continuity Schedule'!BE29 -> -42082.51024 | L23: =D23* '5. 2014 Continuity Schedule'!BE30 -> 0 | M23: ='6. Billing Det. for Def-Var'!H21* '5. 2014 Continuity Schedule'!BE31 -> 0 | N23: ='6. Billing Det. for Def-Var'!I21* '5. 2014 Continuity Schedule'!BE32 -> 0 | O23: ='6. Billing Det. for Def-Var'!J21* '5. 2014 Continuity Schedule'!BE33 -> 0 | P23: ='6. Billing Det. for Def-Var'!K21* '5. 2014 Continuity Schedule'!BE34 -> 0 | Q23: ='6. Billing Det. for Def-Var'!L21* '5. 2014 Continuity Schedule'!BE35 -> 0 | R23: ='6. Billing Det. for Def-Var'!M21* '5. 2014 Continuity Schedule'!BE36 -> 0 | S23: ='6. Billing Det. for Def-Var'!N21 -> 0 | U23: 0 | V23: =U23* '5. 2014 Continuity Schedule'!BE26 -> 0 | W23: =U23* '5. 2014 Continuity Schedule'!BE29 -> 0
A24: LARGE USE | C24: =VLOOKUP(A24, '6. Billing Det. for Def-Var'!A17:D26, 3,0)/'6. Billing Det. for Def-Var'!C28 -> 0.1362397956 | D24: =VLOOKUP(A24, '6. Billing Det. for Def-Var'!A17:E26, 5,0)/'6. Billing Det. for Def-Var'!E28 -> 0 | F24: =C24* '5. 2014 Continuity Schedule'!BE24 -> 14370.96895 | G24: =E24* '5. 2014 Continuity Schedule'!BE25 -> 0 | H24: =C24* '5. 2014 Continuity Schedule'!BE26 -> -144843.32 | I24: =C24* '5. 2014 Continuity Schedule'!BE27 -> -9397.566442 | J24: =C24* '5. 2014 Continuity Schedule'!BE28 -> -19516.06881 | K24: =C24* '5. 2014 Continuity Schedule'!BE29 -> -189871.1452 | L24: =D24* '5. 2014 Continuity Schedule'!BE30 -> 0 | M24: ='6. Billing Det. for Def-Var'!H22* '5. 2014 Continuity Schedule'!BE31 -> 0 | N24: ='6. Billing Det. for Def-Var'!I22* '5. 2014 Continuity Schedule'!BE32 -> 0 | O24: ='6. Billing Det. for Def-Var'!J22* '5. 2014 Continuity Schedule'!BE33 -> -596.3328 | P24: ='6. Billing Det. for Def-Var'!K22* '5. 2014 Continuity Schedule'!BE34 -> 551.754 | Q24: ='6. Billing Det. for Def-Var'!L22* '5. 2014 Continuity Schedule'!BE35 -> 524.4289982 | R24: ='6. Billing Det. for Def-Var'!M22* '5. 2014 Continuity Schedule'!BE36 -> 0 | S24: ='6. Billing Det. for Def-Var'!N22 -> 8117 | U24: =VLOOKUP(A24, '6. Billing Det. for Def-Var'!A17:D26, 3,0)/1474015953 -> 0.1404817557 | V24: =U24* '5. 2014 Continuity Schedule'!BE26 -> -149353.1592 | W24: =U24* '5. 2014 Continuity Schedule'!BE29 -> -195782.9701
A25: UNMETERED SCATTERED LOAD | C25: =VLOOKUP(A25, '6. Billing Det. for Def-Var'!A17:D26, 3,0)/'6. Billing Det. for Def-Var'!C28 -> 0.001149340406 | D25: =VLOOKUP(A25, '6. Billing Det. for Def-Var'!A17:E26, 5,0)/'6. Billing Det. for Def-Var'!E28 -> 5.930065267e-06 | F25: =C25* '5. 2014 Continuity Schedule'!BE24 -> 121.235761 | G25: =E25* '5. 2014 Continuity Schedule'!BE25 -> 0 | H25: =C25* '5. 2014 Continuity Schedule'!BE26 -> -1221.921095 | I25: =C25* '5. 2014 Continuity Schedule'!BE27 -> -79.27935289 | J25: =C25* '5. 2014 Continuity Schedule'!BE28 -> -164.640635 | K25: =C25* '5. 2014 Continuity Schedule'!BE29 -> -1601.782932 | L25: =D25* '5. 2014 Continuity Schedule'!BE30 -> 12.24112698 | M25: ='6. Billing Det. for Def-Var'!H23* '5. 2014 Continuity Schedule'!BE31 -> 0 | N25: ='6. Billing Det. for Def-Var'!I23* '5. 2014 Continuity Schedule'!BE32 -> 0 | O25: ='6. Billing Det. for Def-Var'!J23* '5. 2014 Continuity Schedule'!BE33 -> -0.4896 | P25: ='6. Billing Det. for Def-Var'!K23* '5. 2014 Continuity Schedule'!BE34 -> 0.453 | Q25: ='6. Billing Det. for Def-Var'!L23* '5. 2014 Continuity Schedule'!BE35 -> 0.43056568 | R25: ='6. Billing Det. for Def-Var'!M23* '5. 2014 Continuity Schedule'!BE36 -> 0 | S25: ='6. Billing Det. for Def-Var'!N23 -> 0 | U25: =VLOOKUP(A25, '6. Billing Det. for Def-Var'!A17:D26, 3,0)/1474015953 -> 0.001185126251 | V25: =U25* '5. 2014 Continuity Schedule'!BE26 -> -1259.96681 | W25: =U25* '5. 2014 Continuity Schedule'!BE29 -> -1651.656019
A26: STREET LIGHTING | C26: =VLOOKUP(A26, '6. Billing Det. for Def-Var'!A17:D26, 3,0)/'6. Billing Det. for Def-Var'!C28 -> 0.006312500991 | D26: =VLOOKUP(A26, '6. Billing Det. for Def-Var'!A17:E26, 5,0)/'6. Billing Det. for Def-Var'!E28 -> 0.01628381496 | F26: =C26* '5. 2014 Continuity Schedule'!BE24 -> 665.8609209 | G26: =E26* '5. 2014 Continuity Schedule'!BE25 -> 0 | H26: =C26* '5. 2014 Continuity Schedule'!BE26 -> -6711.13456 | I26: =C26* '5. 2014 Continuity Schedule'!BE27 -> -435.4245191 | J26: =C26* '5. 2014 Continuity Schedule'!BE28 -> -904.2527052 | K26: =C26* '5. 2014 Continuity Schedule'!BE29 -> -8797.442678 | L26: =D26* '5. 2014 Continuity Schedule'!BE30 -> 33613.8369 | M26: ='6. Billing Det. for Def-Var'!H24* '5. 2014 Continuity Schedule'!BE31 -> 0 | N26: ='6. Billing Det. for Def-Var'!I24* '5. 2014 Continuity Schedule'!BE32 -> 0 | O26: ='6. Billing Det. for Def-Var'!J24* '5. 2014 Continuity Schedule'!BE33 -> -0.4896 | P26: ='6. Billing Det. for Def-Var'!K24* '5. 2014 Continuity Schedule'!BE34 -> 0.453 | Q26: ='6. Billing Det. for Def-Var'!L24* '5. 2014 Continuity Schedule'!BE35 -> 0.43056568 | R26: ='6. Billing Det. for Def-Var'!M24* '5. 2014 Continuity Schedule'!BE36 -> 0 | S26: ='6. Billing Det. for Def-Var'!N24 -> 0 | U26: =VLOOKUP(A26, '6. Billing Det. for Def-Var'!A17:D26, 3,0)/1474015953 -> 0.006509046921 | V26: =U26* '5. 2014 Continuity Schedule'!BE26 -> -6920.092338 | W26: =U26* '5. 2014 Continuity Schedule'!BE29 -> -9071.359712
A27: EMBEDDED DISTRIBUTOR | C27: =VLOOKUP(A27, '6. Billing Det. for Def-Var'!A17:D26, 3,0)/'6. Billing Det. for Def-Var'!C28 -> 0.02857461532 | D27: =VLOOKUP(A27, '6. Billing Det. for Def-Var'!A17:E26, 5,0)/'6. Billing Det. for Def-Var'!E28 -> 0.02140793785 | F27: =C27* '5. 2014 Continuity Schedule'!BE24 -> 3014.133336 | G27: =E27* '5. 2014 Continuity Schedule'!BE25 -> 0 | H27: =C27* '5. 2014 Continuity Schedule'!BE26 -> -30379.09834 | I27: =C27* '5. 2014 Continuity Schedule'!BE27 -> -1971.023553 | J27: =C27* '5. 2014 Continuity Schedule'!BE28 -> -4093.254518 | K27: =C27* '5. 2014 Continuity Schedule'!BE29 -> -39823.12885 | L27: =D27* '5. 2014 Continuity Schedule'!BE30 -> 44191.29873 | M27: ='6. Billing Det. for Def-Var'!H25* '5. 2014 Continuity Schedule'!BE31 -> 0 | N27: ='6. Billing Det. for Def-Var'!I25* '5. 2014 Continuity Schedule'!BE32 -> 0 | O27: ='6. Billing Det. for Def-Var'!J25* '5. 2014 Continuity Schedule'!BE33 -> -0.4896 | P27: ='6. Billing Det. for Def-Var'!K25* '5. 2014 Continuity Schedule'!BE34 -> 0.453 | Q27: ='6. Billing Det. for Def-Var'!L25* '5. 2014 Continuity Schedule'!BE35 -> 0.43056568 | R27: ='6. Billing Det. for Def-Var'!M25* '5. 2014 Continuity Schedule'!BE36 -> 0 | S27: ='6. Billing Det. for Def-Var'!N25 -> 0 | U27: =VLOOKUP(A27, '6. Billing Det. for Def-Var'!A17:D26, 3,0)/1474015953 -> 0.02946431408 | V27: =U27* '5. 2014 Continuity Schedule'!BE26 -> -31324.98146 | W27: =U27* '5. 2014 Continuity Schedule'!BE29 -> -41063.06114
A28: microFIT | C28: 0 | D28: 0 | E28: 0 | F28: =C28* '5. 2014 Continuity Schedule'!BE24 -> 0 | G28: =E28* '5. 2014 Continuity Schedule'!BE25 -> 0 | H28: =C28* '5. 2014 Continuity Schedule'!BE26 -> 0 | I28: =C28* '5. 2014 Continuity Schedule'!BE27 -> 0 | J28: =C28* '5. 2014 Continuity Schedule'!BE28 -> 0 | K28: =C28* '5. 2014 Continuity Schedule'!BE29 -> 0 | L28: =D28* '5. 2014 Continuity Schedule'!BE30 -> 0 | M28: ='6. Billing Det. for Def-Var'!H26* '5. 2014 Continuity Schedule'!BE31 -> 0 | N28: ='6. Billing Det. for Def-Var'!I26* '5. 2014 Continuity Schedule'!BE32 -> 0 | O28: ='6. Billing Det. for Def-Var'!J26* '5. 2014 Continuity Schedule'!BE33 -> 0 | P28: ='6. Billing Det. for Def-Var'!K26* '5. 2014 Continuity Schedule'!BE34 -> 0 | Q28: ='6. Billing Det. for Def-Var'!L26* '5. 2014 Continuity Schedule'!BE35 -> 0 | R28: ='6. Billing Det. for Def-Var'!M26* '5. 2014 Continuity Schedule'!BE36 -> 0 | S28: ='6. Billing Det. for Def-Var'!N26 -> 0 | V28: =U28* '5. 2014 Continuity Schedule'!BE26 -> 0 | W28: =U28* '5. 2014 Continuity Schedule'!BE29 -> 0
A30: Total | C30: =SUM(C19:C28) -> 1 | D30: 1 | E30: 1 | F30: 105482.9016 | G30: 68785.7104 | H30: -1063149.862 | I30: -68978.1308 | J30: -143247.9308 | K30: -1393654.067 | L30: 2064248.272 | M30: 0 | N30: 0 | O30: -4896 | P30: 4530 | Q30: 4305.6568 | R30: 0 | S30: 282030 | U30: =SUM(U19:U28) -> 1 | V30: =SUM(V19:V28) -> -1063149.862 | W30: =SUM(W19:W28) -> -1393654.067 | X30: =SUM(X19:X28) -> 0
A33: * RSVA - Power (Excluding Global Adjustment)
A34: ** Used to allocate Account 1551 as this account records the variances arising from the Smart Metering Entity Charges to Residential and GS<50 customers.

Sheet 8. Calculation of Def-Var RR
A12: Input required at cell C15 only. This workshseet calculates rate riders related to the Deferral/Variance Account Disposition (if applicable), associated rate riders for the global adjustment account (1589) and Account 1568. Rate Riders will not be generated for the microFIT class.
A15: Please indicate the Rate Rider Recovery Period (in years) | C15: 1 | H15: Adjustment made by Board Staff
E17: Balance of Accounts Allocated by kWh/kW (RPP) or Distribution Revenue | F17: Deferral/Variance Account Rate Rider | G17: Allocation of Balance in Account 1589 | H17: kWh and kW for non-RPP, non-WMP, non-Class A | I17: Global Adjustment Rate Rider | J17: Allocation of Account 1568 | K17: Account 1568 Rate Rider
A18: Rate Class | B18: Unit | C18: Billed kWh | D18: Billed kW or kVA
A20: RESIDENTIAL | B20: $/kWh | C20: 400646088 | E20: =SUM('7. Allocating Def-Var Balances'!F19:G19)+SUM('7. Allocating Def-Var Balances'!I19:J19)+SUM('7. Allocating Def-Var Balances'!M19:R19)+SUM('7. Allocating Def-Var Balances'!V19:W19) -> -632550.4648 | F20: -0.0016 | G20: 108923.3837 | H20: 31090136 | I20: 0.0035 | J20: 55685 | K20: 0.0001
A21: GENERAL SERVICE LESS THAN 50 KW | B21: $/kWh | C21: 155607417 | E21: =SUM('7. Allocating Def-Var Balances'!F20:G20)+SUM('7. Allocating Def-Var Balances'!I20:J20)+SUM('7. Allocating Def-Var Balances'!M20:R20)+SUM('7. Allocating Def-Var Balances'!V20:W20) -> -263621.7543 | F21: -0.0017 | G21: 78721.97642 | H21: 22469711 | I21: 0.0035 | J21: 12271 | K21: 0.0001
A22: GENERAL SERVICE 50 TO 999 KW | B22: $/kW | C22: 434548089 | D22: 1403590 | E22: =SUM('7. Allocating Def-Var Balances'!F21:G21)+SUM('7. Allocating Def-Var Balances'!I21:J21)+SUM('7. Allocating Def-Var Balances'!M21:R21)+SUM('7. Allocating Def-Var Balances'!V21:W21) -> -753270.6917 | F22: -0.5367 | G22: 1023222.88 | H22: 943352.8402 | I22: 1.0847 | J22: 175551 | K22: 0.1251
A23: GENERAL SERVICE 1,000 TO 4,999 KW | B23: $/kW | C23: 221369807 | D23: 526573 | E23: =SUM('7. Allocating Def-Var Balances'!F22:G22)+SUM('7. Allocating Def-Var Balances'!I22:J22)+SUM('7. Allocating Def-Var Balances'!M22:R22)+SUM('7. Allocating Def-Var Balances'!V22:W22) -> -383820.089 | F23: -0.7289 | G23: 775562.6553 | H23: 526573 | I23: 1.4728 | J23: 30406 | K23: 0.0577
A24: GENERAL SERVICE GREATER THAN 50 kW - WMP | B24: $/kW | C24: 45894937 | D24: 79211 | E24: =SUM('7. Allocating Def-Var Balances'!F23:G23)+SUM('7. Allocating Def-Var Balances'!I23:J23)+SUM('7. Allocating Def-Var Balances'!M23:R23)+SUM('7. Allocating Def-Var Balances'!V23:W23) -> -3223.195936 | F24: -0.0407 | G24: 0 | H24: 0 | I24: 0 | K24: 0
A25: LARGE USE | B25: $/kW | C25: 207072349 | D25: 429057 | E25: =SUM('7. Allocating Def-Var Balances'!F24:G24)+SUM('7. Allocating Def-Var Balances'!I24:J24)+SUM('7. Allocating Def-Var Balances'!M24:R24)+SUM('7. Allocating Def-Var Balances'!V24:W24) -> -359198.9455 | F25: -0.8372 | G25: 0 | H25: 0 | I25: 0 | J25: 8117 | K25: 0.0189
A26: UNMETERED SCATTERED LOAD | B26: $/kWh | C26: 1746895 | E26: =SUM('7. Allocating Def-Var Balances'!F25:G25)+SUM('7. Allocating Def-Var Balances'!I25:J25)+SUM('7. Allocating Def-Var Balances'!M25:R25)+SUM('7. Allocating Def-Var Balances'!V25:W25) -> -3033.913091 | F26: -0.0017 | G26: 12.24112698 | H26: 3494 | I26: 0.0035 | K26: 0
A27: STREET LIGHTING | B27: $/kW | C27: 9594439 | D27: 25751 | E27: =SUM('7. Allocating Def-Var Balances'!F26:G26)+SUM('7. Allocating Def-Var Balances'!I26:J26)+SUM('7. Allocating Def-Var Balances'!M26:R26)+SUM('7. Allocating Def-Var Balances'!V26:W26) -> -16664.87439 | F27: -0.6472 | G27: 33613.8369 | H27: 25751 | I27: 1.3053 | K27: 0
A28: EMBEDDED DISTRIBUTOR | B28: $/kW | C28: 43430869 | D28: 102844 | E28: =SUM('7. Allocating Def-Var Balances'!F27:G27)+SUM('7. Allocating Def-Var Balances'!I27:J27)+SUM('7. Allocating Def-Var Balances'!M27:R27)+SUM('7. Allocating Def-Var Balances'!V27:W27) -> -75437.79338 | F28: -0.7335 | G28: 44191.29873 | H28: 29868.86385 | I28: 1.4795 | K28: 0
A29: microFIT
A30: Total | C30: =SUM(C20:C29) -> 1519910890 | D30: =SUM(D20:D29) -> 2567026 | E30: =SUM(E20:E29) -> -2490821.722 | G30: =SUM(G20:G29) -> 2064248.272 | H30: =SUM(H20:H29) -> 55088886.7 | J30: =SUM(J20:J29) -> 282030
A34: One or more rate classes appear to have negligible rate riders in columns F and/or I. As per Appendix B of the Filing Requirements, please provide details of the Applicant's proposal in the Manager's Summary.

Sheet 9. STS - Billing Det & Rates
A11: Shared Tax Savings
A13: ="Enter your " & '1. Information Sheet'!F32 & " Board-Approved Billing Determinents into columns B, C and D." -> Enter your 2014 Board-Approved Billing Determinents into columns B, C and D.
A14: ="Enter your " & '1. Information Sheet'!F32 & " Board-Approved Base monthly service and volumetric charges into columns G, H and I." -> Enter your 2014 Board-Approved Base monthly service and volumetric charges into columns G, H and I.
A16: Rate Class | B16: Units | C16: Re-based Billed Customers or Connections | D16: Re-based Billed kWh | E16: Re-based Billed kW (if applicable) | G16: ='1. Information Sheet'!F32 &" Base Monthly Service Charge" -> 2014 Base Monthly Service Charge | H16: ='1. Information Sheet'!F32 &" Base Distribution Volumetric Rate kWh" -> 2014 Base Distribution Volumetric Rate kWh | I16: ='1. Information Sheet'!F32 &" Base Distribution Volumetric Rate kW" -> 2014 Base Distribution Volumetric Rate kW
A17: RESIDENTIAL | B17: $/kWh | C17: 48091 | D17: 400646088 | E17: 0 | G17: 11 | H17: 0.0178 | I17: 0
A18: GENERAL SERVICE LESS THAN 50 KW | B18: $/kWh | C18: 4740 | D18: 155607417 | E18: 0 | G18: 13 | H18: 0.0139 | I18: 0
A19: GENERAL SERVICE 50 TO 999 KW | B19: $/kW | C19: 773 | D19: 434548089 | E19: 1403590 | G19: 109.35 | H19: 0 | I19: 3.9801
A20: GENERAL SERVICE 1,000 TO 4,999 KW | B20: $/kW | C20: 27 | D20: 221369807 | E20: 526573 | G20: 991.12 | H20: 0 | I20: 3.4499
A21: GENERAL SERVICE GREATER THAN 50 kW - WMP | B21: $/kW | C21: 0 | D21: 0 | E21: 0 | G21: 0 | H21: 0 | I21: 0
A22: LARGE USE | B22: $/kW | C22: 3 | D22: 252967286 | E22: 508268 | G22: 8490.71 | H22: 0 | I22: 2.3578
A23: UNMETERED SCATTERED LOAD | B23: $/kWh | C23: 482 | D23: 1746895 | E23: 0 | G23: 5.58 | H23: 0.0119 | I23: 0
A24: STREET LIGHTING | B24: $/kW | C24: 12997 | D24: 9594439 | E24: 25751 | G24: 2.43 | H24: 0 | I24: 15.4807
A25: EMBEDDED DISTRIBUTOR | B25: $/kW | C25: 2 | D25: 0 | E25: 0 | G25: 0 | H25: 0 | I25: 1.9135
A26: microFIT

Sheet 10. STS - Rebased Rev
A12: Calculation of Rebased Revenue Requirement. No input required.
A15: Rate Class | C15: Re-based Billed Customers or Connections | D15: Re-based Billed kWh | E15: Re-based Billed kW | G15: Rate ReBal Base Service Charge | H15: Rate ReBal Base Distribution Volumetric Rate kWh | I15: Rate ReBal Base Distribution Volumetric Rate kW | K15: Service Charge Revenue | L15: Distribution Volumetric Rate Revenue kWh | M15: Distribution Volumetric Rate Revenue kW | N15: Revenue Requirement from Rates | P15: Service Charge % Revenue | Q15: Distribution Volumetric Rate % Revenue kWh | R15: Distribution Volumetric Rate % Revenue kW | S15: Total % Revenue
C16: A | D16: B | E16: C | G16: D | H16: E | I16: F | K16: G = A * D *12 | L16: H = B * E | M16: I = C * F | N16: J = G + H + I | P16: K = G / J | Q16: L = H / J | R16: M = I / J | S16: N = J / R
A17: RESIDENTIAL | C17: 48091 | D17: 400646088 | E17: 0 | G17: 11 | H17: 0.0178 | I17: 0 | K17: =G17*C17*12 -> 6348012 | L17: =H17*D17 -> 7131500.366 | M17: 0 | N17: =SUM(K17,L17,M17) -> 13479512.37 | P17: =IF(ISERROR(K17/N17),0,K17/N17) -> 0.4709378075 | Q17: =IF(ISERROR(L17/N17),0,L17/N17) -> 0.5290621925 | R17: =IF(ISERROR(M17/N17),0,M17/N17) -> 0 | S17: =N17/N27 -> 0.4909646201
A18: GENERAL SERVICE LESS THAN 50 KW | C18: 4740 | D18: 155607417 | E18: 0 | G18: 13 | H18: 0.0139 | I18: 0 | K18: 739440 | L18: =H18*D18 -> 2162943.096 | M18: 0 | N18: 2902383.096 | P18: 0.2547699513 | Q18: 0.7452300487 | R18: 0 | S18: =N18/N27 -> 0.105713573
A19: GENERAL SERVICE 50 TO 999 KW | C19: 773 | D19: 434548089 | E19: 1403590 | G19: 109.35 | H19: 0 | I19: 3.9801 | K19: 1014330.6 | L19: 0 | M19: =I19*E19 -> 5586428.559 | N19: 6600759.159 | P19: 0.1536687789 | Q19: 0 | R19: 0.8463312211 | S19: =N19/N27 -> 0.2404196179
A20: GENERAL SERVICE 1,000 TO 4,999 KW | C20: 27 | D20: 221369807 | E20: 526573 | G20: 991.12 | H20: 0 | I20: 3.4499 | K20: 321122.88 | L20: 0 | M20: =I20*E20 -> 1816624.193 | N20: 2137747.073 | P20: 0.150215563 | Q20: 0 | R20: 0.849784437 | S20: =N20/N27 -> 0.07786321574
A21: GENERAL SERVICE GREATER THAN 50 kW - WMP | C21: 0 | D21: 0 | E21: 0 | G21: 0 | H21: 0 | I21: 0 | K21: 0 | L21: 0 | M21: 0 | N21: 0 | P21: 0 | Q21: 0 | R21: 0 | S21: =N21/N27 -> 0
A22: LARGE USE | C22: 3 | D22: 252967286 | E22: 508268 | G22: 8490.71 | H22: 0 | I22: 2.3578 | K22: 305665.56 | L22: 0 | M22: =I22*E22 -> 1198394.29 | N22: 1504059.85 | P22: 0.2032269925 | Q22: 0 | R22: 0.7967730075 | S22: =N22/N27 -> 0.05478241
A23: UNMETERED SCATTERED LOAD | C23: 482 | D23: 1746895 | E23: 0 | G23: 5.58 | H23: 0.0119 | I23: 0 | K23: 32274.72 | L23: =H23*D23 -> 20788.0505 | M23: 0 | N23: 53062.7705 | P23: 0.6082366167 | Q23: 0.3917633833 | R23: 0 | S23: =N23/N27 -> 0.001932706633
A24: STREET LIGHTING | C24: 12997 | D24: 9594439 | E24: 25751 | G24: 2.43 | H24: 0 | I24: 15.4807 | K24: 378992.52 | L24: 0 | M24: =I24*E24 -> 398643.5057 | N24: 777636.0257 | P24: 0.4873649207 | Q24: 0 | R24: 0.5126350793 | S24: =N24/N27 -> 0.02832385665
A25: EMBEDDED DISTRIBUTOR | C25: 2 | D25: 0 | E25: 0 | G25: 0 | H25: 0 | I25: 1.9135 | K25: 0 | L25: 0 | M25: 0 | N25: 0 | P25: 0 | Q25: 0 | R25: 0 | S25: =N25/N27 -> 0
A26: microFIT | K26: 0 | L26: 0 | M26: 0 | N26: 0 | P26: 0 | Q26: 0 | R26: 0 | S26: =N26/N27 -> 0
A27: Total | C27: =SUM(C17:C26) -> 67115 | D27: =SUM(D17:D26) -> 1476480021 | E27: =SUM(E17:E26) -> 2464182 | K27: =SUM(K17:K26) -> 9139838.28 | L27: =SUM(L17:L26) -> 9315231.513 | M27: =SUM(M17:M26) -> 9000090.548 | N27: =SUM(N17:N26) -> 27455160.34 | S27: =SUM(S17:S26) -> 1

Sheet 9. STS - Billing Det & Rate HID (hidden)
A11: Shared Tax Savings
A12: ="Enter your " & '1. Information Sheet'!F32 & " Board-Approved Billing Determinents into columns B, C and D." -> Enter your 2014 Board-Approved Billing Determinents into columns B, C and D.
A16: Rate Class | B16: Units | C16: Re-based Billed Customers or Connections | D16: Re-based Billed kWh | E16: Re-based Billed kW (if applicable) | G16: ='1. Information Sheet'!F32 &" Base Monthly Service Charge" -> 2014 Base Monthly Service Charge | H16: ='1. Information Sheet'!F32 &" Base Distribution Volumetric Rate kWh" -> 2014 Base Distribution Volumetric Rate kWh | I16: ='1. Information Sheet'!F32 &" Base Distribution Volumetric Rate kW" -> 2014 Base Distribution Volumetric Rate kW
A17: RESIDENTIAL | B17: $/kWh | C17: 48091 | D17: 400646088 | E17: 0 | G17: 11 | H17: 0.0178 | I17: 0
A18: GENERAL SERVICE LESS THAN 50 KW | B18: $/kWh | C18: 4740 | D18: 155607417 | E18: 0 | G18: 13 | H18: 0.0139 | I18: 0
A19: GENERAL SERVICE 50 TO 999 KW | B19: $/kW | C19: 773 | D19: 434548089 | E19: 1403590 | G19: 109.35 | H19: 0 | I19: 3.9801
A20: GENERAL SERVICE 1,000 TO 4,999 KW | B20: $/kW | C20: 27 | D20: 221369807 | E20: 526573 | G20: 991.12 | H20: 0 | I20: 3.4499
A21: GENERAL SERVICE GREATER THAN 50 kW - WMP | B21: $/kW | C21: 0 | D21: 0 | E21: 0 | G21: 0 | H21: 0 | I21: 0
A22: LARGE USE | B22: $/kW | C22: 3 | D22: 252967286 | E22: 508268 | G22: 8490.71 | H22: 0 | I22: 2.3578
A23: UNMETERED SCATTERED LOAD | B23: $/kWh | C23: 482 | D23: 1746895 | E23: 0 | G23: 5.58 | H23: 0.0119 | I23: 0
A24: STREET LIGHTING | B24: $/kW | C24: 12997 | D24: 9594439 | E24: 25751 | G24: 2.43 | H24: 0 | I24: 15.4807
A25: EMBEDDED DISTRIBUTOR | B25: $/kW | C25: 2 | D25: 0 | E25: 0 | G25: 0 | H25: 0 | I25: 1.9135
A26: microFIT | B26: 0 | C26: 0 | D26: 0 | E26: 0 | G26: 0 | H26: 0 | I26: 0

Sheet 11. STS - Tax Change
T1: Rate Base | U1: Federal Tax Rate
T2: 500000 | U2: 0.11
T3: 10000000 | U3: 0.11
T4: =T3+100000 -> 10100000 | U4: 0.11
T5: =T4+100000 -> 10200000 | U5: 0.11
T6: 10300000 | U6: 0.11
T7: 10400000 | U7: 0.11
T8: 10500000 | U8: 0.11
T9: 10600000 | U9: 0.11
T10: 10700000 | U10: 0.11
T11: 10800000 | U11: 0.11
T12: 10900000 | U12: 0.11
A13: Summary - Sharing of Tax Change Forecast Amounts | T13: 11000000 | U13: 0.11
T14: 11100000 | U14: 0.111
A15: ="For the " & '1. Information Sheet'!F32 & " year, enter any Tax Credits from the Cost of Service Tax Calculation (Positive #)" -> For the 2014 year, enter any Tax Credits from the Cost of Service Tax Calculation (Positive #) | L15: 0 | T15: 11200000 | U15: =U14+0.13% -> 0.1123 | V15: =U15-U14 -> 0.0013
T16: 11300000 | U16: =U15+0.13% -> 0.1136 | V16: =U16-U15 -> 0.0013
T17: 11400000 | U17: 0.1149 | V17: 0.0013
A18: 1. Tax Related Amounts Forecast from Capital Tax Rate Changes | L18: ='1. Information Sheet'!F32 -> 2014 | N18: 2015 | T18: 11500000 | U18: 0.1162 | V18: 0.0013
A19: Taxable Capital (if you are not claiming capital tax, please enter your Board-Approved Rate Base) | L19: 131858418 | N19: =L19 -> 131858418 | T19: 11600000 | U19: =U18+0.12% -> 0.1174 | V19: 0.0012
T20: 11700000 | U20: =U19+0.12% -> 0.1186 | V20: 0.0012
A21: Deduction from taxable capital up to $15,000,000 | N21: =L21 -> 0 | T21: 11800000 | U21: 0.1198 | V21: 0.0012
T22: 11900000 | U22: 0.121 | V22: 0.0012
A23: Net Taxable Capital | L23: =L19-L21 -> 131858418 | N23: =N19-N21 -> 131858418 | T23: 12000000 | U23: =U22+0.112% -> 0.12212 | V23: 0.00112
T24: 12100000 | U24: =U23+0.112% -> 0.12324 | V24: 0.00112
A25: Rate | L25: 0 | N25: 0 | T25: 12200000 | U25: 0.12436 | V25: 0.00112
T26: 12300000 | U26: 0.12548 | V26: 0.00112
A27: Ontario Capital Tax (Deductible, not grossed-up) | L27: =IF(L23>0, L23*L25, 0)*181/365 -> 0 | N27: 0 | T27: 12400000 | U27: 0.1266 | V27: 0.00112
T28: 12500000 | U28: 0.12772 | V28: 0.00112
A29: 2. Tax Related Amounts Forecast from lncome Tax Rate Changes | T29: 12600000 | U29: =U28+0.102% -> 0.12874 | V29: 0.00102
A30: Regulatory Taxable Income | N30: =L30 -> 0 | T30: 12700000 | U30: =U29+0.102% -> 0.12976 | V30: 0.00102
T31: 12800000 | U31: 0.13078 | V31: 0.00102
A32: Corporate Tax Rate | N32: =IF(N30=0,0,IF(N30<=500000,4.5%+11%,IF(N30>500000,(11.5%*N30-35000)/N30+VLOOKUP(N19,T:U,2,TRUE),""))) -> 0 | T32: 12900000 | U32: 0.1318 | V32: 0.00102
T33: 13000000 | U33: 0.13282 | V33: 0.00102
A34: Tax Impact | N34: =N30*N32-L15 -> 0 | T34: 13100000 | U34: =U33+0.096% -> 0.13378 | V34: 0.00096
T35: 13200000 | U35: =U34+0.096% -> 0.13474 | V35: 0.00096
A36: Grossed-up Tax Amount | N36: =N34/(1-N32) -> 0 | T36: 13300000 | U36: 0.1357 | V36: 0.00096
T37: 13400000 | U37: 0.13666 | V37: 0.00096
A38: Tax Related Amounts Forecast from Capital Tax Rate Changes | L38: =L27 -> 0 | N38: =N27 -> 0 | T38: 13500000 | U38: 0.13762 | V38: 0.00096
T39: 13600000 | U39: =U38+0.088% -> 0.1385 | V39: 0.00088
A40: Tax Related Amounts Forecast from lncome Tax Rate Changes | L40: =L36 -> 0 | N40: =N36 -> 0 | T40: 13700000 | U40: =U39+0.088% -> 0.13938 | V40: 0.00088
T41: 13800000 | U41: 0.14026 | V41: 0.00088
A42: Total Tax Related Amounts | L42: =SUM(L40,L38) -> 0 | N42: =SUM(N40,N38) -> 0 | T42: 13900000 | U42: 0.14114 | V42: 0.00088
T43: 14000000 | U43: 0.14202 | V43: 0.00088
A44: Incremental Tax Savings | N44: =N42-L42 -> 0 | T44: 14100000 | U44: =U43+0.082% -> 0.14284 | V44: 0.00082
T45: 14200000 | U45: =U44+0.082% -> 0.14366 | V45: 0.00082
A46: Sharing of Tax Savings (50%) | N46: =0.5*N44 -> 0 | T46: 14300000 | U46: 0.14448 | V46: 0.00082
T47: 14400000 | U47: 0.1453 | V47: 0.00082
T48: 14500000 | U48: 0.14612 | V48: 0.00082
T49: 14600000 | U49: =U48+0.076% -> 0.14688 | V49: 0.00076
T50: 14700000 | U50: =U49+0.076% -> 0.14764 | V50: 0.00076
T51: 14800000 | U51: 0.1484 | V51: 0.00076
T52: 14900000 | U52: 0.14916 | V52: 0.00076
T53: 15000000 | U53: 0.15 | V53: 0.00084

Sheet 12. STS - Tax Change Rate Rider
A11: This worksheet calculates a tax change volumetric rate rider. If the rate riders are material (round to 4 decimal places), then the outputs in columns M and O will appear on Sheet 27 - Final Tariff Schedule.
A15: Rate Class | C15: Total Revenue $ by Rate Class | E15: Total Revenue % by Rate Class | G15: Allocation of Tax Savings by Rate Class | I15: Billed kWh | K15: Billed kW | M15: Distribution Volumetric Rate kWh Rate Rider | O15: Distribution Volumetric Rate kW Rate Rider
A17: RESIDENTIAL | C17: 13479512.37 | E17: =C17/C27 -> 0.4909646201 | G17: =E17*G27 -> 0 | I17: 400646088 | K17: 0 | M17: =ROUND(G17/I17,4) -> 0
A18: GENERAL SERVICE LESS THAN 50 KW | C18: 2902383.096 | E18: =C18/C27 -> 0.105713573 | G18: =E18*G27 -> 0 | I18: 155607417 | K18: 0 | M18: =ROUND(G18/I18,4) -> 0
A19: GENERAL SERVICE 50 TO 999 KW | C19: 6600759.159 | E19: =C19/C27 -> 0.2404196179 | G19: =E19*G27 -> 0 | I19: 434548089 | K19: 1403590 | O19: =ROUND(G19/K19,4) -> 0
A20: GENERAL SERVICE 1,000 TO 4,999 KW | C20: 2137747.073 | E20: =C20/C27 -> 0.07786321574 | G20: =E20*G27 -> 0 | I20: 221369807 | K20: 526573 | O20: =ROUND(G20/K20,4) -> 0
A21: GENERAL SERVICE GREATER THAN 50 kW - WMP | C21: 0 | E21: =C21/C27 -> 0 | G21: =E21*G27 -> 0 | I21: 0 | K21: 0
A22: LARGE USE | C22: 1504059.85 | E22: =C22/C27 -> 0.05478241 | G22: =E22*G27 -> 0 | I22: 252967286 | K22: 508268 | O22: =ROUND(G22/K22,4) -> 0
A23: UNMETERED SCATTERED LOAD | C23: 53062.7705 | E23: =C23/C27 -> 0.001932706633 | G23: =E23*G27 -> 0 | I23: 1746895 | K23: 0 | M23: =ROUND(G23/I23,4) -> 0
A24: STREET LIGHTING | C24: 777636.0257 | E24: =C24/C27 -> 0.02832385665 | G24: =E24*G27 -> 0 | I24: 9594439 | K24: 25751 | O24: =ROUND(G24/K24,4) -> 0
A25: EMBEDDED DISTRIBUTOR | C25: 0 | E25: =C25/C27 -> 0 | G25: =E25*G27 -> 0 | I25: 0 | K25: 0
A26: microFIT | C26: 0 | E26: =C26/C27 -> 0 | G26: =E26*G27 -> 0
A27: Total | C27: =SUM(C17:C26) -> 27455160.34 | E27: =SUM(E17:E26) -> 1 | G27: 0 | I27: =SUM(I17:I26) -> 1476480021 | K27: =SUM(K17:K26) -> 2464182
A29: One or more rate classes appear to have negligible rate riders in columns M and/or O. As per Appendix B of the Filing Requirements, please provide details of the Applicant's proposal in the Manager's Summary.

Sheet 13. RTSR Rate Sheet
A13: No input required. This sheet consolidates all Current Retail Transmission Rates entered on Sheet 4.
A15: Rate Class | B15: Rate Description | C15: Unit | D15: RTSR-Network | E15: RTSR-Connection
A17: RESIDENTIAL | B17: Retail Transmission Rate - Network Service Rate | C17: $/kWh | D17: 0.0067
A18: RESIDENTIAL | B18: Retail Transmission Rate - Line and Transformation Connection Service Rate | C18: $/kWh | E18: 0.0042
A19: GENERAL SERVICE LESS THAN 50 KW | B19: Retail Transmission Rate - Network Service Rate | C19: $/kWh | D19: 0.0058
A20: GENERAL SERVICE LESS THAN 50 KW | B20: Retail Transmission Rate - Line and Transformation Connection Service Rate | C20: $/kWh | E20: 0.0039
A21: GENERAL SERVICE 50 TO 999 KW | B21: Retail Transmission Rate - Network Service Rate | C21: $/kW | D21: 3.7803
A22: GENERAL SERVICE 50 TO 999 KW | B22: Retail Transmission Rate - Line and Transformation Connection Service Rate | C22: $/kW | E22: 2.394
A23: GENERAL SERVICE 1,000 TO 4,999 KW | B23: Retail Transmission Rate - Network Service Rate | C23: $/kW | D23: 2.8711
A24: GENERAL SERVICE 1,000 TO 4,999 KW | B24: Retail Transmission Rate - Line and Transformation Connection Service Rate | C24: $/kW | E24: 1.8788
A25: LARGE USE | B25: Retail Transmission Rate - Network Service Rate | C25: $/kW | D25: 2.7207
A26: LARGE USE | B26: Retail Transmission Rate - Line and Transformation Connection Service Rate | C26: $/kW | E26: 1.9124
A27: UNMETERED SCATTERED LOAD | B27: Retail Transmission Rate - Network Service Rate | C27: $/kWh | D27: 0.0058
A28: UNMETERED SCATTERED LOAD | B28: Retail Transmission Rate - Line and Transformation Connection Service Rate | C28: $/kWh | E28: 0.0039
A29: STREET LIGHTING | B29: Retail Transmission Rate - Network Service Rate | C29: $/kW | D29: 1.8997
A30: STREET LIGHTING | B30: Retail Transmission Rate - Line and Transformation Connection Service Rate | C30: $/kW | E30: 1.203
A31: EMBEDDED DISTRIBUTOR | B31: Retail Transmission Rate - Network Service Rate | C31: $/kW | D31: 2.7207
A32: EMBEDDED DISTRIBUTOR | B32: Retail Transmission Rate - Line and Transformation Connection Service Rate | C32: $/kW | E32: 1.9124

Sheet 14. RTSR RRR Data
A12: In the green shaded cells, enter the most recent reported RRR billing determinants. Please ensure that billing determinants are non-loss adjusted.
A14: Rate Class | B14: Rate Description | C14: Unit | D14: Non-Loss Adjusted Metered kWh | E14: Non-Loss Adjusted Metered kW | F14: Applicable Loss Factor | H14: Load Factor | I14: Loss Adjusted Billed kWh | J14: Billed kW
A15: RESIDENTIAL | B15: Retail Transmission Rate - Network Service Rate | C15: $/kWh | D15: 384916688 | E15: 0 | F15: 1.0335 | H15: =IF(C15="$/kW", D15/(E15* 30.4 * 24), "" ) ->  | I15: =IF(OR(F15=0, OR(ISBLANK(F15), TRIM(F15)="")), F15, F15 * D15) -> 397811397 | J15: =IF(OR(F15=0, OR(ISBLANK(F15), TRIM(F15)="")), E15, E15) -> 0
A16: RESIDENTIAL | B16: Retail Transmission Rate - Line and Transformation Connection Service Rate | C16: $/kWh | D16: 384916688 | E16: 0 | F16: 1.0335 | H16: =IF(C16="$/kW", D16/(E16* 30.4 * 24), "" ) ->  | I16: 397811397 | J16: 0
A17: GENERAL SERVICE LESS THAN 50 KW | B17: Retail Transmission Rate - Network Service Rate | C17: $/kWh | D17: 156590626 | E17: 0 | F17: 1.0335 | H17: =IF(C17="$/kW", D17/(E17* 30.4 * 24), "" ) ->  | I17: 161836412 | J17: 0
A18: GENERAL SERVICE LESS THAN 50 KW | B18: Retail Transmission Rate - Line and Transformation Connection Service Rate | C18: $/kWh | D18: 156590626 | E18: 0 | F18: 1.0335 | H18: =IF(C18="$/kW", D18/(E18* 30.4 * 24), "" ) ->  | I18: 161836412 | J18: 0
A19: GENERAL SERVICE 50 TO 999 KW | B19: Retail Transmission Rate - Network Service Rate | C19: $/kW | D19: 429293182 | E19: 1243381 | F19: 0 | H19: 0 | I19: 0 | J19: 1243381
A20: GENERAL SERVICE 50 TO 999 KW | B20: Retail Transmission Rate - Line and Transformation Connection Service Rate | C20: $/kW | D20: 429293182 | E20: 1243381 | F20: 0 | H20: 0 | I20: 0 | J20: 1243381
A21: GENERAL SERVICE 1,000 TO 4,999 KW | B21: Retail Transmission Rate - Network Service Rate | C21: $/kW | D21: 234825352 | E21: 630469 | F21: 0 | H21: 0 | I21: 0 | J21: 630469
A22: GENERAL SERVICE 1,000 TO 4,999 KW | B22: Retail Transmission Rate - Line and Transformation Connection Service Rate | C22: $/kW | D22: 234825352 | E22: 630469 | F22: 0 | H22: 0 | I22: 0 | J22: 630469
A23: LARGE USE | B23: Retail Transmission Rate - Network Service Rate | C23: $/kW | D23: 232484435 | E23: 477382 | F23: 0 | H23: 0 | I23: 0 | J23: 477382
A24: LARGE USE | B24: Retail Transmission Rate - Line and Transformation Connection Service Rate | C24: $/kW | D24: 232484435 | E24: 477382 | F24: 0 | H24: 0 | I24: 0 | J24: 477382
A25: UNMETERED SCATTERED LOAD | B25: Retail Transmission Rate - Network Service Rate | C25: $/kWh | D25: 1988577 | E25: 0 | F25: 1.0335 | H25: =IF(C25="$/kW", D25/(E25* 30.4 * 24), "" ) ->  | I25: 2055194.33 | J25: 0
A26: UNMETERED SCATTERED LOAD | B26: Retail Transmission Rate - Line and Transformation Connection Service Rate | C26: $/kWh | D26: 1988577 | E26: 0 | F26: 1.0335 | H26: =IF(C26="$/kW", D26/(E26* 30.4 * 24), "" ) ->  | I26: 2055194.33 | J26: 0
A27: STREET LIGHTING | B27: Retail Transmission Rate - Network Service Rate | C27: $/kW | D27: 9566350 | E27: 26970 | F27: 0 | H27: 0 | I27: 0 | J27: 26970
A28: STREET LIGHTING | B28: Retail Transmission Rate - Line and Transformation Connection Service Rate | C28: $/kW | D28: 9566350 | E28: 26970 | F28: 0 | H28: 0 | I28: 0 | J28: 26970
A29: EMBEDDED DISTRIBUTOR | B29: Retail Transmission Rate - Network Service Rate | C29: $/kW | D29: 13176711 | E29: 119938 | F29: 0 | H29: 0 | I29: 0 | J29: 119938
A30: EMBEDDED DISTRIBUTOR | B30: Retail Transmission Rate - Line and Transformation Connection Service Rate | C30: $/kW | D30: 13176711 | E30: 119938 | F30: 0 | H30: 0 | I30: 0 | J30: 119938

Sheet 14. RTSR RRR Data Copy (hidden)
A12: In the green shaded cells, enter the most recent reported RRR billing determinants. Please ensure that billing determinants are non-loss adjusted.
A14: Rate Class | B14: Rate Description | C14: Unit | D14: Non-Loss Adjusted Metered kWh | E14: Non-Loss Adjusted Metered kW | F14: Applicable Loss Factor | H14: Load Factor | I14: Loss Adjusted Billed kWh | J14: Billed kW
A15: RESIDENTIAL | B15: Retail Transmission Rate - Network Service Rate | C15: $/kWh | D15: 384916688 | E15: 0 | F15: 1.0335
A16: RESIDENTIAL | B16: Retail Transmission Rate - Line and Transformation Connection Service Rate | C16: $/kWh | D16: 384916688 | E16: 0 | F16: 1.0335
A17: GENERAL SERVICE LESS THAN 50 KW | B17: Retail Transmission Rate - Network Service Rate | C17: $/kWh | D17: 156590626 | E17: 0 | F17: 1.0335
A18: GENERAL SERVICE LESS THAN 50 KW | B18: Retail Transmission Rate - Line and Transformation Connection Service Rate | C18: $/kWh | D18: 156590626 | E18: 0 | F18: 1.0335
A19: GENERAL SERVICE 50 TO 999 KW | B19: Retail Transmission Rate - Network Service Rate | C19: $/kW | D19: 429293182 | E19: 1243381 | F19: 0
A20: GENERAL SERVICE 50 TO 999 KW | B20: Retail Transmission Rate - Line and Transformation Connection Service Rate | C20: $/kW | D20: 429293182 | E20: 1243381 | F20: 0
A21: GENERAL SERVICE 1,000 TO 4,999 KW | B21: Retail Transmission Rate - Network Service Rate | C21: $/kW | D21: 234825352 | E21: 630469 | F21: 0
A22: GENERAL SERVICE 1,000 TO 4,999 KW | B22: Retail Transmission Rate - Line and Transformation Connection Service Rate | C22: $/kW | D22: 234825352 | E22: 630469 | F22: 0
A23: LARGE USE | B23: Retail Transmission Rate - Network Service Rate | C23: $/kW | D23: 232484435 | E23: 477382 | F23: 0
A24: LARGE USE | B24: Retail Transmission Rate - Line and Transformation Connection Service Rate | C24: $/kW | D24: 232484435 | E24: 477382 | F24: 0
A25: UNMETERED SCATTERED LOAD | B25: Retail Transmission Rate - Network Service Rate | C25: $/kWh | D25: 1988577 | E25: 0 | F25: 1.0335
A26: UNMETERED SCATTERED LOAD | B26: Retail Transmission Rate - Line and Transformation Connection Service Rate | C26: $/kWh | D26: 1988577 | E26: 0 | F26: 1.0335
A27: STREET LIGHTING | B27: Retail Transmission Rate - Network Service Rate | C27: $/kW | D27: 9566350 | E27: 26970 | F27: 0
A28: STREET LIGHTING | B28: Retail Transmission Rate - Line and Transformation Connection Service Rate | C28: $/kW | D28: 9566350 | E28: 26970 | F28: 0
A29: EMBEDDED DISTRIBUTOR | B29: Retail Transmission Rate - Network Service Rate | C29: $/kW | D29: 13176711 | E29: 119938 | F29: 0
A30: EMBEDDED DISTRIBUTOR | B30: Retail Transmission Rate - Line and Transformation Connection Service Rate | C30: $/kW | D30: 13176711 | E30: 119938 | F30: 0

Sheet 15. RTSR - UTRs & Sub-Tx
B18: Uniform Transmission Rates | C18: Unit | E18: Effective January 1, 2013 | G18: Effective January 1, 2014 | I18: Effective January 1, 2015
B20: Rate Description | E20: Rate | G20: Rate | I20: Rate
B22: Network Service Rate | C22: kW | E22: 3.63 | G22: 3.82 | I22: 3.78
B24: Line Connection Service Rate | C24: kW | E24: 0.75 | G24: 0.82 | I24: 0.86
B26: Transformation Connection Service Rate | C26: kW | E26: 1.85 | G26: 1.98 | I26: 2
B29: Hydro One Sub-Transmission Rates | C29: Unit | E29: Effective January 1, 2013 | G29: Effective January 1, 2014 | I29: Effective January 1, 2015
B33: Rate Description | E33: Rate | G33: Rate | I33: Rate
B35: Network Service Rate | C35: kW | E35: 3.18 | G35: 3.23 | I35: =+G35 -> 3.23
B37: Line Connection Service Rate | C37: kW | E37: 0.7 | G37: 0.65 | I37: =+G37 -> 0.65
B39: Transformation Connection Service Rate | C39: kW | E39: 1.63 | G39: 1.62 | I39: =+G39 -> 1.62
B41: Both Line and Transformation Connection Service Rate | C41: kW | E41: =E39+E37 -> 2.33 | G41: =G39+G37 -> 2.27 | I41: =I39+I37 -> 2.27
B44: If needed , add extra host here (I) | C44: Unit | E44: Effective January 1, 2013 | G44: Effective January 1, 2014 | I44: Effective January 1, 2015
B48: Rate Description | E48: Rate | G48: Rate | I48: Rate
B50: Network Service Rate | C50: kW
B52: Line Connection Service Rate | C52: kW
B54: Transformation Connection Service Rate | C54: kW
B56: Both Line and Transformation Connection Service Rate | C56: kW | E56: =E54+E52 -> 0 | G56: =G54+G52 -> 0 | I56: =I54+I52 -> 0
B59: If needed , add extra host here (II) | C59: Unit | E59: Effective January 1, 2013 | G59: Effective January 1, 2014 | I59: Effective January 1, 2015
B63: Rate Description | E63: Rate | G63: Rate | I63: Rate
B65: Network Service Rate | C65: kW
B67: Line Connection Service Rate | C67: kW
B69: Transformation Connection Service Rate | C69: kW
B71: Both Line and Transformation Connection Service Rate | C71: kW | E71: =E69+E67 -> 0 | G71: =G69+G67 -> 0 | I71: =I69+I67 -> 0
B75: Hydro One Sub-Transmission Rate Rider 9A | C75: Unit | E75: Effective January 1, 2013 | G75: Effective January 1, 2014 | I75: Effective January 1, 2015
B77: Rate Description | E77: Rate | G77: Rate | I77: Rate
B79: RSVA Transmission network – 4714 – which affects 1584 | C79: kW | E79: 0 | G79: 0.1465 | I79: 0
B81: RSVA Transmission connection – 4716 – which affects 1586 | C81: kW | E81: 0 | G81: 0.0667 | I81: 0
B83: RSVA LV – 4750 – which affects 1550 | C83: kW | E83: 0 | G83: 0.0475 | I83: 0
B85: RARA 1 – 2252 – which affects 1590 | C85: kW | E85: 0 | G85: 0.0419 | I85: 0
B87: RARA 1 – 2252 – which affects 1590 (2008) | C87: kW | E87: 0 | G87: -0.027 | I87: 0
B89: RARA 1 – 2252 – which affects 1590 (2009) | C89: kW | E89: 0 | G89: -0.0006 | I89: 0
B91: Hydro One Sub-Transmission Rate Rider 9A | C91: kW | E91: =SUM(E79:E89) -> 0 | G91: =SUM(G79:G89) -> 0.275 | I91: =SUM(I79:I89) -> 0
E94: Historical 2013 | G94: Current 2014 | I94: Forecast 2015
B95: Low Voltage Switchgear Credit (if applicable, enter as a negative value) | C95: $

Sheet 16. RTSR - Historical Wholesale
B13: In the green shaded cells, enter billing detail for wholesale transmission for the same reporting period as the billing determinants on Sheet "14. RTSR RRR Data". For Hydro One Sub-transmission Rates, if you are charged a combined Line and Transformer connection rate, please ensure that both the line connection and transformer connection columns are completed.
B16: IESO | D16: Network | H16: Line Connection | L16: Transformation Connection | P16: Total Line
B17: Month | D17: Units Billed | E17: Rate | F17: Amount | H17: Units Billed | I17: Rate | J17: Amount | L17: Units Billed | M17: Rate | N17: Amount | P17: Amount
B19: January | D19: =F19/E19 -> 233060 | E19: 3.63 | F19: 846007.8 | H19: =J19/I19 -> 238741 | I19: 0.75 | J19: 179055.75 | L19: =N19/M19 -> 180096 | M19: 1.85 | N19: 333177.6 | P19: =J19+N19 -> 512233.35
B20: February | D20: =F20/E20 -> 225537 | E20: 3.63 | F20: 818699.31 | H20: =J20/I20 -> 231994 | I20: 0.75 | J20: 173995.5 | L20: =N20/M20 -> 171265 | M20: 1.85 | N20: 316840.25 | P20: 490835.75
B21: March | D21: 234542 | E21: 3.63 | F21: 851387.46 | H21: 253513 | I21: 0.75 | J21: 190134.75 | L21: 170392 | M21: 1.85 | N21: 315225.2 | P21: 505359.95
B22: April | D22: 239631 | E22: 3.63 | F22: 869860.53 | H22: 274293 | I22: 0.75 | J22: 205719.75 | L22: 184820 | M22: 1.85 | N22: 341917 | P22: 547636.75
B23: May | D23: 247305 | E23: 3.63 | F23: 897717.15 | H23: 261350 | I23: 0.75 | J23: 196012.5 | L23: 168832 | M23: 1.85 | N23: 312339.2 | P23: 508351.7
B24: June | D24: 278943 | E24: 3.63 | F24: 1012563.09 | H24: 300920 | I24: 0.75 | J24: 225690 | L24: 218716 | M24: 1.85 | N24: 404624.6 | P24: 630314.6
B25: July | D25: 292941 | E25: 3.63 | F25: 1063375.83 | H25: 317602 | I25: 0.75 | J25: 238201.5 | L25: 233121 | M25: 1.85 | N25: 431273.85 | P25: 669475.35
B26: August | D26: 274719 | E26: 3.63 | F26: 997229.97 | H26: 280495 | I26: 0.75 | J26: 210371.25 | L26: 207968 | M26: 1.85 | N26: 384740.8 | P26: 595112.05
B27: September | D27: 288501 | E27: 3.63 | F27: 1047258.63 | H27: 295552 | I27: 0.75 | J27: 221664 | L27: 220117 | M27: 1.85 | N27: 407216.45 | P27: 628880.45
B28: October | D28: 215003 | E28: 3.63 | F28: 780460.89 | H28: 260407 | I28: 0.75 | J28: 195305.25 | L28: 190139 | M28: 1.85 | N28: 351757.15 | P28: 547062.4
B29: November | D29: 223821 | E29: 3.63 | F29: 812470.23 | H29: 236660 | I29: 0.75 | J29: 177495 | L29: 169163 | M29: 1.85 | N29: 312951.55 | P29: 490446.55
B30: December | D30: 234356 | E30: 3.63 | F30: 850712.28 | H30: 255119 | I30: 0.75 | J30: 191339.25 | L30: 176467 | M30: 1.85 | N30: 326463.95 | P30: 517803.2
B32: Total | D32: =SUM(D19:D30) -> 2988359 | E32: =IF(D32<>0,F32/D32,0) -> 3.63 | F32: =SUM(F19:F30) -> 10847743.17 | H32: =SUM(H19:H30) -> 3206646 | I32: =IF(H32<>0,J32/H32,0) -> 0.75 | J32: =SUM(J19:J30) -> 2404984.5 | L32: =SUM(L19:L30) -> 2291096 | M32: =IF(L32<>0,N32/L32,0) -> 1.85 | N32: =SUM(N19:N30) -> 4238527.6 | P32: =SUM(P19:P30) -> 6643512.1
B34: Hydro One | D34: Network | H34: Line Connection | L34: Transformation Connection | P34: Total Line
B36: Month | D36: Units Billed | E36: Rate | F36: Amount | H36: Units Billed | I36: Rate | J36: Amount | L36: Units Billed | M36: Rate | N36: Amount | P36: Amount
B38: January | D38: 6003 | E38: 3.18 | F38: 19089.54 | H38: 6003 | I38: 0.7 | J38: 4202.1 | M38: =IF(L38<>0,N38/L38,0) -> 0 | P38: =J38+N38 -> 4202.1
B39: February | D39: 5527 | E39: 3.18 | F39: 17575.86 | H39: 5689 | I39: 0.7 | J39: 3982.3 | M39: 0 | P39: 3982.3
B40: March | D40: 5018 | E40: 3.18 | F40: 15957.24 | H40: 5243 | I40: 0.7 | J40: 3670.1 | M40: 0 | P40: 3670.1
B41: April | D41: 4454.84 | E41: 3.18 | F41: 14166.4 | H41: 4712.44 | I41: 0.7 | J41: 3298.71 | M41: 0 | P41: 3298.71
B42: May | D42: 5258.45 | E42: 3.18 | F42: 16721.87 | H42: 5258.45 | I42: 0.7 | J42: 3680.91 | M42: 0 | P42: 3680.91
B43: June | D43: 6401.46 | E43: 3.18 | F43: 20356.65 | H43: 6401.46 | I43: 0.7 | J43: 4481.02 | M43: 0 | P43: 4481.02
B44: July | D44: 7071.47 | E44: 3.18 | F44: 22487.29 | H44: 7071.47 | I44: 0.7 | J44: 4950.03 | M44: 0 | P44: 4950.03
B45: August | D45: 3180.14 | E45: 3.18 | F45: 19652.83 | H45: 6180.14 | I45: 0.7 | J45: 4326.09 | M45: 0 | P45: 4326.09
B46: September | D46: 6719.01 | E46: 3.18 | F46: 21366.47 | H46: 6719.01 | I46: 0.7 | J46: 4703.31 | M46: 0 | P46: 4703.31
B47: October | D47: 4995.26 | E47: 3.18 | F47: 15884.94 | H47: 5132.51 | I47: 0.7 | J47: 3592.76 | M47: 0 | P47: 3592.76
B48: November | D48: 5857.12 | E48: 3.18 | F48: 18625.65 | H48: 5857.12 | I48: 0.7 | J48: 4099.99 | M48: 0 | P48: 4099.99
B49: December | D49: 5975 | E49: 3.18 | F49: 19000.5 | H49: 6106.56 | I49: 0.7 | J49: 4274.59 | M49: 0 | P49: 4274.59
B51: Total | D51: =SUM(D38:D49) -> 66460.75 | E51: =IF(D51<>0,F51/D51,0) -> 3.323544197 | F51: =SUM(F38:F49) -> 220885.24 | H51: =SUM(H38:H49) -> 70374.16 | I51: =IF(H51<>0,J51/H51,0) -> 0.6999999716 | J51: =SUM(J38:J49) -> 49261.91 | L51: =SUM(L38:L49) -> 0 | M51: =IF(L51<>0,N51/L51,0) -> 0 | N51: =SUM(N38:N49) -> 0 | P51: =SUM(P38:P49) -> 49261.91
B53: Add Extra Host Here (I) | D53: Network | H53: Line Connection | L53: Transformation Connection | P53: Total Line
B54: (if needed)
B55: Month | D55: Units Billed | E55: Rate | F55: Amount | H55: Units Billed | I55: Rate | J55: Amount | L55: Units Billed | M55: Rate | N55: Amount | P55: Amount
B57: January | E57: =IF(D57<>0,F57/D57,0) -> 0 | I57: =IF(H57<>0,J57/H57,0) -> 0 | M57: =IF(L57<>0,N57/L57,0) -> 0 | P57: =J57+N57 -> 0
B58: February | E58: 0 | I58: 0 | M58: 0 | P58: 0
B59: March | E59: 0 | I59: 0 | M59: 0 | P59: 0
B60: April | E60: 0 | I60: 0 | M60: 0 | P60: 0
B61: May | E61: 0 | I61: 0 | M61: 0 | P61: 0
B62: June | E62: 0 | I62: 0 | M62: 0 | P62: 0
B63: July | E63: 0 | I63: 0 | M63: 0 | P63: 0
B64: August | E64: 0 | I64: 0 | M64: 0 | P64: 0
B65: September | E65: 0 | I65: 0 | M65: 0 | P65: 0
B66: October | E66: 0 | I66: 0 | M66: 0 | P66: 0
B67: November | E67: 0 | I67: 0 | M67: 0 | P67: 0
B68: December | E68: 0 | I68: 0 | M68: 0 | P68: 0
B70: Total | D70: =SUM(D57:D68) -> 0 | E70: =IF(D70<>0,F70/D70,0) -> 0 | F70: =SUM(F57:F68) -> 0 | H70: =SUM(H57:H68) -> 0 | I70: =IF(H70<>0,J70/H70,0) -> 0 | J70: =SUM(J57:J68) -> 0 | L70: =SUM(L57:L68) -> 0 | M70: =IF(L70<>0,N70/L70,0) -> 0 | N70: =SUM(N57:N68) -> 0 | P70: =SUM(P57:P68) -> 0
B72: Add Extra Host Here (II) | D72: Network | H72: Line Connection | L72: Transformation Connection | P72: Total Line
B73: (if needed)
B74: Month | D74: Units Billed | E74: Rate | F74: Amount | H74: Units Billed | I74: Rate | J74: Amount | L74: Units Billed | M74: Rate | N74: Amount | P74: Amount
B76: January | E76: =IF(D76<>0,F76/D76,0) -> 0 | I76: =IF(H76<>0,J76/H76,0) -> 0 | M76: =IF(L76<>0,N76/L76,0) -> 0 | P76: =J76+N76 -> 0
B77: February | E77: 0 | I77: 0 | M77: 0 | P77: 0
B78: March | E78: 0 | I78: 0 | M78: 0 | P78: 0
B79: April | E79: 0 | I79: 0 | M79: 0 | P79: 0
B80: May | E80: 0 | I80: 0 | M80: 0 | P80: 0
B81: June | E81: 0 | I81: 0 | M81: 0 | P81: 0
B82: July | E82: 0 | I82: 0 | M82: 0 | P82: 0
B83: August | E83: 0 | I83: 0 | M83: 0 | P83: 0
B84: September | E84: 0 | I84: 0 | M84: 0 | P84: 0
B85: October | E85: 0 | I85: 0 | M85: 0 | P85: 0
B86: November | E86: 0 | I86: 0 | M86: 0 | P86: 0
B87: December | E87: 0 | I87: 0 | M87: 0 | P87: 0
B89: Total | D89: =SUM(D76:D87) -> 0 | E89: =IF(D89<>0,F89/D89,0) -> 0 | F89: =SUM(F76:F87) -> 0 | H89: =SUM(H76:H87) -> 0 | I89: =IF(H89<>0,J89/H89,0) -> 0 | J89: =SUM(J76:J87) -> 0 | L89: =SUM(L76:L87) -> 0 | M89: =IF(L89<>0,N89/L89,0) -> 0 | N89: =SUM(N76:N87) -> 0 | P89: =SUM(P76:P87) -> 0
B91: Total | D91: Network | H91: Line Connection | L91: Transformation Connection | P91: Total Line
B93: Month | D93: Units Billed | E93: Rate | F93: Amount | H93: Units Billed | I93: Rate | J93: Amount | L93: Units Billed | M93: Rate | N93: Amount | P93: Amount
B95: January | D95: =D19+D38+D57+D76 -> 239063 | E95: =IF(D95<>0,F95/D95,0) -> 3.618700259 | F95: =F19+F38+F57+F76 -> 865097.34 | H95: =H19+H38+H57+H76 -> 244744 | I95: =IF(H95<>0,J95/H95,0) -> 0.7487736165 | J95: =J19+J38+J57+J76 -> 183257.85 | L95: =L19+L38+L57+L76 -> 180096 | M95: =IF(L95<>0,N95/L95,0) -> 1.85 | N95: =N19+N38+N57+N76 -> 333177.6 | P95: =J95+N95 -> 516435.45
B96: February | D96: =D20+D39+D58+D77 -> 231064 | E96: 3.619236099 | F96: =F20+F39+F58+F77 -> 836275.17 | H96: =H20+H39+H58+H77 -> 237683 | I96: 0.7488032379 | J96: =J20+J39+J58+J77 -> 177977.8 | L96: =L20+L39+L58+L77 -> 171265 | M96: 1.85 | N96: =N20+N39+N58+N77 -> 316840.25 | P96: 494818.05
B97: March | D97: 239560 | E97: 3.620573969 | F97: 867344.7 | H97: 258756 | I97: 0.7489868834 | J97: 193804.85 | L97: 170392 | M97: 1.85 | N97: 315225.2 | P97: 509030.05
B98: April | D98: 244085.84 | E98: 3.621787032 | F98: 884026.93 | H98: 279005.44 | I98: 0.7491555003 | J98: 209018.46 | L98: 184820 | M98: 1.85 | N98: 341917 | P98: 550935.46
B99: May | D99: 252563.45 | E99: 3.620630855 | F99: 914439.02 | H99: 266608.45 | I99: 0.7490138066 | J99: 199693.41 | L99: 168832 | M99: 1.85 | N99: 312339.2 | P99: 512032.61
B100: June | D100: 285344.46 | E100: 3.619904658 | F100: 1032919.74 | H100: 307321.46 | I100: 0.748958501 | J100: 230171.02 | L100: 218716 | M100: 1.85 | N100: 404624.6 | P100: 634795.62
B101: July | D101: 300012.47 | E101: 3.619393287 | F101: 1085863.12 | H101: 324673.47 | I101: 0.7489109905 | J101: 243151.53 | L101: 233121 | M101: 1.85 | N101: 431273.85 | P101: 674425.38
B102: August | D102: 277899.14 | E102: 3.65917937 | F102: 1016882.8 | H102: 286675.14 | I102: 0.7489220726 | J102: 214697.34 | L102: 207968 | M102: 1.85 | N102: 384740.8 | P102: 599438.14
B103: September | D103: 295220.01 | E103: 3.619758363 | F103: 1068625.1 | H103: 302271.01 | I103: 0.7488885884 | J103: 226367.31 | L103: 220117 | M103: 1.85 | N103: 407216.45 | P103: 633583.76
B104: October | D104: 219998.26 | E104: 3.619782402 | F104: 796345.83 | H104: 265539.51 | I104: 0.7490335807 | J104: 198898.01 | L104: 190139 | M104: 1.85 | N104: 351757.15 | P104: 550655.16
B105: November | D105: 229678.12 | E105: 3.618524394 | F105: 831095.88 | H105: 242517.12 | I105: 0.7487924564 | J105: 181594.99 | L105: 169163 | M105: 1.85 | N105: 312951.55 | P105: 494546.54
B106: December | D106: 240331 | E106: 3.618812305 | F106: 869712.78 | H106: 261225.56 | I106: 0.7488311634 | J106: 195613.84 | L106: 176467 | M106: 1.85 | N106: 326463.95 | P106: 522077.79
B108: Total | D108: =SUM(D95:D106) -> 3054819.75 | E108: =IF(D108<>0,F108/D108,0) -> 3.623332738 | F108: =SUM(F95:F106) -> 11068628.41 | H108: =SUM(H95:H106) -> 3277020.16 | I108: =IF(H108<>0,J108/H108,0) -> 0.7489262471 | J108: =SUM(J95:J106) -> 2454246.41 | L108: =SUM(L95:L106) -> 2291096 | M108: =IF(L108<>0,N108/L108,0) -> 1.85 | N108: =SUM(N95:N106) -> 4238527.6 | P108: =SUM(P95:P106) -> 6692774.01
N110: Transformer Allowance Credit (if applicable) | P110: ='15. RTSR - UTRs & Sub-Tx'!E95 -> 0
N112: Total including deduction for Transformer Allowance Credit | P112: =P108+P110 -> 6692774.01

Sheet 17. RTSR - Current Wholesale
B13: The purpose of this sheet is to calculate the expected billing when current 2014 Uniform Transmission Rates are applied against historical 2013 transmission units.
B16: IESO | D16: Network | H16: Line Connection | L16: Transformation Connection | P16: Total Line
B18: Month | D18: Units Billed | E18: Rate | F18: Amount | H18: Units Billed | I18: Rate | J18: Amount | L18: Units Billed | M18: Rate | N18: Amount | P18: Amount
B20: January | D20: ='16. RTSR - Historical Wholesale'!D19 -> 233060 | E20: ='15. RTSR - UTRs & Sub-Tx'!G22 -> 3.82 | F20: =D20*E20 -> 890289.2 | H20: ='16. RTSR - Historical Wholesale'!H19 -> 238741 | I20: ='15. RTSR - UTRs & Sub-Tx'!G24 -> 0.82 | J20: =H20*I20 -> 195767.62 | L20: ='16. RTSR - Historical Wholesale'!L19 -> 180096 | M20: ='15. RTSR - UTRs & Sub-Tx'!G26 -> 1.98 | N20: =L20*M20 -> 356590.08 | P20: =J20+N20 -> 552357.7
B21: February | D21: ='16. RTSR - Historical Wholesale'!D20 -> 225537 | E21: =E20 -> 3.82 | F21: =D21*E21 -> 861551.34 | H21: ='16. RTSR - Historical Wholesale'!H20 -> 231994 | I21: =I20 -> 0.82 | J21: =H21*I21 -> 190235.08 | L21: ='16. RTSR - Historical Wholesale'!L20 -> 171265 | M21: =M20 -> 1.98 | N21: =L21*M21 -> 339104.7 | P21: 529339.78
B22: March | D22: ='16. RTSR - Historical Wholesale'!D21 -> 234542 | E22: =E21 -> 3.82 | F22: 895950.44 | H22: ='16. RTSR - Historical Wholesale'!H21 -> 253513 | I22: =I21 -> 0.82 | J22: 207880.66 | L22: ='16. RTSR - Historical Wholesale'!L21 -> 170392 | M22: =M21 -> 1.98 | N22: 337376.16 | P22: 545256.82
B23: April | D23: ='16. RTSR - Historical Wholesale'!D22 -> 239631 | E23: 3.82 | F23: 915390.42 | H23: ='16. RTSR - Historical Wholesale'!H22 -> 274293 | I23: 0.82 | J23: 224920.26 | L23: ='16. RTSR - Historical Wholesale'!L22 -> 184820 | M23: 1.98 | N23: 365943.6 | P23: 590863.86
B24: May | D24: ='16. RTSR - Historical Wholesale'!D23 -> 247305 | E24: 3.82 | F24: 944705.1 | H24: ='16. RTSR - Historical Wholesale'!H23 -> 261350 | I24: 0.82 | J24: 214307 | L24: ='16. RTSR - Historical Wholesale'!L23 -> 168832 | M24: 1.98 | N24: 334287.36 | P24: 548594.36
B25: June | D25: ='16. RTSR - Historical Wholesale'!D24 -> 278943 | E25: 3.82 | F25: 1065562.26 | H25: ='16. RTSR - Historical Wholesale'!H24 -> 300920 | I25: 0.82 | J25: 246754.4 | L25: ='16. RTSR - Historical Wholesale'!L24 -> 218716 | M25: 1.98 | N25: 433057.68 | P25: 679812.08
B26: July | D26: ='16. RTSR - Historical Wholesale'!D25 -> 292941 | E26: 3.82 | F26: 1119034.62 | H26: ='16. RTSR - Historical Wholesale'!H25 -> 317602 | I26: 0.82 | J26: 260433.64 | L26: ='16. RTSR - Historical Wholesale'!L25 -> 233121 | M26: 1.98 | N26: 461579.58 | P26: 722013.22
B27: August | D27: ='16. RTSR - Historical Wholesale'!D26 -> 274719 | E27: 3.82 | F27: 1049426.58 | H27: ='16. RTSR - Historical Wholesale'!H26 -> 280495 | I27: 0.82 | J27: 230005.9 | L27: ='16. RTSR - Historical Wholesale'!L26 -> 207968 | M27: 1.98 | N27: 411776.64 | P27: 641782.54
B28: September | D28: ='16. RTSR - Historical Wholesale'!D27 -> 288501 | E28: 3.82 | F28: 1102073.82 | H28: ='16. RTSR - Historical Wholesale'!H27 -> 295552 | I28: 0.82 | J28: 242352.64 | L28: ='16. RTSR - Historical Wholesale'!L27 -> 220117 | M28: 1.98 | N28: 435831.66 | P28: 678184.3
B29: October | D29: ='16. RTSR - Historical Wholesale'!D28 -> 215003 | E29: 3.82 | F29: 821311.46 | H29: ='16. RTSR - Historical Wholesale'!H28 -> 260407 | I29: 0.82 | J29: 213533.74 | L29: ='16. RTSR - Historical Wholesale'!L28 -> 190139 | M29: 1.98 | N29: 376475.22 | P29: 590008.96
B30: November | D30: ='16. RTSR - Historical Wholesale'!D29 -> 223821 | E30: 3.82 | F30: 854996.22 | H30: ='16. RTSR - Historical Wholesale'!H29 -> 236660 | I30: 0.82 | J30: 194061.2 | L30: ='16. RTSR - Historical Wholesale'!L29 -> 169163 | M30: 1.98 | N30: 334942.74 | P30: 529003.94
B31: December | D31: ='16. RTSR - Historical Wholesale'!D30 -> 234356 | E31: 3.82 | F31: 895239.92 | H31: ='16. RTSR - Historical Wholesale'!H30 -> 255119 | I31: 0.82 | J31: 209197.58 | L31: ='16. RTSR - Historical Wholesale'!L30 -> 176467 | M31: 1.98 | N31: 349404.66 | P31: 558602.24
B33: Total | D33: =SUM(D20:D31) -> 2988359 | E33: =IF(D33<>0,F33/D33,0) -> 3.82 | F33: =SUM(F20:F31) -> 11415531.38 | H33: =SUM(H20:H31) -> 3206646 | I33: =IF(H33<>0,J33/H33,0) -> 0.82 | J33: =SUM(J20:J31) -> 2629449.72 | L33: =SUM(L20:L31) -> 2291096 | M33: =IF(L33<>0,N33/L33,0) -> 1.98 | N33: =SUM(N20:N31) -> 4536370.08 | P33: =SUM(P20:P31) -> 7165819.8
B35: Hydro One | D35: Network | H35: Line Connection | L35: Transformation Connection | P35: Total Line
B37: Month | D37: Units Billed | E37: Rate | F37: Amount | H37: Units Billed | I37: Rate | J37: Amount | L37: Units Billed | M37: Rate | N37: Amount | P37: Amount
B39: January | D39: ='16. RTSR - Historical Wholesale'!D38 -> 6003 | E39: ='15. RTSR - UTRs & Sub-Tx'!G35+'15. RTSR - UTRs & Sub-Tx'!G79 -> 3.3765 | F39: =D39*E39 -> 20269.1295 | H39: ='16. RTSR - Historical Wholesale'!H38 -> 6003 | I39: ='15. RTSR - UTRs & Sub-Tx'!G37+'15. RTSR - UTRs & Sub-Tx'!G81 -> 0.7167 | J39: =H39*I39 -> 4302.3501 | L39: ='16. RTSR - Historical Wholesale'!L38 -> 0 | M39: ='15. RTSR - UTRs & Sub-Tx'!G39 -> 1.62 | N39: =L39*M39 -> 0 | P39: =J39+N39 -> 4302.3501
B40: February | D40: ='16. RTSR - Historical Wholesale'!D39 -> 5527 | E40: =E39 -> 3.3765 | F40: =D40*E40 -> 18661.9155 | H40: ='16. RTSR - Historical Wholesale'!H39 -> 5689 | I40: =I39 -> 0.7167 | J40: =H40*I40 -> 4077.3063 | L40: ='16. RTSR - Historical Wholesale'!L39 -> 0 | M40: =M39 -> 1.62 | N40: =L40*M40 -> 0 | P40: 4077.3063
B41: March | D41: ='16. RTSR - Historical Wholesale'!D40 -> 5018 | E41: =E40 -> 3.3765 | F41: 16943.277 | H41: ='16. RTSR - Historical Wholesale'!H40 -> 5243 | I41: =I40 -> 0.7167 | J41: 3757.6581 | L41: ='16. RTSR - Historical Wholesale'!L40 -> 0 | M41: =M40 -> 1.62 | N41: 0 | P41: 3757.6581
B42: April | D42: ='16. RTSR - Historical Wholesale'!D41 -> 4454.84 | E42: 3.3765 | F42: 15041.76726 | H42: ='16. RTSR - Historical Wholesale'!H41 -> 4712.44 | I42: 0.7167 | J42: 3377.405748 | L42: ='16. RTSR - Historical Wholesale'!L41 -> 0 | M42: =M41 -> 1.62 | N42: 0 | P42: 3377.405748
B43: May | D43: ='16. RTSR - Historical Wholesale'!D42 -> 5258.45 | E43: 3.3765 | F43: 17755.15643 | H43: ='16. RTSR - Historical Wholesale'!H42 -> 5258.45 | I43: 0.7167 | J43: 3768.731115 | L43: ='16. RTSR - Historical Wholesale'!L42 -> 0 | M43: 1.62 | N43: 0 | P43: 3768.731115
B44: June | D44: ='16. RTSR - Historical Wholesale'!D43 -> 6401.46 | E44: 3.3765 | F44: 21614.52969 | H44: ='16. RTSR - Historical Wholesale'!H43 -> 6401.46 | I44: 0.7167 | J44: 4587.926382 | L44: ='16. RTSR - Historical Wholesale'!L43 -> 0 | M44: 1.62 | N44: 0 | P44: 4587.926382
B45: July | D45: ='16. RTSR - Historical Wholesale'!D44 -> 7071.47 | E45: 3.3765 | F45: 23876.81846 | H45: ='16. RTSR - Historical Wholesale'!H44 -> 7071.47 | I45: 0.7167 | J45: 5068.122549 | L45: ='16. RTSR - Historical Wholesale'!L44 -> 0 | M45: 1.62 | N45: 0 | P45: 5068.122549
B46: August | D46: ='16. RTSR - Historical Wholesale'!D45 -> 3180.14 | E46: 3.3765 | F46: 10737.74271 | H46: ='16. RTSR - Historical Wholesale'!H45 -> 6180.14 | I46: 0.7167 | J46: 4429.306338 | L46: ='16. RTSR - Historical Wholesale'!L45 -> 0 | M46: 1.62 | N46: 0 | P46: 4429.306338
B47: September | D47: ='16. RTSR - Historical Wholesale'!D46 -> 6719.01 | E47: 3.3765 | F47: 22686.73726 | H47: ='16. RTSR - Historical Wholesale'!H46 -> 6719.01 | I47: 0.7167 | J47: 4815.514467 | L47: ='16. RTSR - Historical Wholesale'!L46 -> 0 | M47: 1.62 | N47: 0 | P47: 4815.514467
B48: October | D48: ='16. RTSR - Historical Wholesale'!D47 -> 4995.26 | E48: 3.3765 | F48: 16866.49539 | H48: ='16. RTSR - Historical Wholesale'!H47 -> 5132.51 | I48: 0.7167 | J48: 3678.469917 | L48: ='16. RTSR - Historical Wholesale'!L47 -> 0 | M48: 1.62 | N48: 0 | P48: 3678.469917
B49: November | D49: ='16. RTSR - Historical Wholesale'!D48 -> 5857.12 | E49: 3.3765 | F49: 19776.56568 | H49: ='16. RTSR - Historical Wholesale'!H48 -> 5857.12 | I49: 0.7167 | J49: 4197.797904 | L49: ='16. RTSR - Historical Wholesale'!L48 -> 0 | M49: 1.62 | N49: 0 | P49: 4197.797904
B50: December | D50: ='16. RTSR - Historical Wholesale'!D49 -> 5975 | E50: 3.3765 | F50: 20174.5875 | H50: ='16. RTSR - Historical Wholesale'!H49 -> 6106.56 | I50: 0.7167 | J50: 4376.571552 | L50: ='16. RTSR - Historical Wholesale'!L49 -> 0 | M50: 1.62 | N50: 0 | P50: 4376.571552
B52: Total | D52: =SUM(D39:D50) -> 66460.75 | E52: =IF(D52<>0,F52/D52,0) -> 3.3765 | F52: =SUM(F39:F50) -> 224404.7224 | H52: =SUM(H39:H50) -> 70374.16 | I52: =IF(H52<>0,J52/H52,0) -> 0.7167 | J52: =SUM(J39:J50) -> 50437.16047 | L52: =SUM(L39:L50) -> 0 | M52: =IF(L52<>0,N52/L52,0) -> 0 | N52: =SUM(N39:N50) -> 0 | P52: =SUM(P39:P50) -> 50437.16047
B54: ='16. RTSR - Historical Wholesale'!B53 -> Add Extra Host Here (I) | D54: Network | H54: Line Connection | L54: Transformation Connection | P54: Total Line
B56: Month | D56: Units Billed | E56: Rate | F56: Amount | H56: Units Billed | I56: Rate | J56: Amount | L56: Units Billed | M56: Rate | N56: Amount | P56: Amount
B58: January | D58: ='16. RTSR - Historical Wholesale'!D57 -> 0 | E58: ='15. RTSR - UTRs & Sub-Tx'!G50 -> 0 | F58: =D58*E58 -> 0 | H58: ='16. RTSR - Historical Wholesale'!H57 -> 0 | I58: ='15. RTSR - UTRs & Sub-Tx'!G52 -> 0 | J58: =H58*I58 -> 0 | L58: ='16. RTSR - Historical Wholesale'!L57 -> 0 | M58: ='15. RTSR - UTRs & Sub-Tx'!G54 -> 0 | N58: =L58*M58 -> 0 | P58: =J58+N58 -> 0
B59: February | D59: ='16. RTSR - Historical Wholesale'!D58 -> 0 | E59: =E58 -> 0 | F59: =D59*E59 -> 0 | H59: ='16. RTSR - Historical Wholesale'!H58 -> 0 | I59: =I58 -> 0 | J59: =H59*I59 -> 0 | L59: ='16. RTSR - Historical Wholesale'!L58 -> 0 | M59: =M58 -> 0 | N59: =L59*M59 -> 0 | P59: 0
B60: March | D60: ='16. RTSR - Historical Wholesale'!D59 -> 0 | E60: =E59 -> 0 | F60: 0 | H60: ='16. RTSR - Historical Wholesale'!H59 -> 0 | I60: =I59 -> 0 | J60: 0 | L60: ='16. RTSR - Historical Wholesale'!L59 -> 0 | M60: =M59 -> 0 | N60: 0 | P60: 0
B61: April | D61: ='16. RTSR - Historical Wholesale'!D60 -> 0 | E61: 0 | F61: 0 | H61: ='16. RTSR - Historical Wholesale'!H60 -> 0 | I61: 0 | J61: 0 | L61: ='16. RTSR - Historical Wholesale'!L60 -> 0 | M61: =M60 -> 0 | N61: 0 | P61: 0
B62: May | D62: ='16. RTSR - Historical Wholesale'!D61 -> 0 | E62: 0 | F62: 0 | H62: ='16. RTSR - Historical Wholesale'!H61 -> 0 | I62: 0 | J62: 0 | L62: ='16. RTSR - Historical Wholesale'!L61 -> 0 | M62: 0 | N62: 0 | P62: 0
B63: June | D63: ='16. RTSR - Historical Wholesale'!D62 -> 0 | E63: 0 | F63: 0 | H63: ='16. RTSR - Historical Wholesale'!H62 -> 0 | I63: 0 | J63: 0 | L63: ='16. RTSR - Historical Wholesale'!L62 -> 0 | M63: 0 | N63: 0 | P63: 0
B64: July | D64: ='16. RTSR - Historical Wholesale'!D63 -> 0 | E64: 0 | F64: 0 | H64: ='16. RTSR - Historical Wholesale'!H63 -> 0 | I64: 0 | J64: 0 | L64: ='16. RTSR - Historical Wholesale'!L63 -> 0 | M64: 0 | N64: 0 | P64: 0
B65: August | D65: ='16. RTSR - Historical Wholesale'!D64 -> 0 | E65: 0 | F65: 0 | H65: ='16. RTSR - Historical Wholesale'!H64 -> 0 | I65: 0 | J65: 0 | L65: ='16. RTSR - Historical Wholesale'!L64 -> 0 | M65: 0 | N65: 0 | P65: 0
B66: September | D66: ='16. RTSR - Historical Wholesale'!D65 -> 0 | E66: 0 | F66: 0 | H66: ='16. RTSR - Historical Wholesale'!H65 -> 0 | I66: 0 | J66: 0 | L66: ='16. RTSR - Historical Wholesale'!L65 -> 0 | M66: 0 | N66: 0 | P66: 0
B67: October | D67: ='16. RTSR - Historical Wholesale'!D66 -> 0 | E67: 0 | F67: 0 | H67: ='16. RTSR - Historical Wholesale'!H66 -> 0 | I67: 0 | J67: 0 | L67: ='16. RTSR - Historical Wholesale'!L66 -> 0 | M67: 0 | N67: 0 | P67: 0
B68: November | D68: ='16. RTSR - Historical Wholesale'!D67 -> 0 | E68: 0 | F68: 0 | H68: ='16. RTSR - Historical Wholesale'!H67 -> 0 | I68: 0 | J68: 0 | L68: ='16. RTSR - Historical Wholesale'!L67 -> 0 | M68: 0 | N68: 0 | P68: 0
B69: December | D69: ='16. RTSR - Historical Wholesale'!D68 -> 0 | E69: 0 | F69: 0 | H69: ='16. RTSR - Historical Wholesale'!H68 -> 0 | I69: 0 | J69: 0 | L69: ='16. RTSR - Historical Wholesale'!L68 -> 0 | M69: 0 | N69: 0 | P69: 0
B71: Total | D71: =SUM(D58:D69) -> 0 | E71: =IF(D71<>0,F71/D71,0) -> 0 | F71: =SUM(F58:F69) -> 0 | H71: =SUM(H58:H69) -> 0 | I71: =IF(H71<>0,J71/H71,0) -> 0 | J71: =SUM(J58:J69) -> 0 | L71: =SUM(L58:L69) -> 0 | M71: =IF(L71<>0,N71/L71,0) -> 0 | N71: =SUM(N58:N69) -> 0 | P71: =SUM(P58:P69) -> 0
B73: ='16. RTSR - Historical Wholesale'!B72 -> Add Extra Host Here (II) | D73: Network | H73: Line Connection | L73: Transformation Connection | P73: Total Line
B75: Month | D75: Units Billed | E75: Rate | F75: Amount | H75: Units Billed | I75: Rate | J75: Amount | L75: Units Billed | M75: Rate | N75: Amount | P75: Amount
B77: January | D77: ='16. RTSR - Historical Wholesale'!D76 -> 0 | E77: ='15. RTSR - UTRs & Sub-Tx'!G65 -> 0 | F77: =D77*E77 -> 0 | H77: ='16. RTSR - Historical Wholesale'!H76 -> 0 | I77: ='15. RTSR - UTRs & Sub-Tx'!G67 -> 0 | J77: =H77*I77 -> 0 | L77: ='16. RTSR - Historical Wholesale'!L76 -> 0 | M77: ='15. RTSR - UTRs & Sub-Tx'!G69 -> 0 | N77: =L77*M77 -> 0 | P77: =J77+N77 -> 0
B78: February | D78: ='16. RTSR - Historical Wholesale'!D77 -> 0 | E78: =E77 -> 0 | F78: =D78*E78 -> 0 | H78: ='16. RTSR - Historical Wholesale'!H77 -> 0 | I78: =I77 -> 0 | J78: =H78*I78 -> 0 | L78: ='16. RTSR - Historical Wholesale'!L77 -> 0 | M78: =M77 -> 0 | N78: =L78*M78 -> 0 | P78: 0
B79: March | D79: ='16. RTSR - Historical Wholesale'!D78 -> 0 | E79: =E78 -> 0 | F79: 0 | H79: ='16. RTSR - Historical Wholesale'!H78 -> 0 | I79: =I78 -> 0 | J79: 0 | L79: ='16. RTSR - Historical Wholesale'!L78 -> 0 | M79: =M78 -> 0 | N79: 0 | P79: 0
B80: April | D80: ='16. RTSR - Historical Wholesale'!D79 -> 0 | E80: 0 | F80: 0 | H80: ='16. RTSR - Historical Wholesale'!H79 -> 0 | I80: 0 | J80: 0 | L80: ='16. RTSR - Historical Wholesale'!L79 -> 0 | M80: =M79 -> 0 | N80: 0 | P80: 0
B81: May | D81: ='16. RTSR - Historical Wholesale'!D80 -> 0 | E81: 0 | F81: 0 | H81: ='16. RTSR - Historical Wholesale'!H80 -> 0 | I81: 0 | J81: 0 | L81: ='16. RTSR - Historical Wholesale'!L80 -> 0 | M81: 0 | N81: 0 | P81: 0
B82: June | D82: ='16. RTSR - Historical Wholesale'!D81 -> 0 | E82: 0 | F82: 0 | H82: ='16. RTSR - Historical Wholesale'!H81 -> 0 | I82: 0 | J82: 0 | L82: ='16. RTSR - Historical Wholesale'!L81 -> 0 | M82: 0 | N82: 0 | P82: 0
B83: July | D83: ='16. RTSR - Historical Wholesale'!D82 -> 0 | E83: 0 | F83: 0 | H83: ='16. RTSR - Historical Wholesale'!H82 -> 0 | I83: 0 | J83: 0 | L83: ='16. RTSR - Historical Wholesale'!L82 -> 0 | M83: 0 | N83: 0 | P83: 0
B84: August | D84: ='16. RTSR - Historical Wholesale'!D83 -> 0 | E84: 0 | F84: 0 | H84: ='16. RTSR - Historical Wholesale'!H83 -> 0 | I84: 0 | J84: 0 | L84: ='16. RTSR - Historical Wholesale'!L83 -> 0 | M84: 0 | N84: 0 | P84: 0
B85: September | D85: ='16. RTSR - Historical Wholesale'!D84 -> 0 | E85: 0 | F85: 0 | H85: ='16. RTSR - Historical Wholesale'!H84 -> 0 | I85: 0 | J85: 0 | L85: ='16. RTSR - Historical Wholesale'!L84 -> 0 | M85: 0 | N85: 0 | P85: 0
B86: October | D86: ='16. RTSR - Historical Wholesale'!D85 -> 0 | E86: 0 | F86: 0 | H86: ='16. RTSR - Historical Wholesale'!H85 -> 0 | I86: 0 | J86: 0 | L86: ='16. RTSR - Historical Wholesale'!L85 -> 0 | M86: 0 | N86: 0 | P86: 0
B87: November | D87: ='16. RTSR - Historical Wholesale'!D86 -> 0 | E87: 0 | F87: 0 | H87: ='16. RTSR - Historical Wholesale'!H86 -> 0 | I87: 0 | J87: 0 | L87: ='16. RTSR - Historical Wholesale'!L86 -> 0 | M87: 0 | N87: 0 | P87: 0
B88: December | D88: ='16. RTSR - Historical Wholesale'!D87 -> 0 | E88: 0 | F88: 0 | H88: ='16. RTSR - Historical Wholesale'!H87 -> 0 | I88: 0 | J88: 0 | L88: ='16. RTSR - Historical Wholesale'!L87 -> 0 | M88: 0 | N88: 0 | P88: 0
B90: Total | D90: =SUM(D77:D88) -> 0 | E90: =IF(D90<>0,F90/D90,0) -> 0 | F90: =SUM(F77:F88) -> 0 | H90: =SUM(H77:H88) -> 0 | I90: =IF(H90<>0,J90/H90,0) -> 0 | J90: =SUM(J77:J88) -> 0 | L90: =SUM(L77:L88) -> 0 | M90: =IF(L90<>0,N90/L90,0) -> 0 | N90: =SUM(N77:N88) -> 0 | P90: =SUM(P77:P88) -> 0
B92: Total | D92: Network | H92: Line Connection | L92: Transformation Connection | P92: Total Line
B94: Month | D94: Units Billed | E94: Rate | F94: Amount | H94: Units Billed | I94: Rate | J94: Amount | L94: Units Billed | M94: Rate | N94: Amount | P94: Amount
B96: January | D96: =D20+D39+D58+D77 -> 239063 | E96: =IF(D96<>0,F96/D96,0) -> 3.808863477 | F96: =F20+F39+F58+F77 -> 910558.3295 | H96: =H20+H39+H58+H77 -> 244744 | I96: =IF(H96<>0,J96/H96,0) -> 0.8174662917 | J96: =J20+J39+J58+J77 -> 200069.9701 | L96: =L20+L39+L58+L77 -> 180096 | M96: =IF(L96<>0,N96/L96,0) -> 1.98 | N96: =N20+N39+N58+N77 -> 356590.08 | P96: =J96+N96 -> 556660.0501
B97: February | D97: =D21+D40+D59+D78 -> 231064 | E97: 3.809391578 | F97: =F21+F40+F59+F78 -> 880213.2555 | H97: =H21+H40+H59+H78 -> 237683 | I97: 0.8175274896 | J97: =J21+J40+J59+J78 -> 194312.3863 | L97: =L21+L40+L59+L78 -> 171265 | M97: 1.98 | N97: =N21+N40+N59+N78 -> 339104.7 | P97: 533417.0863
B98: March | D98: 239560 | E98: 3.810710123 | F98: 912893.717 | H98: 258756 | I98: 0.8179069011 | J98: 211638.3181 | L98: 170392 | M98: 1.98 | N98: 337376.16 | P98: 549014.4781
B99: April | D99: 244085.84 | E99: 3.811905628 | F99: 930432.1873 | H99: 279005.44 | I99: 0.8182552489 | J99: 228297.6657 | L99: 184820 | M99: 1.98 | N99: 365943.6 | P99: 594241.2657
B100: May | D100: 252563.45 | E100: 3.810766191 | F100: 962460.2564 | H100: 266608.45 | I100: 0.8179625631 | J100: 218075.7311 | L100: 168832 | M100: 1.98 | N100: 334287.36 | P100: 552363.0911
B101: June | D101: 285344.46 | E101: 3.810050455 | F101: 1087176.79 | H101: 307321.46 | I101: 0.8178482765 | J101: 251342.3264 | L101: 218716 | M101: 1.98 | N101: 433057.68 | P101: 684400.0064
B102: July | D102: 300012.47 | E102: 3.809546445 | F102: 1142911.438 | H102: 324673.47 | I102: 0.8177501 | J102: 265501.7625 | L102: 233121 | M102: 1.98 | N102: 461579.58 | P102: 727081.3425
B103: August | D103: 277899.14 | E103: 3.814924806 | F103: 1060164.323 | H103: 286675.14 | I103: 0.8177730596 | J103: 234435.2063 | L103: 207968 | M103: 1.98 | N103: 411776.64 | P103: 646211.8463
B104: September | D104: 295220.01 | E104: 3.809906237 | F104: 1124760.557 | H104: 302271.01 | I104: 0.8177038032 | J104: 247168.1545 | L104: 220117 | M104: 1.98 | N104: 435831.66 | P104: 682999.8145
B105: October | D105: 219998.26 | E105: 3.80992993 | F105: 838177.9554 | H105: 265539.51 | I105: 0.8180033544 | J105: 217212.2099 | L105: 190139 | M105: 1.98 | N105: 376475.22 | P105: 593687.4299
B106: November | D106: 229678.12 | E106: 3.808690117 | F106: 874772.7857 | H106: 242517.12 | I106: 0.8175051638 | J106: 198258.9979 | L106: 169163 | M106: 1.98 | N106: 334942.74 | P106: 533201.7379
B107: December | D107: 240331 | E107: 3.808973905 | F107: 915414.5075 | H107: 261225.56 | I107: 0.8175851994 | J107: 213574.1516 | L107: 176467 | M107: 1.98 | N107: 349404.66 | P107: 562978.8116
B109: Total | D109: =SUM(D96:D107) -> 3054819.75 | E109: =IF(D109<>0,F109/D109,0) -> 3.810351201 | F109: =SUM(F96:F107) -> 11639936.1 | H109: =SUM(H96:H107) -> 3277020.16 | I109: =IF(H109<>0,J109/H109,0) -> 0.8177816277 | J109: =SUM(J96:J107) -> 2679886.88 | L109: =SUM(L96:L107) -> 2291096 | M109: =IF(L109<>0,N109/L109,0) -> 1.98 | N109: =SUM(N96:N107) -> 4536370.08 | P109: =SUM(P96:P107) -> 7216256.96
N111: Transformer Allowance Credit (if applicable) | P111: ='15. RTSR - UTRs & Sub-Tx'!G95 -> 0
N113: Total including deduction for Transformer Allowance Credit | P113: =P109+P111 -> 7216256.96

Sheet 18. RTSR - Forecast Wholesale
B13: The purpose of this sheet is to calculate the expected billing when forecasted 2015 Uniform Transmission Rates are applied against historical 2013 transmission units.
B16: IESO | D16: Network | H16: Line Connection | L16: Transformation Connection | P16: Total Line
B18: Month | D18: Units Billed | E18: Rate | F18: Amount | H18: Units Billed | I18: Rate | J18: Amount | L18: Units Billed | M18: Rate | N18: Amount | P18: Amount
B20: January | D20: ='16. RTSR - Historical Wholesale'!D19 -> 233060 | E20: ='15. RTSR - UTRs & Sub-Tx'!I22 -> 3.78 | F20: =D20*E20 -> 880966.8 | H20: ='16. RTSR - Historical Wholesale'!H19 -> 238741 | I20: ='15. RTSR - UTRs & Sub-Tx'!I24 -> 0.86 | J20: =H20*I20 -> 205317.26 | L20: ='16. RTSR - Historical Wholesale'!L19 -> 180096 | M20: ='15. RTSR - UTRs & Sub-Tx'!I26 -> 2 | N20: =L20*M20 -> 360192 | P20: =J20+N20 -> 565509.26
B21: February | D21: ='16. RTSR - Historical Wholesale'!D20 -> 225537 | E21: =E20 -> 3.78 | F21: 852529.86 | H21: ='16. RTSR - Historical Wholesale'!H20 -> 231994 | I21: =I20 -> 0.86 | J21: 199514.84 | L21: ='16. RTSR - Historical Wholesale'!L20 -> 171265 | M21: =M20 -> 2 | N21: 342530 | P21: 542044.84
B22: March | D22: ='16. RTSR - Historical Wholesale'!D21 -> 234542 | E22: 3.78 | F22: 886568.76 | H22: ='16. RTSR - Historical Wholesale'!H21 -> 253513 | I22: 0.86 | J22: 218021.18 | L22: ='16. RTSR - Historical Wholesale'!L21 -> 170392 | M22: 2 | N22: 340784 | P22: 558805.18
B23: April | D23: ='16. RTSR - Historical Wholesale'!D22 -> 239631 | E23: 3.78 | F23: 905805.18 | H23: ='16. RTSR - Historical Wholesale'!H22 -> 274293 | I23: 0.86 | J23: 235891.98 | L23: ='16. RTSR - Historical Wholesale'!L22 -> 184820 | M23: 2 | N23: 369640 | P23: 605531.98
B24: May | D24: ='16. RTSR - Historical Wholesale'!D23 -> 247305 | E24: 3.78 | F24: 934812.9 | H24: ='16. RTSR - Historical Wholesale'!H23 -> 261350 | I24: 0.86 | J24: 224761 | L24: ='16. RTSR - Historical Wholesale'!L23 -> 168832 | M24: 2 | N24: 337664 | P24: 562425
B25: June | D25: ='16. RTSR - Historical Wholesale'!D24 -> 278943 | E25: 3.78 | F25: 1054404.54 | H25: ='16. RTSR - Historical Wholesale'!H24 -> 300920 | I25: 0.86 | J25: 258791.2 | L25: ='16. RTSR - Historical Wholesale'!L24 -> 218716 | M25: 2 | N25: 437432 | P25: 696223.2
B26: July | D26: ='16. RTSR - Historical Wholesale'!D25 -> 292941 | E26: 3.78 | F26: 1107316.98 | H26: ='16. RTSR - Historical Wholesale'!H25 -> 317602 | I26: 0.86 | J26: 273137.72 | L26: ='16. RTSR - Historical Wholesale'!L25 -> 233121 | M26: 2 | N26: 466242 | P26: 739379.72
B27: August | D27: ='16. RTSR - Historical Wholesale'!D26 -> 274719 | E27: 3.78 | F27: 1038437.82 | H27: ='16. RTSR - Historical Wholesale'!H26 -> 280495 | I27: 0.86 | J27: 241225.7 | L27: ='16. RTSR - Historical Wholesale'!L26 -> 207968 | M27: 2 | N27: 415936 | P27: 657161.7
B28: September | D28: ='16. RTSR - Historical Wholesale'!D27 -> 288501 | E28: 3.78 | F28: 1090533.78 | H28: ='16. RTSR - Historical Wholesale'!H27 -> 295552 | I28: 0.86 | J28: 254174.72 | L28: ='16. RTSR - Historical Wholesale'!L27 -> 220117 | M28: 2 | N28: 440234 | P28: 694408.72
B29: October | D29: ='16. RTSR - Historical Wholesale'!D28 -> 215003 | E29: 3.78 | F29: 812711.34 | H29: ='16. RTSR - Historical Wholesale'!H28 -> 260407 | I29: 0.86 | J29: 223950.02 | L29: ='16. RTSR - Historical Wholesale'!L28 -> 190139 | M29: 2 | N29: 380278 | P29: 604228.02
B30: November | D30: ='16. RTSR - Historical Wholesale'!D29 -> 223821 | E30: 3.78 | F30: 846043.38 | H30: ='16. RTSR - Historical Wholesale'!H29 -> 236660 | I30: 0.86 | J30: 203527.6 | L30: ='16. RTSR - Historical Wholesale'!L29 -> 169163 | M30: 2 | N30: 338326 | P30: 541853.6
B31: December | D31: ='16. RTSR - Historical Wholesale'!D30 -> 234356 | E31: 3.78 | F31: 885865.68 | H31: ='16. RTSR - Historical Wholesale'!H30 -> 255119 | I31: 0.86 | J31: 219402.34 | L31: ='16. RTSR - Historical Wholesale'!L30 -> 176467 | M31: 2 | N31: 352934 | P31: 572336.34
B33: Total | D33: =SUM(D20:D31) -> 2988359 | E33: =IF(D33<>0,F33/D33,0) -> 3.78 | F33: =SUM(F20:F31) -> 11295997.02 | H33: =SUM(H20:H31) -> 3206646 | I33: =IF(H33<>0,J33/H33,0) -> 0.86 | J33: =SUM(J20:J31) -> 2757715.56 | L33: =SUM(L20:L31) -> 2291096 | M33: =IF(L33<>0,N33/L33,0) -> 2 | N33: =SUM(N20:N31) -> 4582192 | P33: =SUM(P20:P31) -> 7339907.56
B35: Hydro One | D35: Network | H35: Line Connection | L35: Transformation Connection | P35: Total Line
B37: Month | D37: Units Billed | E37: Rate | F37: Amount | H37: Units Billed | I37: Rate | J37: Amount | L37: Units Billed | M37: Rate | N37: Amount | P37: Amount
B39: January | D39: ='16. RTSR - Historical Wholesale'!D38 -> 6003 | E39: ='15. RTSR - UTRs & Sub-Tx'!I35+'15. RTSR - UTRs & Sub-Tx'!I79 -> 3.23 | F39: =D39*E39 -> 19389.69 | H39: ='16. RTSR - Historical Wholesale'!H38 -> 6003 | I39: ='15. RTSR - UTRs & Sub-Tx'!I37+'15. RTSR - UTRs & Sub-Tx'!I81 -> 0.65 | J39: =H39*I39 -> 3901.95 | L39: ='16. RTSR - Historical Wholesale'!L38 -> 0 | M39: ='15. RTSR - UTRs & Sub-Tx'!I39 -> 1.62 | N39: =L39*M39 -> 0 | P39: =J39+N39 -> 3901.95
B40: February | D40: ='16. RTSR - Historical Wholesale'!D39 -> 5527 | E40: =E39 -> 3.23 | F40: 17852.21 | H40: ='16. RTSR - Historical Wholesale'!H39 -> 5689 | I40: =I39 -> 0.65 | J40: 3697.85 | L40: ='16. RTSR - Historical Wholesale'!L39 -> 0 | M40: =M39 -> 1.62 | N40: 0 | P40: 3697.85
B41: March | D41: ='16. RTSR - Historical Wholesale'!D40 -> 5018 | E41: 3.23 | F41: 16208.14 | H41: ='16. RTSR - Historical Wholesale'!H40 -> 5243 | I41: 0.65 | J41: 3407.95 | L41: ='16. RTSR - Historical Wholesale'!L40 -> 0 | M41: 1.62 | N41: 0 | P41: 3407.95
B42: April | D42: ='16. RTSR - Historical Wholesale'!D41 -> 4454.84 | E42: 3.23 | F42: 14389.1332 | H42: ='16. RTSR - Historical Wholesale'!H41 -> 4712.44 | I42: 0.65 | J42: 3063.086 | L42: ='16. RTSR - Historical Wholesale'!L41 -> 0 | M42: 1.62 | N42: 0 | P42: 3063.086
B43: May | D43: ='16. RTSR - Historical Wholesale'!D42 -> 5258.45 | E43: 3.23 | F43: 16984.7935 | H43: ='16. RTSR - Historical Wholesale'!H42 -> 5258.45 | I43: 0.65 | J43: 3417.9925 | L43: ='16. RTSR - Historical Wholesale'!L42 -> 0 | M43: 1.62 | N43: 0 | P43: 3417.9925
B44: June | D44: ='16. RTSR - Historical Wholesale'!D43 -> 6401.46 | E44: 3.23 | F44: 20676.7158 | H44: ='16. RTSR - Historical Wholesale'!H43 -> 6401.46 | I44: 0.65 | J44: 4160.949 | L44: ='16. RTSR - Historical Wholesale'!L43 -> 0 | M44: 1.62 | N44: 0 | P44: 4160.949
B45: July | D45: ='16. RTSR - Historical Wholesale'!D44 -> 7071.47 | E45: 3.23 | F45: 22840.8481 | H45: ='16. RTSR - Historical Wholesale'!H44 -> 7071.47 | I45: 0.65 | J45: 4596.4555 | L45: ='16. RTSR - Historical Wholesale'!L44 -> 0 | M45: 1.62 | N45: 0 | P45: 4596.4555
B46: August | D46: ='16. RTSR - Historical Wholesale'!D45 -> 3180.14 | E46: 3.23 | F46: 10271.8522 | H46: ='16. RTSR - Historical Wholesale'!H45 -> 6180.14 | I46: 0.65 | J46: 4017.091 | L46: ='16. RTSR - Historical Wholesale'!L45 -> 0 | M46: 1.62 | N46: 0 | P46: 4017.091
B47: September | D47: ='16. RTSR - Historical Wholesale'!D46 -> 6719.01 | E47: 3.23 | F47: 21702.4023 | H47: ='16. RTSR - Historical Wholesale'!H46 -> 6719.01 | I47: 0.65 | J47: 4367.3565 | L47: ='16. RTSR - Historical Wholesale'!L46 -> 0 | M47: 1.62 | N47: 0 | P47: 4367.3565
B48: October | D48: ='16. RTSR - Historical Wholesale'!D47 -> 4995.26 | E48: 3.23 | F48: 16134.6898 | H48: ='16. RTSR - Historical Wholesale'!H47 -> 5132.51 | I48: 0.65 | J48: 3336.1315 | L48: ='16. RTSR - Historical Wholesale'!L47 -> 0 | M48: 1.62 | N48: 0 | P48: 3336.1315
B49: November | D49: ='16. RTSR - Historical Wholesale'!D48 -> 5857.12 | E49: 3.23 | F49: 18918.4976 | H49: ='16. RTSR - Historical Wholesale'!H48 -> 5857.12 | I49: 0.65 | J49: 3807.128 | L49: ='16. RTSR - Historical Wholesale'!L48 -> 0 | M49: 1.62 | N49: 0 | P49: 3807.128
B50: December | D50: ='16. RTSR - Historical Wholesale'!D49 -> 5975 | E50: 3.23 | F50: 19299.25 | H50: ='16. RTSR - Historical Wholesale'!H49 -> 6106.56 | I50: 0.65 | J50: 3969.264 | L50: ='16. RTSR - Historical Wholesale'!L49 -> 0 | M50: 1.62 | N50: 0 | P50: 3969.264
B52: Total | D52: =SUM(D39:D50) -> 66460.75 | E52: =IF(D52<>0,F52/D52,0) -> 3.23 | F52: =SUM(F39:F50) -> 214668.2225 | H52: =SUM(H39:H50) -> 70374.16 | I52: =IF(H52<>0,J52/H52,0) -> 0.65 | J52: =SUM(J39:J50) -> 45743.204 | L52: =SUM(L39:L50) -> 0 | M52: =IF(L52<>0,N52/L52,0) -> 0 | N52: =SUM(N39:N50) -> 0 | P52: =SUM(P39:P50) -> 45743.204
B54: ='16. RTSR - Historical Wholesale'!B53 -> Add Extra Host Here (I) | D54: Network | H54: Line Connection | L54: Transformation Connection | P54: Total Line
B56: Month | D56: Units Billed | E56: Rate | F56: Amount | H56: Units Billed | I56: Rate | J56: Amount | L56: Units Billed | M56: Rate | N56: Amount | P56: Amount
B58: January | D58: ='16. RTSR - Historical Wholesale'!D57 -> 0 | E58: ='15. RTSR - UTRs & Sub-Tx'!I50 -> 0 | F58: =D58*E58 -> 0 | H58: ='16. RTSR - Historical Wholesale'!H57 -> 0 | I58: ='15. RTSR - UTRs & Sub-Tx'!I52 -> 0 | J58: =H58*I58 -> 0 | L58: ='16. RTSR - Historical Wholesale'!L57 -> 0 | M58: ='15. RTSR - UTRs & Sub-Tx'!I54 -> 0 | N58: =L58*M58 -> 0 | P58: =J58+N58 -> 0
B59: February | D59: ='16. RTSR - Historical Wholesale'!D58 -> 0 | E59: =E58 -> 0 | F59: 0 | H59: ='16. RTSR - Historical Wholesale'!H58 -> 0 | I59: =I58 -> 0 | J59: 0 | L59: ='16. RTSR - Historical Wholesale'!L58 -> 0 | M59: =M58 -> 0 | N59: 0 | P59: 0
B60: March | D60: ='16. RTSR - Historical Wholesale'!D59 -> 0 | E60: 0 | F60: 0 | H60: ='16. RTSR - Historical Wholesale'!H59 -> 0 | I60: 0 | J60: 0 | L60: ='16. RTSR - Historical Wholesale'!L59 -> 0 | M60: 0 | N60: 0 | P60: 0
B61: April | D61: ='16. RTSR - Historical Wholesale'!D60 -> 0 | E61: 0 | F61: 0 | H61: ='16. RTSR - Historical Wholesale'!H60 -> 0 | I61: 0 | J61: 0 | L61: ='16. RTSR - Historical Wholesale'!L60 -> 0 | M61: 0 | N61: 0 | P61: 0
B62: May | D62: ='16. RTSR - Historical Wholesale'!D61 -> 0 | E62: 0 | F62: 0 | H62: ='16. RTSR - Historical Wholesale'!H61 -> 0 | I62: 0 | J62: 0 | L62: ='16. RTSR - Historical Wholesale'!L61 -> 0 | M62: 0 | N62: 0 | P62: 0
B63: June | D63: ='16. RTSR - Historical Wholesale'!D62 -> 0 | E63: 0 | F63: 0 | H63: ='16. RTSR - Historical Wholesale'!H62 -> 0 | I63: 0 | J63: 0 | L63: ='16. RTSR - Historical Wholesale'!L62 -> 0 | M63: 0 | N63: 0 | P63: 0
B64: July | D64: ='16. RTSR - Historical Wholesale'!D63 -> 0 | E64: 0 | F64: 0 | H64: ='16. RTSR - Historical Wholesale'!H63 -> 0 | I64: 0 | J64: 0 | L64: ='16. RTSR - Historical Wholesale'!L63 -> 0 | M64: 0 | N64: 0 | P64: 0
B65: August | D65: ='16. RTSR - Historical Wholesale'!D64 -> 0 | E65: 0 | F65: 0 | H65: ='16. RTSR - Historical Wholesale'!H64 -> 0 | I65: 0 | J65: 0 | L65: ='16. RTSR - Historical Wholesale'!L64 -> 0 | M65: 0 | N65: 0 | P65: 0
B66: September | D66: ='16. RTSR - Historical Wholesale'!D65 -> 0 | E66: 0 | F66: 0 | H66: ='16. RTSR - Historical Wholesale'!H65 -> 0 | I66: 0 | J66: 0 | L66: ='16. RTSR - Historical Wholesale'!L65 -> 0 | M66: 0 | N66: 0 | P66: 0
B67: October | D67: ='16. RTSR - Historical Wholesale'!D66 -> 0 | E67: 0 | F67: 0 | H67: ='16. RTSR - Historical Wholesale'!H66 -> 0 | I67: 0 | J67: 0 | L67: ='16. RTSR - Historical Wholesale'!L66 -> 0 | M67: 0 | N67: 0 | P67: 0
B68: November | D68: ='16. RTSR - Historical Wholesale'!D67 -> 0 | E68: 0 | F68: 0 | H68: ='16. RTSR - Historical Wholesale'!H67 -> 0 | I68: 0 | J68: 0 | L68: ='16. RTSR - Historical Wholesale'!L67 -> 0 | M68: 0 | N68: 0 | P68: 0
B69: December | D69: ='16. RTSR - Historical Wholesale'!D68 -> 0 | E69: 0 | F69: 0 | H69: ='16. RTSR - Historical Wholesale'!H68 -> 0 | I69: 0 | J69: 0 | L69: ='16. RTSR - Historical Wholesale'!L68 -> 0 | M69: 0 | N69: 0 | P69: 0
B71: Total | D71: =SUM(D58:D69) -> 0 | E71: =IF(D71<>0,F71/D71,0) -> 0 | F71: =SUM(F58:F69) -> 0 | H71: =SUM(H58:H69) -> 0 | I71: =IF(H71<>0,J71/H71,0) -> 0 | J71: =SUM(J58:J69) -> 0 | L71: =SUM(L58:L69) -> 0 | M71: =IF(L71<>0,N71/L71,0) -> 0 | N71: =SUM(N58:N69) -> 0 | P71: =SUM(P58:P69) -> 0
B73: ='16. RTSR - Historical Wholesale'!B72 -> Add Extra Host Here (II) | D73: Network | H73: Line Connection | L73: Transformation Connection | P73: Total Line
B75: Month | D75: Units Billed | E75: Rate | F75: Amount | H75: Units Billed | I75: Rate | J75: Amount | L75: Units Billed | M75: Rate | N75: Amount | P75: Amount
B77: January | D77: ='16. RTSR - Historical Wholesale'!D76 -> 0 | E77: ='15. RTSR - UTRs & Sub-Tx'!I65 -> 0 | F77: =D77*E77 -> 0 | H77: ='16. RTSR - Historical Wholesale'!H76 -> 0 | I77: ='15. RTSR - UTRs & Sub-Tx'!I67 -> 0 | J77: =H77*I77 -> 0 | L77: ='16. RTSR - Historical Wholesale'!L76 -> 0 | M77: ='15. RTSR - UTRs & Sub-Tx'!I69 -> 0 | N77: =L77*M77 -> 0 | P77: =J77+N77 -> 0
B78: February | D78: ='16. RTSR - Historical Wholesale'!D77 -> 0 | E78: =E77 -> 0 | F78: 0 | H78: ='16. RTSR - Historical Wholesale'!H77 -> 0 | I78: =I77 -> 0 | J78: 0 | L78: ='16. RTSR - Historical Wholesale'!L77 -> 0 | M78: =M77 -> 0 | N78: 0 | P78: 0
B79: March | D79: ='16. RTSR - Historical Wholesale'!D78 -> 0 | E79: 0 | F79: 0 | H79: ='16. RTSR - Historical Wholesale'!H78 -> 0 | I79: 0 | J79: 0 | L79: ='16. RTSR - Historical Wholesale'!L78 -> 0 | M79: 0 | N79: 0 | P79: 0
B80: April | D80: ='16. RTSR - Historical Wholesale'!D79 -> 0 | E80: 0 | F80: 0 | H80: ='16. RTSR - Historical Wholesale'!H79 -> 0 | I80: 0 | J80: 0 | L80: ='16. RTSR - Historical Wholesale'!L79 -> 0 | M80: 0 | N80: 0 | P80: 0
B81: May | D81: ='16. RTSR - Historical Wholesale'!D80 -> 0 | E81: 0 | F81: 0 | H81: ='16. RTSR - Historical Wholesale'!H80 -> 0 | I81: 0 | J81: 0 | L81: ='16. RTSR - Historical Wholesale'!L80 -> 0 | M81: 0 | N81: 0 | P81: 0
B82: June | D82: ='16. RTSR - Historical Wholesale'!D81 -> 0 | E82: 0 | F82: 0 | H82: ='16. RTSR - Historical Wholesale'!H81 -> 0 | I82: 0 | J82: 0 | L82: ='16. RTSR - Historical Wholesale'!L81 -> 0 | M82: 0 | N82: 0 | P82: 0
B83: July | D83: ='16. RTSR - Historical Wholesale'!D82 -> 0 | E83: 0 | F83: 0 | H83: ='16. RTSR - Historical Wholesale'!H82 -> 0 | I83: 0 | J83: 0 | L83: ='16. RTSR - Historical Wholesale'!L82 -> 0 | M83: 0 | N83: 0 | P83: 0
B84: August | D84: ='16. RTSR - Historical Wholesale'!D83 -> 0 | E84: 0 | F84: 0 | H84: ='16. RTSR - Historical Wholesale'!H83 -> 0 | I84: 0 | J84: 0 | L84: ='16. RTSR - Historical Wholesale'!L83 -> 0 | M84: 0 | N84: 0 | P84: 0
B85: September | D85: ='16. RTSR - Historical Wholesale'!D84 -> 0 | E85: 0 | F85: 0 | H85: ='16. RTSR - Historical Wholesale'!H84 -> 0 | I85: 0 | J85: 0 | L85: ='16. RTSR - Historical Wholesale'!L84 -> 0 | M85: 0 | N85: 0 | P85: 0
B86: October | D86: ='16. RTSR - Historical Wholesale'!D85 -> 0 | E86: 0 | F86: 0 | H86: ='16. RTSR - Historical Wholesale'!H85 -> 0 | I86: 0 | J86: 0 | L86: ='16. RTSR - Historical Wholesale'!L85 -> 0 | M86: 0 | N86: 0 | P86: 0
B87: November | D87: ='16. RTSR - Historical Wholesale'!D86 -> 0 | E87: 0 | F87: 0 | H87: ='16. RTSR - Historical Wholesale'!H86 -> 0 | I87: 0 | J87: 0 | L87: ='16. RTSR - Historical Wholesale'!L86 -> 0 | M87: 0 | N87: 0 | P87: 0
B88: December | D88: ='16. RTSR - Historical Wholesale'!D87 -> 0 | E88: 0 | F88: 0 | H88: ='16. RTSR - Historical Wholesale'!H87 -> 0 | I88: 0 | J88: 0 | L88: ='16. RTSR - Historical Wholesale'!L87 -> 0 | M88: 0 | N88: 0 | P88: 0
B90: Total | D90: =SUM(D77:D88) -> 0 | E90: =IF(D90<>0,F90/D90,0) -> 0 | F90: =SUM(F77:F88) -> 0 | H90: =SUM(H77:H88) -> 0 | I90: =IF(H90<>0,J90/H90,0) -> 0 | J90: =SUM(J77:J88) -> 0 | L90: =SUM(L77:L88) -> 0 | M90: =IF(L90<>0,N90/L90,0) -> 0 | N90: =SUM(N77:N88) -> 0 | P90: =SUM(P77:P88) -> 0
B92: Total | D92: Network | H92: Line Connection | L92: Transformation Connection | P92: Total Line
B94: Month | D94: Units Billed | E94: Rate | F94: Amount | H94: Units Billed | I94: Rate | J94: Amount | L94: Units Billed | M94: Rate | N94: Amount | P94: Amount
B96: January | D96: =D20+D39 -> 239063 | E96: =IF(D96<>0,F96/D96,0) -> 3.766189205 | F96: =F20+F39 -> 900356.49 | H96: =H20+H39 -> 244744 | I96: =IF(H96<>0,J96/H96,0) -> 0.8548491894 | J96: =J20+J39 -> 209219.21 | L96: =L20+L39 -> 180096 | M96: =IF(L96<>0,N96/L96,0) -> 2 | N96: =N20+N39 -> 360192 | P96: =J96+N96 -> 569411.21
B97: February | D97: 231064 | E97: 3.766844121 | F97: 870382.07 | H97: 237683 | I97: 0.8549735993 | J97: 203212.69 | L97: 171265 | M97: 2 | N97: 342530 | P97: 545742.69
B98: March | D98: 239560 | E98: 3.768479295 | F98: 902776.9 | H98: 258756 | I98: 0.8557449103 | J98: 221429.13 | L98: 170392 | M98: 2 | N98: 340784 | P98: 562213.13
B99: April | D99: 244085.84 | E99: 3.769961884 | F99: 920194.3132 | H99: 279005.44 | I99: 0.8564530713 | J99: 238955.066 | L99: 184820 | M99: 2 | N99: 369640 | P99: 608595.066
B100: May | D100: 252563.45 | E100: 3.768548828 | F100: 951797.6935 | H100: 266608.45 | I100: 0.8558580664 | J100: 228178.9925 | L100: 168832 | M100: 2 | N100: 337664 | P100: 565842.9925
B101: June | D101: 285344.46 | E101: 3.767661218 | F101: 1075081.256 | H101: 307321.46 | I101: 0.8556257314 | J101: 262952.149 | L101: 218716 | M101: 2 | N101: 437432 | P101: 700384.149
B102: July | D102: 300012.47 | E102: 3.767036177 | F102: 1130157.828 | H102: 324673.47 | I102: 0.8554261471 | J102: 277734.1755 | L102: 233121 | M102: 2 | N102: 466242 | P102: 743976.1755
B103: August | D103: 277899.14 | E103: 3.773706073 | F103: 1048709.672 | H103: 286675.14 | I103: 0.855472822 | J103: 245242.791 | L103: 207968 | M103: 2 | N103: 415936 | P103: 661178.791
B104: September | D104: 295220.01 | E104: 3.767482368 | F104: 1112236.182 | H104: 302271.01 | I104: 0.8553320297 | J104: 258542.0765 | L104: 220117 | M104: 2 | N104: 440234 | P104: 698776.0765
B105: October | D105: 219998.26 | E105: 3.767511751 | F105: 828846.0298 | H105: 265539.51 | I105: 0.8559409916 | J105: 227286.1515 | L105: 190139 | M105: 2 | N105: 380278 | P105: 607564.1515
B106: November | D106: 229678.12 | E106: 3.765974215 | F106: 864961.8776 | H106: 242517.12 | I106: 0.8549282129 | J106: 207334.728 | L106: 169163 | M106: 2 | N106: 338326 | P106: 545660.728
B107: December | D107: 240331 | E107: 3.76632615 | F107: 905164.93 | H107: 261225.56 | I107: 0.8550909184 | J107: 223371.604 | L107: 176467 | M107: 2 | N107: 352934 | P107: 576305.604
B109: Total | D109: =SUM(D96:D107) -> 3054819.75 | E109: =IF(D109<>0,F109/D109,0) -> 3.768034184 | F109: =SUM(F96:F107) -> 11510665.24 | H109: =SUM(H96:H107) -> 3277020.16 | I109: =IF(H109<>0,J109/H109,0) -> 0.8554902403 | J109: =SUM(J96:J107) -> 2803458.764 | L109: =SUM(L96:L107) -> 2291096 | M109: =IF(L109<>0,N109/L109,0) -> 2 | N109: =SUM(N96:N107) -> 4582192 | P109: =SUM(P96:P107) -> 7385650.764
N111: Transformer Allowance Credit (if applicable) | P111: ='15. RTSR - UTRs & Sub-Tx'!I95 -> 0
N113: Total including deduction for Transformer Allowance Credit | P113: =P109+P111 -> 7385650.764

Sheet 19. RTSR Ntwrk to Curren WS
A13: The purpose of this sheet is to re-align the current RTS Network Rates to recover current wholesale network costs.
A16: Rate Class | B16: Rate Description | C16: Unit | E16: Current RTSR-Network | G16: Loss Adjusted Billed kWh | I16: Loss Adjusted Billed kW | K16: Billed Amount | M16: Billed Amount % | O16: Current Wholesale Billing | Q16: Proposed RTSR Network
A19: RESIDENTIAL | B19: Retail Transmission Rate - Network Service Rate | C19: $/kWh | E19: 0.0067 | G19: 397811397 | I19: 0 | K19: =IF(E19="", "", IF(C19="$/kWh", E19*G19, E19*I19)) -> 2665336.36 | M19: =IF(ISERROR(K19/SUM(K19:K100)),"",K19/SUM(K19:K100)) -> 0.2258230694 | O19: =IF(ISERROR('17. RTSR - Current Wholesale'!$F$109*M19), "", '17. RTSR - Current Wholesale'!$F$109*M19) -> 2628566.098 | Q19: =IF(C19="","",IF(C19="$/kWh",IF(G19<>0,O19/G19,),IF(I19<>0,O19/I19,0))) -> 0.006607568607
A20: GENERAL SERVICE LESS THAN 50 KW | B20: Retail Transmission Rate - Network Service Rate | C20: $/kWh | E20: 0.0058 | G20: 161836412 | I20: 0 | K20: 938651.1894 | M20: =IF(ISERROR(K20/SUM(K19:K100)),"",K20/SUM(K19:K100)) -> 0.07952808354 | O20: =IF(ISERROR('17. RTSR - Current Wholesale'!$F$109*M20), "", '17. RTSR - Current Wholesale'!$F$109*M20) -> 925701.8107 | Q20: 0.005719984764
A21: GENERAL SERVICE 50 TO 999 KW | B21: Retail Transmission Rate - Network Service Rate | C21: $/kW | E21: 3.7803 | G21: 0 | I21: 1243381 | K21: 4700353.194 | M21: =IF(ISERROR(K21/SUM(K19:K100)),"",K21/SUM(K19:K100)) -> 0.3982417385 | O21: =IF(ISERROR('17. RTSR - Current Wholesale'!$F$109*M21), "", '17. RTSR - Current Wholesale'!$F$109*M21) -> 4635508.389 | Q21: 3.728148001
A22: GENERAL SERVICE 1,000 TO 4,999 KW | B22: Retail Transmission Rate - Network Service Rate | C22: $/kW | E22: 2.8711 | G22: 0 | I22: 630469 | K22: 1810139.546 | M22: =IF(ISERROR(K22/SUM(K19:K100)),"",K22/SUM(K19:K100)) -> 0.1533657344 | O22: =IF(ISERROR('17. RTSR - Current Wholesale'!$F$109*M22), "", '17. RTSR - Current Wholesale'!$F$109*M22) -> 1785167.349 | Q22: 2.831491079
A23: LARGE USE | B23: Retail Transmission Rate - Network Service Rate | C23: $/kW | E23: 2.7207 | G23: 0 | I23: 477382 | K23: 1298813.207 | M23: =IF(ISERROR(K23/SUM(K19:K100)),"",K23/SUM(K19:K100)) -> 0.1100431411 | O23: =IF(ISERROR('17. RTSR - Current Wholesale'!$F$109*M23), "", '17. RTSR - Current Wholesale'!$F$109*M23) -> 1280895.131 | Q23: 2.683165956
A24: UNMETERED SCATTERED LOAD | B24: Retail Transmission Rate - Network Service Rate | C24: $/kWh | E24: 0.0058 | G24: 2055194.33 | I24: 0 | K24: 11920.12711 | M24: =IF(ISERROR(K24/SUM(K19:K100)),"",K24/SUM(K19:K100)) -> 0.00100994371 | O24: =IF(ISERROR('17. RTSR - Current Wholesale'!$F$109*M24), "", '17. RTSR - Current Wholesale'!$F$109*M24) -> 11755.68025 | Q24: 0.005719984764
A25: STREET LIGHTING | B25: Retail Transmission Rate - Network Service Rate | C25: $/kW | E25: 1.8997 | G25: 0 | I25: 26970 | K25: 51234.909 | M25: =IF(ISERROR(K25/SUM(K19:K100)),"",K25/SUM(K19:K100)) -> 0.004340924689 | O25: =IF(ISERROR('17. RTSR - Current Wholesale'!$F$109*M25), "", '17. RTSR - Current Wholesale'!$F$109*M25) -> 50528.08601 | Q25: 1.873492251
A26: EMBEDDED DISTRIBUTOR | B26: Retail Transmission Rate - Network Service Rate | C26: $/kW | E26: 2.7207 | G26: 0 | I26: 119938 | K26: 326315.3166 | M26: =IF(ISERROR(K26/SUM(K19:K100)),"",K26/SUM(K19:K100)) -> 0.0276473647 | O26: =IF(ISERROR('17. RTSR - Current Wholesale'!$F$109*M26), "", '17. RTSR - Current Wholesale'!$F$109*M26) -> 321813.5585 | Q26: 2.683165956

Sheet 20. RTSR Adj Conn to Current WS
A13: The purpose of this sheet is to re-align the current RTS Connection Rates to recover current wholesale connection costs.
A16: Rate Class | B16: Rate Description | C16: Unit | E16: Current RTSR-Connection | G16: Loss Adjusted Billed kWh | I16: Loss Adjusted Billed kW | K16: Billed Amount | M16: Billed Amount % | O16: Current Wholesale Billing | Q16: Proposed RTSR Connection
A19: RESIDENTIAL | B19: Retail Transmission Rate - Line and Transformation Connection Service Rate | C19: $/kWh | E19: 0.0042 | G19: 397811397 | I19: 0 | K19: =IF(E19="", "", IF(C19="$/kWh", E19*G19, E19*I19)) -> 1670807.868 | M19: =IF(ISERROR(K19/SUM(K19:K100)),"",K19/SUM(K19:K100)) -> 0.2185226861 | O19: =IF(ISERROR('17. RTSR - Current Wholesale'!$P$113*M19), "", '17. RTSR - Current Wholesale'!$P$113*M19) -> 1576915.854 | Q19: =IF(C19="","",IF(C19="$/kWh",IF(G19<>0,O19/G19,),IF(I19<>0,O19/I19,0))) -> 0.003963978574
A20: GENERAL SERVICE LESS THAN 50 KW | B20: Retail Transmission Rate - Line and Transformation Connection Service Rate | C20: $/kWh | E20: 0.0039 | G20: 161836412 | I20: 0 | K20: 631162.0067 | M20: =IF(ISERROR(K20/SUM(K19:K100)),"",K20/SUM(K19:K100)) -> 0.08254881947 | O20: =IF(ISERROR('17. RTSR - Current Wholesale'!$P$113*M20), "", '17. RTSR - Current Wholesale'!$P$113*M20) -> 595693.4931 | Q20: 0.003680837247
A21: GENERAL SERVICE 50 TO 999 KW | B21: Retail Transmission Rate - Line and Transformation Connection Service Rate | C21: $/kW | E21: 2.394 | G21: 0 | I21: 1243381 | K21: 2976654.114 | M21: =IF(ISERROR(K21/SUM(K19:K100)),"",K21/SUM(K19:K100)) -> 0.3893125386 | O21: =IF(ISERROR('17. RTSR - Current Wholesale'!$P$113*M21), "", '17. RTSR - Current Wholesale'!$P$113*M21) -> 2809379.316 | Q21: 2.259467787
A22: GENERAL SERVICE 1,000 TO 4,999 KW | B22: Retail Transmission Rate - Line and Transformation Connection Service Rate | C22: $/kW | E22: 1.8788 | G22: 0 | I22: 630469 | K22: 1184525.157 | M22: =IF(ISERROR(K22/SUM(K19:K100)),"",K22/SUM(K19:K100)) -> 0.1549224325 | O22: =IF(ISERROR('17. RTSR - Current Wholesale'!$P$113*M22), "", '17. RTSR - Current Wholesale'!$P$113*M22) -> 1117960.082 | Q22: 1.773219749
A23: LARGE USE | B23: Retail Transmission Rate - Line and Transformation Connection Service Rate | C23: $/kW | E23: 1.9124 | G23: 0 | I23: 477382 | K23: 912945.3368 | M23: =IF(ISERROR(K23/SUM(K19:K100)),"",K23/SUM(K19:K100)) -> 0.1194028775 | O23: =IF(ISERROR('17. RTSR - Current Wholesale'!$P$113*M23), "", '17. RTSR - Current Wholesale'!$P$113*M23) -> 861641.8462 | Q23: 1.804931577
A24: UNMETERED SCATTERED LOAD | B24: Retail Transmission Rate - Line and Transformation Connection Service Rate | C24: $/kWh | E24: 0.0039 | G24: 2055194.33 | I24: 0 | K24: 8015.257885 | M24: =IF(ISERROR(K24/SUM(K19:K100)),"",K24/SUM(K19:K100)) -> 0.001048304665 | O24: =IF(ISERROR('17. RTSR - Current Wholesale'!$P$113*M24), "", '17. RTSR - Current Wholesale'!$P$113*M24) -> 7564.835838 | Q24: 0.003680837247
A25: STREET LIGHTING | B25: Retail Transmission Rate - Line and Transformation Connection Service Rate | C25: $/kW | E25: 1.203 | G25: 0 | I25: 26970 | K25: 32444.91 | M25: =IF(ISERROR(K25/SUM(K19:K100)),"",K25/SUM(K19:K100)) -> 0.004243425602 | O25: =IF(ISERROR('17. RTSR - Current Wholesale'!$P$113*M25), "", '17. RTSR - Current Wholesale'!$P$113*M25) -> 30621.64954 | Q25: 1.13539672
A26: EMBEDDED DISTRIBUTOR | B26: Retail Transmission Rate - Line and Transformation Connection Service Rate | C26: $/kW | E26: 1.9124 | G26: 0 | I26: 119938 | K26: 229369.4312 | M26: =IF(ISERROR(K26/SUM(K19:K100)),"",K26/SUM(K19:K100)) -> 0.0299989156 | O26: =IF(ISERROR('17. RTSR - Current Wholesale'!$P$113*M26), "", '17. RTSR - Current Wholesale'!$P$113*M26) -> 216479.8835 | Q26: 1.804931577

Sheet 21. RTSR Adj Ntwk to Forcast WS
A13: The purpose of this sheet is to update the re-align RTS Network Rates to recover forecast wholesale network costs.
A16: Rate Class | B16: Rate Description | C16: Unit | E16: Adjusted RTSR-Network | G16: Loss Adjusted Billed kWh | I16: Loss Adjusted Billed kW | K16: Billed Amount | M16: Billed Amount % | O16: Forecast Wholesale Billing | Q16: Proposed RTSR Network
A19: RESIDENTIAL | B19: Retail Transmission Rate - Network Service Rate | C19: $/kWh | E19: 0.006607568607 | G19: 397811397 | I19: 0 | K19: =IF(E19="", "", IF(C19="$/kWh", E19*G19, E19*I19)) -> 2628566.098 | M19: =IF(ISERROR(K19/SUM(K19:K100)),"",K19/SUM(K19:K100)) -> 0.2258230694 | O19: =IF(ISERROR('18. RTSR - Forecast Wholesale'!$F$109*M19), "", '18. RTSR - Forecast Wholesale'!$F$109*M19) -> 2599373.756 | Q19: =IF(C19="","",IF(C19="$/kWh",IF(G19<>0,O19/G19,),IF(I19<>0,O19/I19,0))) -> 0.006534186239
A20: GENERAL SERVICE LESS THAN 50 KW | B20: Retail Transmission Rate - Network Service Rate | C20: $/kWh | E20: 0.005719984764 | G20: 161836412 | I20: 0 | K20: 925701.8107 | M20: =IF(ISERROR(K20/SUM(K19:K100)),"",K20/SUM(K19:K100)) -> 0.07952808354 | O20: =IF(ISERROR('18. RTSR - Forecast Wholesale'!$F$109*M20), "", '18. RTSR - Forecast Wholesale'!$F$109*M20) -> 915421.147 | Q20: 0.005656459729
A21: GENERAL SERVICE 50 TO 999 KW | B21: Retail Transmission Rate - Network Service Rate | C21: $/kW | E21: 3.728148001 | G21: 0 | I21: 1243381 | K21: 4635508.389 | M21: =IF(ISERROR(K21/SUM(K19:K100)),"",K21/SUM(K19:K100)) -> 0.3982417385 | O21: =IF(ISERROR('18. RTSR - Forecast Wholesale'!$F$109*M21), "", '18. RTSR - Forecast Wholesale'!$F$109*M21) -> 4584027.337 | Q21: 3.686743916
A22: GENERAL SERVICE 1,000 TO 4,999 KW | B22: Retail Transmission Rate - Network Service Rate | C22: $/kW | E22: 2.831491079 | G22: 0 | I22: 630469 | K22: 1785167.349 | M22: =IF(ISERROR(K22/SUM(K19:K100)),"",K22/SUM(K19:K100)) -> 0.1533657344 | O22: =IF(ISERROR('18. RTSR - Forecast Wholesale'!$F$109*M22), "", '18. RTSR - Forecast Wholesale'!$F$109*M22) -> 1765341.628 | Q22: 2.800045091
A23: LARGE USE | B23: Retail Transmission Rate - Network Service Rate | C23: $/kW | E23: 2.683165956 | G23: 0 | I23: 477382 | K23: 1280895.131 | M23: =IF(ISERROR(K23/SUM(K19:K100)),"",K23/SUM(K19:K100)) -> 0.1100431411 | O23: =IF(ISERROR('18. RTSR - Forecast Wholesale'!$F$109*M23), "", '18. RTSR - Forecast Wholesale'!$F$109*M23) -> 1266669.759 | Q23: 2.653367239
A24: UNMETERED SCATTERED LOAD | B24: Retail Transmission Rate - Network Service Rate | C24: $/kWh | E24: 0.005719984764 | G24: 2055194.33 | I24: 0 | K24: 11755.68025 | M24: =IF(ISERROR(K24/SUM(K19:K100)),"",K24/SUM(K19:K100)) -> 0.00100994371 | O24: =IF(ISERROR('18. RTSR - Forecast Wholesale'!$F$109*M24), "", '18. RTSR - Forecast Wholesale'!$F$109*M24) -> 11625.12396 | Q24: 0.005656459729
A25: STREET LIGHTING | B25: Retail Transmission Rate - Network Service Rate | C25: $/kW | E25: 1.873492251 | G25: 0 | I25: 26970 | K25: 50528.08601 | M25: =IF(ISERROR(K25/SUM(K19:K100)),"",K25/SUM(K19:K100)) -> 0.004340924689 | O25: =IF(ISERROR('18. RTSR - Forecast Wholesale'!$F$109*M25), "", '18. RTSR - Forecast Wholesale'!$F$109*M25) -> 49966.93094 | Q25: 1.852685612
A26: EMBEDDED DISTRIBUTOR | B26: Retail Transmission Rate - Network Service Rate | C26: $/kW | E26: 2.683165956 | G26: 0 | I26: 119938 | K26: 321813.5585 | M26: =IF(ISERROR(K26/SUM(K19:K100)),"",K26/SUM(K19:K100)) -> 0.0276473647 | O26: =IF(ISERROR('18. RTSR - Forecast Wholesale'!$F$109*M26), "", '18. RTSR - Forecast Wholesale'!$F$109*M26) -> 318239.5599 | Q26: 2.653367239

Sheet 22. RTSR Adj Conn. to Forcst WS
A13: The purpose of this sheet is to update the re-aligned RTS Connection Rates to recover forecast wholesale connection costs.
A16: Rate Class | B16: Rate Description | C16: Unit | E16: Adjusted RTSR-Connection | G16: Loss Adjusted Billed kWh | I16: Loss Adjusted Billed kW | K16: Billed Amount | M16: Billed Amount % | O16: Forecast Wholesale Billing | Q16: Proposed RTSR Connection
A19: RESIDENTIAL | B19: Retail Transmission Rate - Line and Transformation Connection Service Rate | C19: $/kWh | E19: 0.003963978574 | G19: 397811397 | I19: 0 | K19: =IF(E19="", "", IF(C19="$/kWh", E19*G19, E19*I19)) -> 1576915.854 | M19: =IF(ISERROR(K19/SUM(K19:K100)),"",K19/SUM(K19:K100)) -> 0.2185226861 | O19: =IF(ISERROR('18. RTSR - Forecast Wholesale'!$P$113*M19), "", '18. RTSR - Forecast Wholesale'!$P$113*M19) -> 1613932.243 | Q19: =IF(C19="","",IF(C19="$/kWh",IF(G19<>0,O19/G19,),IF(I19<>0,O19/I19,0))) -> 0.00405702867
A20: GENERAL SERVICE LESS THAN 50 KW | B20: Retail Transmission Rate - Line and Transformation Connection Service Rate | C20: $/kWh | E20: 0.003680837247 | G20: 161836412 | I20: 0 | K20: 595693.4931 | M20: =IF(ISERROR(K20/SUM(K19:K100)),"",K20/SUM(K19:K100)) -> 0.08254881947 | O20: =IF(ISERROR('18. RTSR - Forecast Wholesale'!$P$113*M20), "", '18. RTSR - Forecast Wholesale'!$P$113*M20) -> 609676.7516 | Q20: 0.003767240908
A21: GENERAL SERVICE 50 TO 999 KW | B21: Retail Transmission Rate - Line and Transformation Connection Service Rate | C21: $/kW | E21: 2.259467787 | G21: 0 | I21: 1243381 | K21: 2809379.316 | M21: =IF(ISERROR(K21/SUM(K19:K100)),"",K21/SUM(K19:K100)) -> 0.3893125386 | O21: =IF(ISERROR('18. RTSR - Forecast Wholesale'!$P$113*M21), "", '18. RTSR - Forecast Wholesale'!$P$113*M21) -> 2875326.448 | Q21: 2.312506342
A22: GENERAL SERVICE 1,000 TO 4,999 KW | B22: Retail Transmission Rate - Line and Transformation Connection Service Rate | C22: $/kW | E22: 1.773219749 | G22: 0 | I22: 630469 | K22: 1117960.082 | M22: =IF(ISERROR(K22/SUM(K19:K100)),"",K22/SUM(K19:K100)) -> 0.1549224325 | O22: =IF(ISERROR('18. RTSR - Forecast Wholesale'!$P$113*M22), "", '18. RTSR - Forecast Wholesale'!$P$113*M22) -> 1144202.982 | Q22: 1.814844158
A23: LARGE USE | B23: Retail Transmission Rate - Line and Transformation Connection Service Rate | C23: $/kW | E23: 1.804931577 | G23: 0 | I23: 477382 | K23: 861641.8462 | M23: =IF(ISERROR(K23/SUM(K19:K100)),"",K23/SUM(K19:K100)) -> 0.1194028775 | O23: =IF(ISERROR('18. RTSR - Forecast Wholesale'!$P$113*M23), "", '18. RTSR - Forecast Wholesale'!$P$113*M23) -> 881867.9538 | Q23: 1.847300388
A24: UNMETERED SCATTERED LOAD | B24: Retail Transmission Rate - Line and Transformation Connection Service Rate | C24: $/kWh | E24: 0.003680837247 | G24: 2055194.33 | I24: 0 | K24: 7564.835838 | M24: =IF(ISERROR(K24/SUM(K19:K100)),"",K24/SUM(K19:K100)) -> 0.001048304665 | O24: =IF(ISERROR('18. RTSR - Forecast Wholesale'!$P$113*M24), "", '18. RTSR - Forecast Wholesale'!$P$113*M24) -> 7742.412152 | Q24: 0.003767240908
A25: STREET LIGHTING | B25: Retail Transmission Rate - Line and Transformation Connection Service Rate | C25: $/kW | E25: 1.13539672 | G25: 0 | I25: 26970 | K25: 30621.64954 | M25: =IF(ISERROR(K25/SUM(K19:K100)),"",K25/SUM(K19:K100)) -> 0.004243425602 | O25: =IF(ISERROR('18. RTSR - Forecast Wholesale'!$P$113*M25), "", '18. RTSR - Forecast Wholesale'!$P$113*M25) -> 31340.45954 | Q25: 1.162048926
A26: EMBEDDED DISTRIBUTOR | B26: Retail Transmission Rate - Line and Transformation Connection Service Rate | C26: $/kW | E26: 1.804931577 | G26: 0 | I26: 119938 | K26: 216479.8835 | M26: =IF(ISERROR(K26/SUM(K19:K100)),"",K26/SUM(K19:K100)) -> 0.0299989156 | O26: =IF(ISERROR('18. RTSR - Forecast Wholesale'!$P$113*M26), "", '18. RTSR - Forecast Wholesale'!$P$113*M26) -> 221561.5139 | Q26: 1.847300388

Sheet 23. RTSR Final 2015 RTS Rates
A13: This sheet lists proposed RTSRs for all classes. No input required.
A16: Rate Class | B16: Rate Description | C16: Unit | E16: Proposed Retail Transmission Rate
A19: RESIDENTIAL | B19: Retail Transmission Rate - Network Service Rate | C19: $/kWh | E19: 0.006534186239
A20: RESIDENTIAL | B20: Retail Transmission Rate - Line and Transformation Connection Service Rate | C20: $/kWh | E20: 0.00405702867
A21: GENERAL SERVICE LESS THAN 50 KW | B21: Retail Transmission Rate - Network Service Rate | C21: $/kWh | E21: 0.005656459729
A22: GENERAL SERVICE LESS THAN 50 KW | B22: Retail Transmission Rate - Line and Transformation Connection Service Rate | C22: $/kWh | E22: 0.003767240908
A23: GENERAL SERVICE 50 TO 999 KW | B23: Retail Transmission Rate - Network Service Rate | C23: $/kW | E23: 3.686743916
A24: GENERAL SERVICE 50 TO 999 KW | B24: Retail Transmission Rate - Line and Transformation Connection Service Rate | C24: $/kW | E24: 2.312506342
A25: GENERAL SERVICE 1,000 TO 4,999 KW | B25: Retail Transmission Rate - Network Service Rate | C25: $/kW | E25: 2.800045091
A26: GENERAL SERVICE 1,000 TO 4,999 KW | B26: Retail Transmission Rate - Line and Transformation Connection Service Rate | C26: $/kW | E26: 1.814844158
A27: LARGE USE | B27: Retail Transmission Rate - Network Service Rate | C27: $/kW | E27: 2.653367239
A28: LARGE USE | B28: Retail Transmission Rate - Line and Transformation Connection Service Rate | C28: $/kW | E28: 1.847300388
A29: UNMETERED SCATTERED LOAD | B29: Retail Transmission Rate - Network Service Rate | C29: $/kWh | E29: 0.005656459729
A30: UNMETERED SCATTERED LOAD | B30: Retail Transmission Rate - Line and Transformation Connection Service Rate | C30: $/kWh | E30: 0.003767240908
A31: STREET LIGHTING | B31: Retail Transmission Rate - Network Service Rate | C31: $/kW | E31: 1.852685612
A32: STREET LIGHTING | B32: Retail Transmission Rate - Line and Transformation Connection Service Rate | C32: $/kW | E32: 1.162048926
A33: EMBEDDED DISTRIBUTOR | B33: Retail Transmission Rate - Network Service Rate | C33: $/kW | E33: 2.653367239
A34: EMBEDDED DISTRIBUTOR | B34: Retail Transmission Rate - Line and Transformation Connection Service Rate | C34: $/kW | E34: 1.847300388

Sheet 24. Rev2Cost_GDPIPI
Y1: FALSE | Z1: 0 | AC1: NO
Y2: TRUE
A12: If applicable, please enter any adjustments related to the revenue to cost ratio model into columns C and E. The Price Escalator and Stretch Factor have been set at the 2014 values and will be updated by Board staff at a later date.
A15: Price Escalator | B15: 0.016 | C15: Choose Stretch Factor Group | E15: III
A16: Productivity Factor | B16: 0 | C16: Associated Stretch Factor Value | E16: =IF(E15="I", 0%, IF(E15="II", 0.15%, IF(E15="III", 0.3%, IF(E15="IV", 0.45%, 0.6%)))) -> 0.003
A17: Price Cap Index | B17: =B15-B16-E16 -> 0.013
B19: Current MFC | C19: MFC Adjustment from R/C Model | D19: Current Volumetric Charge | E19: DVR Adjustment from R/C Model | F19: Price Cap Index to be Applied to MFC and DVR | G19: Proposed MFC | H19: Proposed Volumetric Charge
A20: Rate Class
A22: RESIDENTIAL | B22: 11 | D22: 0.0178 | F22: =$B$17 -> 0.013 | G22: =ROUND(SUM(B22,C22)*(1+F22),2) -> 11.14 | H22: =ROUND(SUM(D22,E22)*(1+F22),4) -> 0.018
A23: GENERAL SERVICE LESS THAN 50 KW | B23: 13 | D23: 0.0139 | F23: 0.013 | G23: 13.17 | H23: 0.0141
A24: GENERAL SERVICE 50 TO 999 KW | B24: 109.35 | D24: 3.9801 | F24: 0.013 | G24: 110.77 | H24: 4.0318
A25: GENERAL SERVICE 1,000 TO 4,999 KW | B25: 991.12 | D25: 3.4499 | F25: 0.013 | G25: 1004 | H25: 3.4947
A26: GENERAL SERVICE GREATER THAN 50 kW - WMP | F26: 0.013 | G26: 0 | H26: 0
A27: LARGE USE | B27: 8490.71 | D27: 2.3578 | F27: 0.013 | G27: 8601.09 | H27: 2.3885
A28: UNMETERED SCATTERED LOAD | B28: 5.58 | D28: 0.0119 | F28: 0.013 | G28: 5.65 | H28: 0.0121
A29: STREET LIGHTING | B29: 2.43 | D29: 15.4807 | F29: 0.013 | G29: 2.46 | H29: 15.6819
A30: EMBEDDED DISTRIBUTOR | D30: 1.8457 | F30: 0.013 | G30: 0 | H30: 1.8697
A31: EMBEDDED DISTRIBUTOR | B31: - | D31: 1.9813 | F31: 0.013 | G31: 0 | H31: 2.0071
A32: microFIT | B32: 5.4 | G32: 5.4

Sheet 24. hidden (hidden)
A1: Rate Class | B1: MFC Adjustment from R/C Model | C1: DVR Adjustment from R/C Model
A2: RESIDENTIAL | B2: 11 | D2: 0.0178
A3: GENERAL SERVICE LESS THAN 50 KW | B3: 13 | D3: 0.0139
A4: GENERAL SERVICE 50 TO 999 KW | B4: 109.35 | D4: 3.9801
A5: GENERAL SERVICE 1,000 TO 4,999 KW | B5: 991.12 | D5: 3.4499
A6: GENERAL SERVICE GREATER THAN 50 kW - WMP
A7: LARGE USE | B7: 8490.71 | D7: 2.3578
A8: UNMETERED SCATTERED LOAD | B8: 5.58 | D8: 0.0119
A9: STREET LIGHTING | B9: 2.43 | D9: 15.4807
A10: EMBEDDED DISTRIBUTOR | D10: 1.8457

Sheet 25. Other Charges & LF
A11: Please enter the following charges as found on your most recent Board-Approved Tariff Schedule. The standard Allowance rates have been included as default entries. If you have different rates, please make the appropriate corrections in the applicable cells below. As well, please enter the current Specific Service Charges below. The standard Retail Service Charges have been entered below. If you have different rates, please make the appropriate corrections in columns A, C or D as applicable (cells are unlocked).
C13: UNIT | D13: RATE
A15: ALLOWANCES
A17: Transformer Allowance for Ownership - per kW of billing demand/month | C17: $/kW | D17: -0.6
A20: Primary Metering Allowance for transformer losses – applied to measured demand and energy | C20: % | D20: -1
A22: SPECIFIC SERVICE CHARGES
A24: APPLICATION
A26: The application of these rates and charges shall be in accordance with the Licence of the Distributor and any Code or Order of the Board, and amendments thereto as approved by the Board, which may be applicable to the administration of this schedule.
A27: No charges to meet the costs of any work or service done or furnished for the purpose of the distribution of electricity shall be made except as permitted by this schedule, unless required by the Distributor’s Licence or a Code or Order of the Board, and amendments thereto as approved by the Board, or as specified herein.
A28: It should be noted that this schedule does not list any charges, assessments or credits that are required by law to be invoiced by a distributor and that are not subject to Board approval, such as the Debt Retirement Charge, the Global Adjustment, the Ontario Clean Energy Benefit and the HST.
A30: Customer Administration
A31: Arrears certificate | C31: $ | D31: 15
A32: Statement of Account | C32: $ | D32: 15
A33: Pulling Post Dated Cheques | C33: $ | D33: 15
A34: Duplicate Invoices for previous billing | C34: $ | D34: 15
A35: Request for other billing information | C35: $ | D35: 15
A36: Easement Letter | C36: $ | D36: 15
A37: Income Tax Letter | C37: $ | D37: 15
A38: Notification charge | C38: $ | D38: 15
A39: Account History | C39: $ | D39: 15
A40: Returned cheque (plus bank charges) | C40: $ | D40: 15
A41: Charge to certify cheque | C41: $ | D41: 15
A42: Legal letter charge | C42: $ | D42: 15
A43: Account set up charge/change of occupancy charge (plus credit agency costs if applicable) | C43: $ | D43: 30
A44: Special meter reads | C44: $ | D44: 30
A45: Meter dispute charge plus Measurement Canada fees (if meter found correct) | C45: $ | D45: 30
A61: Credit Reference/credit check (plus credit agency costs) | C61: $ | D61: 15
A62: Specific Charge for Access to the Power Poles - per year/year | C62: $ | D62: 22.35
A67: Non-Payment of Account
A68: Late Payment – per month | C68: % | D68: 1.5
A69: Late Payment – per annum | C69: % | D69: 19.56
A70: Collection of account charge – no disconnection – during regular hours | C70: $ | D70: 30
A71: Collection of account charge – no disconnection – after regular hours | C71: $ | D71: 165
A72: Disconnect/Reconnect at meter – during regular hours | C72: $ | D72: 65
A73: Disconnect/Reconnect at meter – after regular hours | C73: $ | D73: 185
A74: Disconnect/Reconnect at pole – during regular hours | C74: $ | D74: 185
A75: Disconnect/Reconnect at pole – after regular hours | C75: $ | D75: 415
A76: Install/Remove load control device – during regular hours | C76: $ | D76: 65
A77: Install/Remove load control device – after regular hours | C77: $ | D77: 185
A78: Service call – customer owned equipment | C78: $ | D78: 30
A79: Service Call – Customer-owned Equipment – After Regular Hours | C79: $ | D79: 165
A116: RETAIL SERVICE CHARGES (if applicable)
A118: The application of these rates and charges shall be in accordance with the Licence of the Distributor and any Code or Order of the Board, and amendments thereto as approved by the Board, which may be applicable to the administration of this schedule.
A120: No rates and charges for the distribution of electricity and charges to meet the costs of any work or service done or furnished for the purpose of the distribution of electricity shall be made except as permitted by this schedule, unless required by the Distributor’s Licence or a Code or Order of the Board, and amendments thereto as approved by the Board, or as specified herein.
A122: Unless specifically noted, this schedule does not contain any charges for the electricity commodity, be it under the Regulated Price Plan, a contract with a retailer or the wholesale market price, as applicable.
A124: It should be noted that this schedule does not list any charges, assessments, or credits that are required by law to be invoiced by a distributor and that are not subject to Board approval, such as the Debt Retirement Charge, the Global Adjustment, the Ontario Clean Energy Benefit and the HST.
A126: Retail Service Charges refer to services provided by a distributor to retailers or customers related to the supply of competitive electricity.
A128: One-time charge, per retailer, to establish the service agreement between the distributor and the retailer | C128: $ | D128: 100
A129: Monthly Fixed Charge, per retailer | C129: $ | D129: 20
A130: Monthly Variable Charge, per customer, per retailer | C130: $/cust. | D130: 0.5
A131: Distributor-consolidated billing monthly charge, per customer, per retailer | C131: $/cust. | D131: 0.3
A132: Retailer-consolidated billing monthly credit, per customer, per retailer | C132: $/cust. | D132: -0.3
A133: Service Transaction Requests (STR)
A134: Request fee, per request, applied to the requesting party | C134: $ | D134: 0.25
A135: Processing fee, per request, applied to the requesting party | C135: $ | D135: 0.5
A136: Request for customer information as outlined in Section 10.6.3 and Chapter 11 of the Retail
A137: Settlement Code directly to retailers and customers, if not delivered electronically through the
A138: Electronic Business Transaction (EBT) system, applied to the requesting party
A139: Up to twice a year | C139: $ | D139: no charge
A140: More than twice a year, per request (plus incremental delivery costs) | C140: $ | D140: 2
A143: LOSS FACTORS
A145: If the distributor is not capable of prorating changed loss factors jointly with distribution rates, the revised loss factors will be implemented upon the first subsequent billing for each billing cycle.
A148: Total Loss Factor – Secondary Metered Customer < 5,000 kW | D148: 1.0335 | H148: TLF_Secondary_LT_5000kW
A149: Total Loss Factor – Primary Metered Customer > 5,000 kW | D149: 1.0145 | H149: TLF_Primary_LT_5000kW
A150: Total Loss Factor – Primary Metered Customer < 5,000 kW | D150: 1.0235
A151: Total Loss Factor – Primary Metered Customer > 5,000 kW | D151: 1.0045

Sheet 26. Proposed Rates
Z1: 3
L5: =ROUND(LEN(B5), -2) / 100 -> 0
L9: =ROUND(LEN(B9), -2) / 100 -> 0
B12: In the Green Cells below, enter any proposed rate riders that are not already included in this model (e.g: ICM rate riders). In column B, the rate rider descriptions must begin with "Rate Rider for". In column C, choose the associated unit from the drop-down menu. In column D, enter the rate. All rate riders with a "$" unit will be rounded to 2 decimal places and all others will be rounded to 4 decimal places.
A20: RESIDENTIAL | B20: RESIDENTIAL SERVICE CLASSIFICATION | C20: Unit | D20: Rate
A21: RESIDENTIAL | B21: Rate Rider for Recovery of Z-Factor (Storm) Costs | C21: $ | D21: 0.44
A22: RESIDENTIAL
A23: RESIDENTIAL
A24: RESIDENTIAL
A25: RESIDENTIAL
A26: RESIDENTIAL
A27: RESIDENTIAL
A28: RESIDENTIAL
A29: RESIDENTIAL
A30: RESIDENTIAL
A32: GENERAL SERVICE LESS THAN 50 KW | B32: GENERAL SERVICE LESS THAN 50 KW SERVICE CLASSIFICATION | C32: Unit | D32: Rate
A33: GENERAL SERVICE LESS THAN 50 KW | B33: Rate Rider for Recovery of Z-Factor (Storm) Costs | C33: $ | D33: 0.92
A34: GENERAL SERVICE LESS THAN 50 KW
A35: GENERAL SERVICE LESS THAN 50 KW
A36: GENERAL SERVICE LESS THAN 50 KW
A37: GENERAL SERVICE LESS THAN 50 KW
A38: GENERAL SERVICE LESS THAN 50 KW
A39: GENERAL SERVICE LESS THAN 50 KW
A40: GENERAL SERVICE LESS THAN 50 KW
A41: GENERAL SERVICE LESS THAN 50 KW
A42: GENERAL SERVICE LESS THAN 50 KW
A44: GENERAL SERVICE 50 TO 999 KW | B44: GENERAL SERVICE 50 TO 999 KW SERVICE CLASSIFICATION | C44: Unit | D44: Rate
A45: GENERAL SERVICE 50 TO 999 KW | B45: Rate Rider for Recovery of Z-Factor (Storm) Costs | C45: $ | D45: 14.17
A46: GENERAL SERVICE 50 TO 999 KW
A47: GENERAL SERVICE 50 TO 999 KW
A48: GENERAL SERVICE 50 TO 999 KW
A49: GENERAL SERVICE 50 TO 999 KW
A50: GENERAL SERVICE 50 TO 999 KW
A51: GENERAL SERVICE 50 TO 999 KW
A52: GENERAL SERVICE 50 TO 999 KW
A53: GENERAL SERVICE 50 TO 999 KW
A54: GENERAL SERVICE 50 TO 999 KW
A56: GENERAL SERVICE 1,000 TO 4,999 KW | B56: GENERAL SERVICE 1,000 TO 4,999 KW SERVICE CLASSIFICATION | C56: Unit | D56: Rate
A57: GENERAL SERVICE 1,000 TO 4,999 KW | B57: Rate Rider for Recovery of Z-Factor (Storm) Costs | C57: $ | D57: 117.72
A58: GENERAL SERVICE 1,000 TO 4,999 KW
A59: GENERAL SERVICE 1,000 TO 4,999 KW
A60: GENERAL SERVICE 1,000 TO 4,999 KW
A61: GENERAL SERVICE 1,000 TO 4,999 KW
A62: GENERAL SERVICE 1,000 TO 4,999 KW
A63: GENERAL SERVICE 1,000 TO 4,999 KW
A64: GENERAL SERVICE 1,000 TO 4,999 KW
A65: GENERAL SERVICE 1,000 TO 4,999 KW
A66: GENERAL SERVICE 1,000 TO 4,999 KW
A68: GENERAL SERVICE GREATER THAN 50 KW - WMP | B68: GENERAL SERVICE GREATER THAN 50 KW - WMP SERVICE CLASSIFICATION | C68: Unit | D68: Rate
A69: GENERAL SERVICE GREATER THAN 50 KW - WMP
A70: GENERAL SERVICE GREATER THAN 50 KW - WMP
A71: GENERAL SERVICE GREATER THAN 50 KW - WMP
A72: GENERAL SERVICE GREATER THAN 50 KW - WMP
A73: GENERAL SERVICE GREATER THAN 50 KW - WMP
A74: GENERAL SERVICE GREATER THAN 50 KW - WMP
A75: GENERAL SERVICE GREATER THAN 50 KW - WMP
A76: GENERAL SERVICE GREATER THAN 50 KW - WMP
A77: GENERAL SERVICE GREATER THAN 50 KW - WMP
A78: GENERAL SERVICE GREATER THAN 50 KW - WMP
A80: LARGE USE | B80: LARGE USE SERVICE CLASSIFICATION | C80: Unit | D80: Rate
A81: LARGE USE | B81: Rate Rider for Recovery of Z-Factor (Storm) Costs | C81: $ | D81: 1145.58
A82: LARGE USE
A83: LARGE USE
A84: LARGE USE
A85: LARGE USE
A86: LARGE USE
A87: LARGE USE
A88: LARGE USE
A89: LARGE USE
A90: LARGE USE
A92: UNMETERED SCATTERED LOAD | B92: UNMETERED SCATTERED LOAD SERVICE CLASSIFICATION | C92: Unit | D92: Rate
A93: UNMETERED SCATTERED LOAD | B93: Rate Rider for Recovery of Z-Factor (Storm) Costs | C93: $ | D93: 0.17
A94: UNMETERED SCATTERED LOAD
A95: UNMETERED SCATTERED LOAD
A96: UNMETERED SCATTERED LOAD
A97: UNMETERED SCATTERED LOAD
A98: UNMETERED SCATTERED LOAD
A99: UNMETERED SCATTERED LOAD
A100: UNMETERED SCATTERED LOAD
A101: UNMETERED SCATTERED LOAD
A102: UNMETERED SCATTERED LOAD
A104: STREET LIGHTING | B104: STREET LIGHTING SERVICE CLASSIFICATION | C104: Unit | D104: Rate
A105: STREET LIGHTING | B105: Rate Rider for Recovery of Z-Factor (Storm) Costs | C105: $ | D105: 0.09
A106: STREET LIGHTING
A107: STREET LIGHTING
A108: STREET LIGHTING
A109: STREET LIGHTING
A110: STREET LIGHTING
A111: STREET LIGHTING
A112: STREET LIGHTING
A113: STREET LIGHTING
A114: STREET LIGHTING
A116: EMBEDDED DISTRIBUTOR | B116: EMBEDDED DISTRIBUTOR SERVICE CLASSIFICATION | C116: Unit | D116: Rate
A117: EMBEDDED DISTRIBUTOR | B117: Rate Rider for Recovery of Z-Factor (Storm) Costs | C117: $ | D117: 147.76
A118: EMBEDDED DISTRIBUTOR
A119: EMBEDDED DISTRIBUTOR
A120: EMBEDDED DISTRIBUTOR
A121: EMBEDDED DISTRIBUTOR
A122: EMBEDDED DISTRIBUTOR
A123: EMBEDDED DISTRIBUTOR
A124: EMBEDDED DISTRIBUTOR
A125: EMBEDDED DISTRIBUTOR
A126: EMBEDDED DISTRIBUTOR
A128: microFIT | B128: microFIT SERVICE CLASSIFICATION | C128: Unit | D128: Rate
A129: microFIT
A130: microFIT
A131: microFIT
A132: microFIT
A133: microFIT
A134: microFIT
A135: microFIT
A136: microFIT
A137: microFIT
A138: microFIT
B142: PROPOSED MONTHLY RATES AND CHARGES - Regulatory Component
A144: Wholesale Market Service Rate | B144: Wholesale Market Service Rate | C144: $/kWh | D144: 0.0044
A145: Rural or Remote Electricity Rate Protection Charge (RRRP) | B145: Rural or Remote Electricity Rate Protection Charge (RRRP) | C145: $/kWh | D145: 0.0013
A146: Standard Supply Service - Administrative Charge (if applicable) | B146: Standard Supply Service - Administrative Charge (if applicable) | C146: $ | D146: 0.25

Sheet 26. Hidden (hidden)
A1: RESIDENTIAL | B1: RESIDENTIAL SERVICE CLASSIFICATION | C1: Unit | D1: Rate
A2: RESIDENTIAL | B2: Rate Rider for Recovery of Z-Factor (Storm) Costs | C2: $ | D2: 0.44
A3: RESIDENTIAL
A4: RESIDENTIAL
A5: RESIDENTIAL
A6: RESIDENTIAL
A7: RESIDENTIAL
A8: RESIDENTIAL
A9: RESIDENTIAL
A10: RESIDENTIAL
A11: RESIDENTIAL
A13: GENERAL SERVICE LESS THAN 50 KW | B13: GENERAL SERVICE LESS THAN 50 KW SERVICE CLASSIFICATION | C13: Unit | D13: Rate
A14: GENERAL SERVICE LESS THAN 50 KW | B14: Rate Rider for Recovery of Z-Factor (Storm) Costs | C14: $ | D14: 0.92
A15: GENERAL SERVICE LESS THAN 50 KW
A16: GENERAL SERVICE LESS THAN 50 KW
A17: GENERAL SERVICE LESS THAN 50 KW
A18: GENERAL SERVICE LESS THAN 50 KW
A19: GENERAL SERVICE LESS THAN 50 KW
A20: GENERAL SERVICE LESS THAN 50 KW
A21: GENERAL SERVICE LESS THAN 50 KW
A22: GENERAL SERVICE LESS THAN 50 KW
A23: GENERAL SERVICE LESS THAN 50 KW
A25: GENERAL SERVICE 50 TO 999 KW | B25: GENERAL SERVICE 50 TO 999 KW SERVICE CLASSIFICATION | C25: Unit | D25: Rate
A26: GENERAL SERVICE 50 TO 999 KW | B26: Rate Rider for Recovery of Z-Factor (Storm) Costs | C26: $ | D26: 14.17
A27: GENERAL SERVICE 50 TO 999 KW
A28: GENERAL SERVICE 50 TO 999 KW
A29: GENERAL SERVICE 50 TO 999 KW
A30: GENERAL SERVICE 50 TO 999 KW
A31: GENERAL SERVICE 50 TO 999 KW
A32: GENERAL SERVICE 50 TO 999 KW
A33: GENERAL SERVICE 50 TO 999 KW
A34: GENERAL SERVICE 50 TO 999 KW
A35: GENERAL SERVICE 50 TO 999 KW
A37: GENERAL SERVICE 1,000 TO 4,999 KW | B37: GENERAL SERVICE 1,000 TO 4,999 KW SERVICE CLASSIFICATION | C37: Unit | D37: Rate
A38: GENERAL SERVICE 1,000 TO 4,999 KW | B38: Rate Rider for Recovery of Z-Factor (Storm) Costs | C38: $ | D38: 117.72
A39: GENERAL SERVICE 1,000 TO 4,999 KW
A40: GENERAL SERVICE 1,000 TO 4,999 KW
A41: GENERAL SERVICE 1,000 TO 4,999 KW
A42: GENERAL SERVICE 1,000 TO 4,999 KW
A43: GENERAL SERVICE 1,000 TO 4,999 KW
A44: GENERAL SERVICE 1,000 TO 4,999 KW
A45: GENERAL SERVICE 1,000 TO 4,999 KW
A46: GENERAL SERVICE 1,000 TO 4,999 KW
A47: GENERAL SERVICE 1,000 TO 4,999 KW
A49: GENERAL SERVICE GREATER THAN 50 KW - WMP | B49: GENERAL SERVICE GREATER THAN 50 KW - WMP SERVICE CLASSIFICATION | C49: Unit | D49: Rate
A50: GENERAL SERVICE GREATER THAN 50 KW - WMP
A51: GENERAL SERVICE GREATER THAN 50 KW - WMP
A52: GENERAL SERVICE GREATER THAN 50 KW - WMP
A53: GENERAL SERVICE GREATER THAN 50 KW - WMP
A54: GENERAL SERVICE GREATER THAN 50 KW - WMP
A55: GENERAL SERVICE GREATER THAN 50 KW - WMP
A56: GENERAL SERVICE GREATER THAN 50 KW - WMP
A57: GENERAL SERVICE GREATER THAN 50 KW - WMP
A58: GENERAL SERVICE GREATER THAN 50 KW - WMP
A59: GENERAL SERVICE GREATER THAN 50 KW - WMP
A61: LARGE USE | B61: LARGE USE SERVICE CLASSIFICATION | C61: Unit | D61: Rate
A62: LARGE USE | B62: Rate Rider for Recovery of Z-Factor (Storm) Costs | C62: $ | D62: 1145.58
A63: LARGE USE
A64: LARGE USE
A65: LARGE USE
A66: LARGE USE
A67: LARGE USE
A68: LARGE USE
A69: LARGE USE
A70: LARGE USE
A71: LARGE USE
A73: UNMETERED SCATTERED LOAD | B73: UNMETERED SCATTERED LOAD SERVICE CLASSIFICATION | C73: Unit | D73: Rate
A74: UNMETERED SCATTERED LOAD | B74: Rate Rider for Recovery of Z-Factor (Storm) Costs | C74: $ | D74: 0.17
A75: UNMETERED SCATTERED LOAD
A76: UNMETERED SCATTERED LOAD
A77: UNMETERED SCATTERED LOAD
A78: UNMETERED SCATTERED LOAD
A79: UNMETERED SCATTERED LOAD
A80: UNMETERED SCATTERED LOAD
A81: UNMETERED SCATTERED LOAD
A82: UNMETERED SCATTERED LOAD
A83: UNMETERED SCATTERED LOAD
A85: STREET LIGHTING | B85: STREET LIGHTING SERVICE CLASSIFICATION | C85: Unit | D85: Rate
A86: STREET LIGHTING | B86: Rate Rider for Recovery of Z-Factor (Storm) Costs | C86: $ | D86: 0.09
A87: STREET LIGHTING
A88: STREET LIGHTING
A89: STREET LIGHTING
A90: STREET LIGHTING
A91: STREET LIGHTING
A92: STREET LIGHTING
A93: STREET LIGHTING
A94: STREET LIGHTING
A95: STREET LIGHTING
A97: EMBEDDED DISTRIBUTOR | B97: EMBEDDED DISTRIBUTOR SERVICE CLASSIFICATION | C97: Unit | D97: Rate
A98: EMBEDDED DISTRIBUTOR | B98: Rate Rider for Recovery of Z-Factor (Storm) Costs | C98: $ | D98: 147.76
A99: EMBEDDED DISTRIBUTOR
A100: EMBEDDED DISTRIBUTOR
A101: EMBEDDED DISTRIBUTOR
A102: EMBEDDED DISTRIBUTOR
A103: EMBEDDED DISTRIBUTOR
A104: EMBEDDED DISTRIBUTOR
A105: EMBEDDED DISTRIBUTOR
A106: EMBEDDED DISTRIBUTOR
A107: EMBEDDED DISTRIBUTOR
A109: microFIT | B109: microFIT SERVICE CLASSIFICATION | C109: Unit | D109: Rate
A110: microFIT
A111: microFIT
A112: microFIT
A113: microFIT
A114: microFIT
A115: microFIT
A116: microFIT
A117: microFIT
A118: microFIT
A119: microFIT
B123: PROPOSED MONTHLY RATES AND CHARGES - Regulatory Component
A125: Wholesale Market Service Rate | B125: Wholesale Market Service Rate | C125: $/kWh | D125: 0.0044
A126: Rural or Remote Electricity Rate Protection Charge (RRRP) | B126: Rural or Remote Electricity Rate Protection Charge (RRRP) | C126: $/kWh | D126: 0.0013
A127: Standard Supply Service - Administrative Charge (if applicable) | B127: Standard Supply Service - Administrative Charge (if applicable) | C127: $ | D127: 0.25

Sheet 27. Final Tariff Schedule
A1: hidden column | B1: ='1. Information Sheet'!F14 -> Cambridge and North Dumfries Hydro Inc. | F1: hidden column | Z1: 3
A2: for rate classes | B2: TARIFF OF RATES AND CHARGES | F2: for proposed
B3: ="Effective and Implementation Date " & TEXT('1. Information Sheet'!F26, "mmmm dd, yyyy") -> Effective and Implementation Date May 01, 2015 | F3: labeliing
B5: This schedule supersedes and replaces all previously
B6: approved schedules of Rates, Charges and Loss Factors | L6: =ROUND(LEN(B6), -2) / 100 -> 1
B7: =IF(LEN('1. Information Sheet'!F18)=0, "Please enter your assigned EB# on Sheet 1", '1. Information Sheet'!F18) -> EB-2014-0060
B9: RESIDENTIAL SERVICE CLASSIFICATION
B11: Residential refers to the supply of electrical energy to detached, semi-detached and row-housing units (freehold or condominium). This classification typically refers to an account taking electricity at 750 volts or less where electricity is used exclusively in a separate metered living accommodation. Customers shall be residing in single-dwelling units that consist of a detached house or one unit of a semi-detached, duplex, triplex, or quadruplex house, with a residential zoning. Separate metered dwellings within a town house complex, condominium, or apartment building also qualify as residential customers. Further servicing details are available in the distributor's Conditions of Service. | L11: =ROUND(LEN(B11), -2) / 100 -> 7
B13: APPLICATION
B15: The application of these rates and charges shall be in accordance with the Licence of the Distributor and any Code or Order of the Board, and amendments thereto as approved by the Board, which may be applicable to the administration of this schedule. | L15: =ROUND(LEN(B15), -2) / 100 -> 3
B17: No rates and charges for the distribution of electricity and charges to meet the costs of any work or service done or furnished for the purpose of the distributor of electricity shall be made except as permitted by this schedule, unless required by the Distributor's Licence or a Code or Order of the Board, and amendments thereto as approved by the Board, or as specified herein. | L17: =ROUND(LEN(B17), -2) / 100 -> 4
B19: Unless specifically noted, this schedule does not contain any charges for the electricity commodity, be it under the Regulated Price Plan, a contract with a retailer or the wholesale market price, as applicable. In addition, the charges in the MONTHLY RATES AND CHARGES - Regulatory Component of this schedule do not apply to a customer that is an embedded wholesale market participant. | L19: =ROUND(LEN(B19), -2) / 100 -> 4
B21: It should be noted that this schedule does not list any charges or assessments that are required by law to be charged by a distributor and that are not subject to Board approval, such as the Debt Retirement Charge, the Global Adjustment, the Ontario Clean Energy Benefit and the HST. | L21: =ROUND(LEN(B21), -2) / 100 -> 3
B23: MONTHLY RATES AND CHARGES - Delivery Component
A25: RESIDENTIAL | B25: Service Charge | D25: $ | E25: 11.14 | K25: 1_P_MSC
A26: RESIDENTIAL | B26: Rate Rider for Smart Metering Entity Charge - effective until October 31, 2018 | D26: $ | E26: 0.79 | K26: 1_P_SMEC
A27: RESIDENTIAL | B27: Distribution Volumetric Rate | D27: $/kWh | E27: 0.018 | K27: 1_P_VC_1
A28: RESIDENTIAL | B28: Low Voltage Service Rate | D28: $/kWh | E28: 0.0001 | K28: 1_P_LVrate
A29: RESIDENTIAL | B29: Rate Rider for Recovery of Z-Factor (Storm) Costs | D29: $ | E29: 0.44 | K29: 1_P_MSC_Rate_Rider_2
A30: RESIDENTIAL | B30: Rate Rider for Disposition of Deferral/Variance Accounts (2015) - effective until April 30, 2016 | D30: $/kWh | E30: -0.0016 | K30: 1_P_VC_DEFVAR_kWh_1
A31: RESIDENTIAL | B31: Rate Rider for Disposition of Global Adjustment Account (2015) - effective until April 30, 2016 Applicable only for Non RPP Customers | D31: $/kWh | E31: 0.0035 | K31: 1_P_VC_GA_Rate_Rider_kWh_1
A32: RESIDENTIAL | B32: Rate Rider for Recovery of Lost Revenue Adjustment Mechanism Variance Account (LRAMVA) (2015) - effective until April 30, 2016 | D32: $/kWh | E32: 0.0001 | K32: 1_P_VC_Rate_Rider_kWh_2
A33: RESIDENTIAL | B33: Retail Transmission Rate - Network Service Rate | D33: $/kWh | E33: 0.006534186239 | K33: 1_P_RTSR_Network
A34: RESIDENTIAL | B34: Retail Transmission Rate - Line and Transformation Connection Service Rate | D34: $/kWh | E34: 0.00405702867 | K34: 1_P_RTSR_Connection
A35: RESIDENTIAL
A36: RESIDENTIAL | B36: MONTHLY RATES AND CHARGES - Regulatory Component
A37: RESIDENTIAL
A38: RESIDENTIAL | B38: Wholesale Market Service Rate | D38: $/kWh | E38: 0.0044 | K38: 1_P_WMSR
A39: RESIDENTIAL | B39: Rural or Remote Electricity Rate Protection Charge (RRRP) | D39: $/kWh | E39: 0.0013 | K39: 1_P_RRPC
A40: RESIDENTIAL | B40: Standard Supply Service - Administrative Charge (if applicable) | D40: $ | E40: 0.25 | K40: 1_P_SSS
B42: GENERAL SERVICE LESS THAN 50 KW SERVICE CLASSIFICATION
B44: General Service refers to the supply of electrical energy to business customers, to bulk-metered residential buildings and to combined residential and business or residential and agricultural buildings. Apartment buildings that are bulk metered will be billed at the appropriate General Service rate. This classification refers to a non-residential account taking electricity at 750 volts or less whose average monthly peak demand is less than, or is forecast to be less than, 50 kW. Further servicing details are available in the distributor's Conditions of Service. | L44: =ROUND(LEN(B44), -2) / 100 -> 6
B46: APPLICATION
B48: The application of these rates and charges shall be in accordance with the Licence of the Distributor and any Code or Order of the Board, and amendments thereto as approved by the Board, which may be applicable to the administration of this schedule. | L48: =ROUND(LEN(B48), -2) / 100 -> 3
B50: No rates and charges for the distribution of electricity and charges to meet the costs of any work or service done or furnished for the purpose of the distributor of electricity shall be made except as permitted by this schedule, unless required by the Distributor's Licence or a Code or Order of the Board, and amendments thereto as approved by the Board, or as specified herein. | L50: =ROUND(LEN(B50), -2) / 100 -> 4
B52: Unless specifically noted, this schedule does not contain any charges for the elcetricity commodity, be it under the Regulated Price Plan, a contract with a retailer or the wholesale market price, as applicable. In addition, the charges in the MONTHLY RATES AND CHARGES - Regulatory Component of this schedule do not apply to a customer that is an embedded wholesale market participant. | L52: =ROUND(LEN(B52), -2) / 100 -> 4
B54: It should be noted that this schedule does not list any charges or assessments that are required by law to be charged by a distributor and that are not subject to Board approval, such as the Debt Retirement Charge, the Global Adjustment, the Ontario Clean Energy Benefit and the HST. | L54: =ROUND(LEN(B54), -2) / 100 -> 3
B56: MONTHLY RATES AND CHARGES - Delivery Component
A58: GENERAL SERVICE LESS THAN 50 KW | B58: Service Charge | D58: $ | E58: 13.17 | K58: 2_P_MSC
A59: GENERAL SERVICE LESS THAN 50 KW | B59: Rate Rider for Smart Metering Entity Charge - effective until October 31, 2018 | D59: $ | E59: 0.79 | K59: 2_P_SMEC
A60: GENERAL SERVICE LESS THAN 50 KW | B60: Distribution Volumetric Rate | D60: $/kWh | E60: 0.0141 | K60: 2_P_VC_1
A61: GENERAL SERVICE LESS THAN 50 KW | B61: Low Voltage Service Rate | D61: $/kWh | E61: 0.0001 | K61: 2_P_LVrate
A62: GENERAL SERVICE LESS THAN 50 KW | B62: Rate Rider for Recovery of Z-Factor (Storm) Costs | D62: $ | E62: 0.92 | K62: 2_P_MSC_Rate_Rider_2
A63: GENERAL SERVICE LESS THAN 50 KW | B63: Rate Rider for Disposition of Deferral/Variance Accounts (2015) - effective until April 30, 2016 | D63: $/kWh | E63: -0.0017 | K63: 2_P_VC_DEFVAR_kWh_1
A64: GENERAL SERVICE LESS THAN 50 KW | B64: Rate Rider for Disposition of Global Adjustment Account (2015) - effective until April 30, 2016 Applicable only for Non RPP Customers | D64: $/kWh | E64: 0.0035 | K64: 2_P_VC_GA_Rate_Rider_kWh_1
A65: GENERAL SERVICE LESS THAN 50 KW | B65: Rate Rider for Recovery of Lost Revenue Adjustment Mechanism Variance Account (LRAMVA) (2015) - effective until April 30, 2016 | D65: $/kWh | E65: 0.0001 | K65: 2_P_VC_Rate_Rider_kWh_2
A66: GENERAL SERVICE LESS THAN 50 KW | B66: Retail Transmission Rate - Network Service Rate | D66: $/kWh | E66: 0.005656459729 | K66: 2_P_RTSR_Network
A67: GENERAL SERVICE LESS THAN 50 KW | B67: Retail Transmission Rate - Line and Transformation Connection Service Rate | D67: $/kWh | E67: 0.003767240908 | K67: 2_P_RTSR_Connection
A68: GENERAL SERVICE LESS THAN 50 KW
A69: GENERAL SERVICE LESS THAN 50 KW | B69: MONTHLY RATES AND CHARGES - Regulatory Component
A70: GENERAL SERVICE LESS THAN 50 KW
A71: GENERAL SERVICE LESS THAN 50 KW | B71: Wholesale Market Service Rate | D71: $/kWh | E71: 0.0044 | K71: 2_P_WMSR
A72: GENERAL SERVICE LESS THAN 50 KW | B72: Rural or Remote Electricity Rate Protection Charge (RRRP) | D72: $/kWh | E72: 0.0013 | K72: 2_P_RRPC
A73: GENERAL SERVICE LESS THAN 50 KW | B73: Standard Supply Service - Administrative Charge (if applicable) | D73: $ | E73: 0.25 | K73: 2_P_SSS
B75: GENERAL SERVICE 50 TO 999 KW SERVICE CLASSIFICATION
B77: General Service refers to the supply of electrical energy to business customers, to bulk-metered residential buildings and to combined residential and business or residential and agricultural buildings. Apartment buildings that are bulk metered will be billed at the appropriate General Service rate. This classification refers to a non-residential account whose average monthly peak demand is equal to or greater than, or is forecast to be equal to or greater than, 50 kW but less than 1,000 kW. Further servicing details are available in the distributor's Conditions of Service. | L77: =ROUND(LEN(B77), -2) / 100 -> 6
B79: APPLICATION
B81: The application of these rates and charges shall be in accordance with the Licence of the Distributor and any Code or Order of the Board, and amendments thereto as approved by the Board, which may be applicable to the administration of this schedule. | L81: =ROUND(LEN(B81), -2) / 100 -> 3
B83: No rates and charges for the distribution of electricity and charges to meet the costs of any work or service done or furnished for the purpose of the distributor of electricity shall be made except as permitted by this schedule, unless required by the Distributor's Licence or a Code or Order of the Board, and amendments thereto as approved by the Board, or as specified herein. | L83: =ROUND(LEN(B83), -2) / 100 -> 4
B85: Unless specifically noted, this schedule does not contain any charges for the electricity commodity, be it under the Regulated Price Plan, a contract with a retailer or the wholesale market price, as applicable. In addition, the charges in the MONTHLY RATES AND CHARGES - Regulatory Component of this schedule do not apply to a customer that is an embedded wholesale market participant. | L85: =ROUND(LEN(B85), -2) / 100 -> 4
B87: It should be noted that this schedule does not list any charges or assessments that are required by law to be charged by a distributor and that are not subject to Board approval, such as the Debt Retirement Charge, the Global Adjustment, the Ontario Clean Energy Benefit and the HST. | L87: =ROUND(LEN(B87), -2) / 100 -> 3
B89: MONTHLY RATES AND CHARGES - Delivery Component
A91: GENERAL SERVICE 50 TO 999 KW | B91: Service Charge | D91: $ | E91: 110.77 | K91: 3_P_MSC
A92: GENERAL SERVICE 50 TO 999 KW | B92: Distribution Volumetric Rate | D92: $/kW | E92: 4.0318 | K92: 3_P_VC_1
A93: GENERAL SERVICE 50 TO 999 KW | B93: Low Voltage Service Rate | D93: $/kW | E93: 0.0537 | K93: 3_P_LVrate
A94: GENERAL SERVICE 50 TO 999 KW | B94: Rate Rider for Recovery of Z-Factor (Storm) Costs | D94: $ | E94: 14.17 | K94: 3_P_MSC_Rate_Rider_1
A95: GENERAL SERVICE 50 TO 999 KW | B95: Rate Rider for Disposition of Deferral/Variance Accounts (2015) - effective until April 30, 2016 | D95: $/kW | E95: -0.5367 | K95: 3_P_VC_DEFVAR_kW_1
A96: GENERAL SERVICE 50 TO 999 KW | B96: Rate Rider for Disposition of Global Adjustment Account (2015) - effective until April 30, 2016 Applicable only for Non RPP Customers | D96: $/kW | E96: 1.0847 | K96: 3_P_VC_GA_Rate_Rider_kW_1
A97: GENERAL SERVICE 50 TO 999 KW | B97: Rate Rider for Recovery of Lost Revenue Adjustment Mechanism Variance Account (LRAMVA) (2015) - effective until April 30, 2016 | D97: $/kW | E97: 0.1251 | K97: 3_P_VC_Rate_Rider_kW_2
A98: GENERAL SERVICE 50 TO 999 KW | B98: Retail Transmission Rate - Network Service Rate | D98: $/kW | E98: 3.686743916 | K98: 3_P_RTSR_Network
A99: GENERAL SERVICE 50 TO 999 KW | B99: Retail Transmission Rate - Line and Transformation Connection Service Rate | D99: $/kW | E99: 2.312506342 | K99: 3_P_RTSR_Connection
A100: GENERAL SERVICE 50 TO 999 KW
A101: GENERAL SERVICE 50 TO 999 KW | B101: MONTHLY RATES AND CHARGES - Regulatory Component
A102: GENERAL SERVICE 50 TO 999 KW
A103: GENERAL SERVICE 50 TO 999 KW | B103: Wholesale Market Service Rate | D103: $/kWh | E103: 0.0044 | K103: 3_P_WMSR
A104: GENERAL SERVICE 50 TO 999 KW | B104: Rural or Remote Electricity Rate Protection Charge (RRRP) | D104: $/kWh | E104: 0.0013 | K104: 3_P_RRPC
A105: GENERAL SERVICE 50 TO 999 KW | B105: Standard Supply Service - Administrative Charge (if applicable) | D105: $ | E105: 0.25 | K105: 3_P_SSS
B107: GENERAL SERVICE 1,000 TO 4,999 KW SERVICE CLASSIFICATION
B109: General Service refers to the supply of electrical energy to business customers, to bulk-metered residential buildings and to combined residential and business or residential and agricultural buildings. Apartment buildings that are bulk metered will be billed at the appropriate General Service rate. This classification refers to a non-residential account whose average monthly peak demand is equal to or greater than, or is forecast to be equal to or greater than, 1,000 kW but less than 5,000 kW. Further servicing details are available in the distributor's Conditions of Service. | L109: =ROUND(LEN(B109), -2) / 100 -> 6
B111: APPLICATION
B113: The application of these rates and charges shall be in accordance with the Licence of the Distributor and any Code or Order of the Board, and amendments thereto as approved by the Board, which may be applicable to the administration of this schedule. | L113: =ROUND(LEN(B113), -2) / 100 -> 3
B115: No rates and charges for the distribution of electricity and charges to meet the costs of any work or service done or furnished for the purpose of the distributor of electricity shall be made except as permitted by this schedule, unless required by the Distributor's Licence or a Code or Order of the Board, and amendments thereto as approved by the Board, or as specified herein. | L115: =ROUND(LEN(B115), -2) / 100 -> 4
B117: Unless specifically noted, this schedule does not contain any charges for the electricity commodity, be it under the Regulated Price Plan, a contract with a retailer or the wholesale market price, as applicable. In addition, the charges in the MONTHLY RATES AND CHARGES - Regulatory Component of this schedule do not apply to a customer that is an embedded wholesale market participant. | L117: =ROUND(LEN(B117), -2) / 100 -> 4
B119: It should be noted that this schedule does not list any charges or assessments that are required by law to be charged by a distributor and that are not subject to Board approval, such as the Debt Retirement Charge, the Global Adjustment, the Ontario Clean Energy Benefit and the HST. | L119: =ROUND(LEN(B119), -2) / 100 -> 3
B121: MONTHLY RATES AND CHARGES - Delivery Component
A123: GENERAL SERVICE 1,000 TO 4,999 KW | B123: Service Charge | D123: $ | E123: 1004 | K123: 4_P_MSC
A124: GENERAL SERVICE 1,000 TO 4,999 KW | B124: Distribution Volumetric Rate | D124: $/kW | E124: 3.4947 | K124: 4_P_VC_1
A125: GENERAL SERVICE 1,000 TO 4,999 KW | B125: Low Voltage Service Rate | D125: $/kW | E125: 0.0421 | K125: 4_P_LVrate
A126: GENERAL SERVICE 1,000 TO 4,999 KW | B126: Rate Rider for Recovery of Z-Factor (Storm) Costs | D126: $ | E126: 117.72 | K126: 4_P_MSC_Rate_Rider_1
A127: GENERAL SERVICE 1,000 TO 4,999 KW | B127: Rate Rider for Disposition of Deferral/Variance Accounts (2015) - effective until April 30, 2016 | D127: $/kW | E127: -0.7289 | K127: 4_P_VC_DEFVAR_kW_1
A128: GENERAL SERVICE 1,000 TO 4,999 KW | B128: Rate Rider for Disposition of Global Adjustment Account (2015) - effective until April 30, 2016 Applicable only for Non RPP Customers | D128: $/kW | E128: 1.4728 | K128: 4_P_VC_GA_Rate_Rider_kW_1
A129: GENERAL SERVICE 1,000 TO 4,999 KW | B129: Rate Rider for Recovery of Lost Revenue Adjustment Mechanism Variance Account (LRAMVA) (2015) - effective until April 30, 2016 | D129: $/kW | E129: 0.0577 | K129: 4_P_VC_Rate_Rider_kW_2
A130: GENERAL SERVICE 1,000 TO 4,999 KW | B130: Retail Transmission Rate - Network Service Rate | D130: $/kW | E130: 2.800045091 | K130: 4_P_RTSR_Network
A131: GENERAL SERVICE 1,000 TO 4,999 KW | B131: Retail Transmission Rate - Line and Transformation Connection Service Rate | D131: $/kW | E131: 1.814844158 | K131: 4_P_RTSR_Connection
A132: GENERAL SERVICE 1,000 TO 4,999 KW
A133: GENERAL SERVICE 1,000 TO 4,999 KW | B133: MONTHLY RATES AND CHARGES - Regulatory Component
A134: GENERAL SERVICE 1,000 TO 4,999 KW
A135: GENERAL SERVICE 1,000 TO 4,999 KW | B135: Wholesale Market Service Rate | D135: $/kWh | E135: 0.0044 | K135: 4_P_WMSR
A136: GENERAL SERVICE 1,000 TO 4,999 KW | B136: Rural or Remote Electricity Rate Protection Charge (RRRP) | D136: $/kWh | E136: 0.0013 | K136: 4_P_RRPC
A137: GENERAL SERVICE 1,000 TO 4,999 KW | B137: Standard Supply Service - Administrative Charge (if applicable) | D137: $ | E137: 0.25 | K137: 4_P_SSS
B139: GENERAL SERVICE GREATER THAN 50 KW - WMP SERVICE CLASSIFICATION
L141: =ROUND(LEN(B141), -2) / 100 -> 0
B143: APPLICATION
L145: =ROUND(LEN(B145), -2) / 100 -> 0
L147: =ROUND(LEN(B147), -2) / 100 -> 0
L149: =ROUND(LEN(B149), -2) / 100 -> 0
L151: =ROUND(LEN(B151), -2) / 100 -> 0
B153: MONTHLY RATES AND CHARGES - Delivery Component
A155: GENERAL SERVICE GREATER THAN 50 KW - WMP | B155: Rate Rider for Disposition of Deferral/Variance Accounts (2015) - effective until April 30, 2016 | D155: $/kW | E155: -0.0407 | K155: 5_P_VC_DEFVAR_kW_1
A156: GENERAL SERVICE GREATER THAN 50 KW - WMP
A157: GENERAL SERVICE GREATER THAN 50 KW - WMP | B157: MONTHLY RATES AND CHARGES - Regulatory Component
A158: GENERAL SERVICE GREATER THAN 50 KW - WMP
A159: GENERAL SERVICE GREATER THAN 50 KW - WMP | B159: Wholesale Market Service Rate | D159: $/kWh | E159: 0.0044 | K159: 5_P_WMSR
A160: GENERAL SERVICE GREATER THAN 50 KW - WMP | B160: Rural or Remote Electricity Rate Protection Charge (RRRP) | D160: $/kWh | E160: 0.0013 | K160: 5_P_RRPC
A161: GENERAL SERVICE GREATER THAN 50 KW - WMP | B161: Standard Supply Service - Administrative Charge (if applicable) | D161: $ | E161: 0.25 | K161: 5_P_SSS
B163: LARGE USE SERVICE CLASSIFICATION
B165: General Service refers to the supply of electrical energy to business customers, to bulk-metered residential buildings and to combined residential and business or residential and agricultural buildings. Apartment buildings that are bulk metered will be billed at the appropriate General Service rate. This classification refers to an account whose average monthly peak demand is equal to or greater than, or is forecast to be equal to or greater than, 5,000 kW. Further servicing details are available in the distributor's Conditions of Service. | L165: =ROUND(LEN(B165), -2) / 100 -> 6
B167: APPLICATION
B169: The application of these rates and charges shall be in accordance with the Licence of the Distributor and any Code or Order of the Board, and amendments thereto as approved by the Board, which may be applicable to the administration of this schedule. | L169: =ROUND(LEN(B169), -2) / 100 -> 3
B171: No rates and charges for the distribution of electricity and charges to meet the costs of any work or service done or furnished for the purpose of the distributor of electricity shall be made except as permitted by this schedule, unless required by the Distributor's Licence or a Code or Order of the Board, and amendments thereto as approved by the Board, or as specified herein. | L171: =ROUND(LEN(B171), -2) / 100 -> 4
B173: Unless specifically noted, this schedule does not contain any charges for the electricity commodity, be it under the Regulated Price Plan, a contract with a retailer or the wholesale market price, as applicable. In addition, the charges in the MONTHLY RATES AND CHARGES - Regulatory Component of this schedule do not apply to a customer that is an embedded wholesale market participant. | L173: =ROUND(LEN(B173), -2) / 100 -> 4
B175: It should be noted that this schedule does not list any charges or assessments that are required by law to be charged by a distributor and that are not subject to Board approval, such as the Debt Retirement Charge, the Global Adjustment, the Ontario Clean Energy Benefit and the HST. | L175: =ROUND(LEN(B175), -2) / 100 -> 3
B177: MONTHLY RATES AND CHARGES - Delivery Component
A179: LARGE USE | B179: Service Charge | D179: $ | E179: 8601.09 | K179: 6_P_MSC
A180: LARGE USE | B180: Distribution Volumetric Rate | D180: $/kW | E180: 2.3885 | K180: 6_P_VC_1
A181: LARGE USE | B181: Low Voltage Service Rate | D181: $/kW | E181: 0.0421 | K181: 6_P_LVrate
A182: LARGE USE | B182: Rate Rider for Recovery of Z-Factor (Storm) Costs | D182: $ | E182: 1145.58 | K182: 6_P_MSC_Rate_Rider_1
A183: LARGE USE | B183: Rate Rider for Disposition of Deferral/Variance Accounts (2015) - effective until April 30, 2016 | D183: $/kW | E183: -0.8372 | K183: 6_P_VC_DEFVAR_kW_1
A184: LARGE USE | B184: Rate Rider for Recovery of Lost Revenue Adjustment Mechanism Variance Account (LRAMVA) (2015) - effective until April 30, 2016 | D184: $/kW | E184: 0.0189 | K184: 6_P_VC_Rate_Rider_kW_2
A185: LARGE USE | B185: Retail Transmission Rate - Network Service Rate | D185: $/kW | E185: 2.653367239 | K185: 6_P_RTSR_Network
A186: LARGE USE | B186: Retail Transmission Rate - Line and Transformation Connection Service Rate | D186: $/kW | E186: 1.847300388 | K186: 6_P_RTSR_Connection
A187: LARGE USE
A188: LARGE USE | B188: MONTHLY RATES AND CHARGES - Regulatory Component
A189: LARGE USE
A190: LARGE USE | B190: Wholesale Market Service Rate | D190: $/kWh | E190: 0.0044 | K190: 6_P_WMSR
A191: LARGE USE | B191: Rural or Remote Electricity Rate Protection Charge (RRRP) | D191: $/kWh | E191: 0.0013 | K191: 6_P_RRPC
A192: LARGE USE | B192: Standard Supply Service - Administrative Charge (if applicable) | D192: $ | E192: 0.25 | K192: 6_P_SSS
B194: UNMETERED SCATTERED LOAD SERVICE CLASSIFICATION
B196: This classification refers to an account taking electricity at 750 volts or less whose average monthly peak demand is less than, or is forecast to be less than, 50kW and the consumption is unmetered. Such connections include cable TV power packs, bus shelters, telephone booths, traffic lights, railway crossings, etc. The customer will provide detailed manufacturer information/documentation with regard to electrical demand/consumption of the proposed unmetered load. Further servicing details are available in the distributor's Conditions of Service. | L196: =ROUND(LEN(B196), -2) / 100 -> 6
B198: APPLICATION
B200: The application of these rates and charges shall be in accordance with the Licence of the Distributor and any Code or Order of the Board, and amendments thereto as approved by the Board, which may be applicable to the administration of this schedule. | L200: =ROUND(LEN(B200), -2) / 100 -> 3
B202: No rates and charges for the distribution of electricity and charges to meet the costs of any work or service done or furnished for the purpose of the distributor of electricity shall be made except as permitted by this schedule, unless required by the Distributor's Licence or a Code or Order of the Board, and amendments thereto as approved by the Board, or as specified herein. | L202: =ROUND(LEN(B202), -2) / 100 -> 4
B204: Unless specifically noted, this schedule does not contain any charges for the elcetricity commodity, be it under the Regulated Price Plan, a contract with a retailer or the wholesale market price, as applicable. In addition, the charges in the MONTHLY RATES AND CHARGES - Regulatory Component of this schedule do not apply to a customer that is an embedded wholesale market participant. | L204: =ROUND(LEN(B204), -2) / 100 -> 4
B206: It should be noted that this schedule does not list any charges or assessments that are required by law to be charged by a distributor and that are not subject to Board approval, such as the Debt Retirement Charge, the Global Adjustment, the Ontario Clean Energy Benefit and the HST. | L206: =ROUND(LEN(B206), -2) / 100 -> 3
B208: MONTHLY RATES AND CHARGES - Delivery Component
A210: UNMETERED SCATTERED LOAD | B210: Service Charge (per connection) | D210: $ | E210: 5.65 | K210: 7_P_MSC
A211: UNMETERED SCATTERED LOAD | B211: Distribution Volumetric Rate | D211: $/kWh | E211: 0.0121 | K211: 7_P_VC_1
A212: UNMETERED SCATTERED LOAD | B212: Low Voltage Service Rate | D212: $/kWh | E212: 0.0001 | K212: 7_P_LVrate
A213: UNMETERED SCATTERED LOAD | B213: Rate Rider for Recovery of Z-Factor (Storm) Costs | D213: $ | E213: 0.17 | K213: 7_P_MSC_Rate_Rider_1
A214: UNMETERED SCATTERED LOAD | B214: Rate Rider for Disposition of Deferral/Variance Accounts (2015) - effective until April 30, 2016 | D214: $/kWh | E214: -0.0017 | K214: 7_P_VC_DEFVAR_kWh_1
A215: UNMETERED SCATTERED LOAD | B215: Rate Rider for Disposition of Global Adjustment Account (2015) - effective until April 30, 2016 Applicable only for Non RPP Customers | D215: $/kWh | E215: 0.0035 | K215: 7_P_VC_GA_Rate_Rider_kWh_1
A216: UNMETERED SCATTERED LOAD | B216: Retail Transmission Rate - Network Service Rate | D216: $/kWh | E216: 0.005656459729 | K216: 7_P_RTSR_Network
A217: UNMETERED SCATTERED LOAD | B217: Retail Transmission Rate - Line and Transformation Connection Service Rate | D217: $/kWh | E217: 0.003767240908 | K217: 7_P_RTSR_Connection
A218: UNMETERED SCATTERED LOAD
A219: UNMETERED SCATTERED LOAD | B219: MONTHLY RATES AND CHARGES - Regulatory Component
A220: UNMETERED SCATTERED LOAD
A221: UNMETERED SCATTERED LOAD | B221: Wholesale Market Service Rate | D221: $/kWh | E221: 0.0044 | K221: 7_P_WMSR
A222: UNMETERED SCATTERED LOAD | B222: Rural or Remote Electricity Rate Protection Charge (RRRP) | D222: $/kWh | E222: 0.0013 | K222: 7_P_RRPC
A223: UNMETERED SCATTERED LOAD | B223: Standard Supply Service - Administrative Charge (if applicable) | D223: $ | E223: 0.25 | K223: 7_P_SSS
B225: STREET LIGHTING SERVICE CLASSIFICATION
B227: This classification refers to an account for roadway lighting with a Municipality, Regional Municipality, Ministry of Transportation and private roadway lighting operation, controlled by photo cells. The consumption for these customers will be based on the calculated connected load times the required lighting times established in the approved OEB street lighting load shape template. Further servicing details are available in the distributor's Conditions of Service. | L227: =ROUND(LEN(B227), -2) / 100 -> 5
B229: APPLICATION
B231: The application of these rates and charges shall be in accordance with the Licence of the Distributor and any Code or Order of the Board, and amendments thereto as approved by the Board, which may be applicable to the administration of this schedule. | L231: =ROUND(LEN(B231), -2) / 100 -> 3
B233: No rates and charges for the distribution of electricity and charges to meet the costs of any work or service done or furnished for the purpose of the distributor of electricity shall be made except as permitted by this schedule, unless required by the Distributor's Licence or a Code or Order of the Board, and amendments thereto as approved by the Board, or as specified herein. | L233: =ROUND(LEN(B233), -2) / 100 -> 4
B235: Unless specifically noted, this schedule does not contain any charges for the elcetricity commodity, be it under the Regulated Price Plan, a contract with a retailer or the wholesale market price, as applicable. In addition, the charges in the MONTHLY RATES AND CHARGES - Regulatory Component of this schedule do not apply to a customer that is an embedded wholesale market participant. | L235: =ROUND(LEN(B235), -2) / 100 -> 4
B237: It should be noted that this schedule does not list any charges or assessments that are required by law to be charged by a distributor and that are not subject to Board approval, such as the Debt Retirement Charge, the Global Adjustment, the Ontario Clean Energy Benefit and the HST. | L237: =ROUND(LEN(B237), -2) / 100 -> 3
B239: MONTHLY RATES AND CHARGES - Delivery Component
A241: STREET LIGHTING | B241: Service Charge (per connection) | D241: $ | E241: 2.46 | K241: 8_P_MSC
A242: STREET LIGHTING | B242: Distribution Volumetric Rate | D242: $/kW | E242: 15.6819 | K242: 8_P_VC_1
A243: STREET LIGHTING | B243: Low Voltage Service Rate | D243: $/kW | E243: 0.027 | K243: 8_P_LVrate
A244: STREET LIGHTING | B244: Rate Rider for Recovery of Z-Factor (Storm) Costs | D244: $ | E244: 0.09 | K244: 8_P_MSC_Rate_Rider_1
A245: STREET LIGHTING | B245: Rate Rider for Disposition of Deferral/Variance Accounts (2015) - effective until April 30, 2016 | D245: $/kW | E245: -0.6472 | K245: 8_P_VC_DEFVAR_kW_1
A246: STREET LIGHTING | B246: Rate Rider for Disposition of Global Adjustment Account (2015) - effective until April 30, 2016 Applicable only for Non RPP Customers | D246: $/kW | E246: 1.3053 | K246: 8_P_VC_GA_Rate_Rider_kW_1
A247: STREET LIGHTING | B247: Retail Transmission Rate - Network Service Rate | D247: $/kW | E247: 1.852685612 | K247: 8_P_RTSR_Network
A248: STREET LIGHTING | B248: Retail Transmission Rate - Line and Transformation Connection Service Rate | D248: $/kW | E248: 1.162048926 | K248: 8_P_RTSR_Connection
A249: STREET LIGHTING
A250: STREET LIGHTING | B250: MONTHLY RATES AND CHARGES - Regulatory Component
A251: STREET LIGHTING
A252: STREET LIGHTING | B252: Wholesale Market Service Rate | D252: $/kWh | E252: 0.0044 | K252: 8_P_WMSR
A253: STREET LIGHTING | B253: Rural or Remote Electricity Rate Protection Charge (RRRP) | D253: $/kWh | E253: 0.0013 | K253: 8_P_RRPC
A254: STREET LIGHTING | B254: Standard Supply Service - Administrative Charge (if applicable) | D254: $ | E254: 0.25 | K254: 8_P_SSS
B256: EMBEDDED DISTRIBUTOR SERVICE CLASSIFICATION
B258: This classification applies to an electricity distributor licenced by the Board, that is provided electricity by means of this distributor's facilities. Further servicing details are available in the distributor's Conditions of Service. | L258: =ROUND(LEN(B258), -2) / 100 -> 2
B260: APPLICATION
B262: The application of these rates and charges shall be in accordance with the Licence of the Distributor and any Code or Order of the Board, and amendments thereto as approved by the Board, which may be applicable to the administration of this schedule. | L262: =ROUND(LEN(B262), -2) / 100 -> 3
B264: No rates and charges for the distribution of electricity and charges to meet the costs of any work or service done or furnished for the purpose of the distributor of electricity shall be made except as permitted by this schedule, unless required by the Distributor's Licence or a Code or Order of the Board, and amendments thereto as approved by the Board, or as specified herein. | L264: =ROUND(LEN(B264), -2) / 100 -> 4
B266: Unless specifically noted, this schedule does not contain any charges for the elcetricity commodity, be it under the Regulated Price Plan, a contract with a retailer or the wholesale market price, as applicable. In addition, the charges in the MONTHLY RATES AND CHARGES - Regulatory Component of this schedule do not apply to a customer that is an embedded wholesale market participant. | L266: =ROUND(LEN(B266), -2) / 100 -> 4
B268: It should be noted that this schedule does not list any charges or assessments that are required by law to be charged by a distributor and that are not subject to Board approval, such as the Debt Retirement Charge, the Global Adjustment, the Ontario Clean Energy Benefit and the HST. | L268: =ROUND(LEN(B268), -2) / 100 -> 3
B270: MONTHLY RATES AND CHARGES - Delivery Component
A272: EMBEDDED DISTRIBUTOR | B272: Monthly Distribution Wheeling Service Rate - Waterloo North Hydro | D272: $/kW | E272: 1.8697 | K272: 9_P_VC_1
A273: EMBEDDED DISTRIBUTOR | B273: Monthly Distribution Wheeling Service Rate - Hydro One Networks | D273: $/kW | E273: 2.0071 | K273: 9_P_VC_2
A274: EMBEDDED DISTRIBUTOR | B274: Rate Rider for Recovery of Z-Factor (Storm) Costs | D274: $ | E274: 147.76 | K274: 9_P_MSC_Rate_Rider_1
A275: EMBEDDED DISTRIBUTOR | B275: Rate Rider for Disposition of Deferral/Variance Accounts (2015) - effective until April 30, 2016 | D275: $/kW | E275: -0.7335 | K275: 9_P_VC_DEFVAR_kW_1
A276: EMBEDDED DISTRIBUTOR | B276: Rate Rider for Disposition of Global Adjustment Account (2015) - effective until April 30, 2016 Applicable only for Non RPP Customers | D276: $/kW | E276: 1.4795 | K276: 9_P_VC_GA_Rate_Rider_kW_1
A277: EMBEDDED DISTRIBUTOR | B277: Retail Transmission Rate - Network Service Rate | D277: $/kW | E277: 2.653367239 | K277: 9_P_RTSR_Network
A278: EMBEDDED DISTRIBUTOR | B278: Retail Transmission Rate - Line and Transformation Connection Service Rate | D278: $/kW | E278: 1.847300388 | K278: 9_P_RTSR_Connection
A279: EMBEDDED DISTRIBUTOR
A280: EMBEDDED DISTRIBUTOR | B280: MONTHLY RATES AND CHARGES - Regulatory Component
A281: EMBEDDED DISTRIBUTOR
A282: EMBEDDED DISTRIBUTOR | B282: Wholesale Market Service Rate | D282: $/kWh | E282: 0.0044 | K282: 9_P_WMSR
... 76 more rows

Sheet 14. Bill Impacts (hidden)
Z1: =MATCH(A13, '3. Rate Class Selection'!B19:B40,0) -> 1 | AA1: =VLOOKUP(A13, lists!AO:AP,2,0) -> kWh
A11: Choose a Rate Class from the drop-down menu below and click UPDATE. For Street Lighting and USL classes, please ensure that the number of customers is manually entered into cells B30 and B31. Click the UPDATE button to refresh the sheet.
A13: RESIDENTIAL | F13: =IF(ISERROR(SEARCH("MicroFit",A13,1))=FALSE,"Bill impact presentation for this class does not exist.", "") -> 
A15: Consumption | B15: =730*D15*B17 -> 3650000 | C15: kWh | D15: 10000 | E15: =IF(AA1 = "kWh", "", "kW") -> 
A16: RPP Tier One | B16: 600 | C16: kWh | E16: 1
A17: Load Factor | B17: 0.5
A18: Loss Factor | B18: 1
B21: CURRENT ESTIMATED BILL | E21: PROPOSED ESTIMATED BILL
B22: Volume | C22: Current Rate ($) | D22: Current Charge ($) | E22: Volume | F22: Proposed Rate ($) | G22: Proposed Charge ($) | I22: Change ($) | J22: Change (%) | K22: % of Total RPP Bill | L22: % of Total TOU Bill
A23: Energy First Tier (kWh) | B23: 3650000 | C23: 0.075 | D23: =B23*C23 -> 273750 | E23: =B23 -> 3650000 | F23: =C23 -> 0.075 | G23: =E23*F23 -> 273750 | I23: =G23-D23 -> 0 | J23: =I23/D23 -> 0 | K23: =G23/G48 -> 0.8646078577
A24: Energy Second Tier (kWh) | B24: 0 | C24: 0.088 | D24: =B24*C24 -> 0 | E24: =B24 -> 0 | F24: =C24 -> 0.088 | G24: =E24*F24 -> 0 | I24: =G24-D24 -> 0 | J24: 0 | K24: =G24/G48 -> 0
A26: TOU - Off Peak | B26: =0.64*$B$15*$B$18 -> 2336000 | C26: 0.065 | D26: =C26*B26 -> 151840 | E26: =B26 -> 2336000 | F26: =C26 -> 0.065 | G26: =F26*E26 -> 151840 | I26: =G26-D26 -> 0 | J26: =I26/D26 -> 0 | L26: =G26/G54 -> 0.449726096
A27: TOU - Mid Peak | B27: =0.18*$B$15*$B$18 -> 657000 | C27: 0.1 | D27: =C27*B27 -> 65700 | E27: =B27 -> 657000 | F27: =C27 -> 0.1 | G27: =F27*E27 -> 65700 | H27: =G27*F27 -> 6570 | I27: =G27-D27 -> 0 | J27: =I27/D27 -> 0 | L27: =G27/G54 -> 0.1945930223
A28: TOU - On Peak | B28: =0.18*$B$15*$B$18 -> 657000 | C28: 0.117 | D28: 76869 | F28: =C28 -> 0.117 | G28: =F28*E28 -> 0 | H28: =G28*F28 -> 0 | J28: =I28/D28 -> 0 | L28: =G28/G54 -> 0
A30: Service Charge | B30: 1 | D30: 0 | G30: =F30*E30 -> 0 | H30: 0 | J30: 0 | K30: 0 | L30: 0
A31: Service Charge Rate Rider(s) | B31: 1 | C31: 0 | D31: 0 | F31: 0 | G31: 0 | H31: 0 | J31: 0 | K31: 0 | L31: 0
A32: Distribution Volumetric Rate | B32: 10000 | D32: 0 | E32: =B32 -> 10000 | G32: 0 | H32: 0 | I32: =G32-D32 -> 0 | J32: 0 | K32: 0 | L32: 0
A33: Low Voltage Volumetric Rate | B33: 10000 | D33: 0 | G33: 0 | H33: 0 | J33: 0 | K33: 0 | L33: 0
A34: Distribution Volumetric Rate Rider(s) | B34: 10000 | C34: 0 | D34: 0 | F34: 1.2025 | G34: 0 | H34: 0 | J34: 0 | K34: =G34/G48 -> 0 | L34: =G34/G54 -> 0
A35: Total: Distribution | D35: =ROUND(SUM(D30:D34),2) -> 0 | G35: =ROUND(SUM(G30:G34),2) -> 0 | J35: 0 | K35: =G35/G48 -> 0 | L35: =G35/G54 -> 0
A36: Total: Retail Transmission
A37: Sub-Total: Delivery (Distribution and Retail Transmission) | D37: =SUM(D36,D35) -> 0 | G37: =SUM(G36,G35) -> 0 | J37: 0 | K37: =G37/G48 -> 0 | L37: =G37/G54 -> 0
A38: Wholesale Market Service Rate | B38: 3650000 | C38: 0 | D38: =B38*C38 -> 0 | F38: =C38 -> 0 | G38: =E38*F38 -> 0 | J38: 0 | K38: 0 | L38: 0
A39: Rural Rate Protection Charge | B39: 3650000 | C39: 0 | D39: =B39*C39 -> 0 | E39: 3650000 | F39: 0 | G39: =E39*F39 -> 0 | I39: =G39-D39 -> 0 | J39: 0 | K39: 0 | L39: 0
A40: Standard Supply Service – Administration Charge (if applicable) | B40: 1 | C40: 0 | D40: =B40*C40 -> 0 | E40: 1 | F40: 0 | G40: =E40*F40 -> 0 | I40: =G40-D40 -> 0 | J40: 0 | K40: 0 | L40: 0
A41: Sub-Total: Regulatory | D41: =SUM(D38:D40) -> 0 | G41: =SUM(G38:H40) -> 0 | I41: =G41-D41 -> 0 | J41: 0 | K41: 0 | L41: 0
A42: Debt Retirement Charge (DRC) | B42: 3650000 | C42: 0.007 | D42: =B42*C42 -> 25550 | E42: =B42 -> 3650000 | F42: =C42 -> 0.007 | G42: =E42*F42 -> 25550 | I42: =G42-D42 -> 0 | J42: =I42/D42 -> 0 | K42: =G42/G48 -> 0.08069673339 | L42: =G42/G54 -> 0.07567506422
A44: Total Bill on RPP (before taxes) | D44: 299300 | G44: 311325 | I44: =G44-D44 -> 12025 | J44: =I44/D44 -> 0.04017707985 | K44: =G44/G48 -> 0.9832841691
A45: HST | C45: 0.13 | D45: =C45*D44 -> 38909 | F45: =C45 -> 0.13 | G45: =F45*G44 -> 40472.25 | I45: =G45-D45 -> 1563.25 | J45: =I45/D45 -> 0.04017707985 | K45: =G45/G48 -> 0.127826942
A46: Total Bill (including HST) | D46: =D45+D44 -> 338209 | G46: =G45+G44 -> 351797.25 | I46: =G46-D46 -> 13588.25 | J46: =I46/D46 -> 0.04017707985 | K46: =G46/G48 -> 1.111111111
A47: Ontario Clean Energy Benefit (OCEB) | C47: -0.1 | D47: =-0.1*D46 -> -33820.9 | F47: =C47 -> -0.1 | G47: =-0.1*G46 -> -35179.725 | I47: =G47-D47 -> -1358.825 | J47: =I47/D47 -> 0.04017707985 | K47: =G47/G48 -> -0.1111111111
A48: Total Bill on RPP (including OCEB) | D48: =D46+D47 -> 304388.1 | G48: =G46+G47 -> 316617.525 | I48: =G48-D48 -> 12229.425 | J48: =I48/D48 -> 0.04017707985 | K48: =G48/G48 -> 1
A50: Total Bill on TOU (before taxes) | D50: 319959 | G50: 331984 | I50: =G50-D50 -> 12025 | J50: =I50/D50 -> 0.03758294031 | L50: =G50/G54 -> 0.9832841691
A51: HST | C51: 0.13 | D51: =C51*D50 -> 41594.67 | F51: =C51 -> 0.13 | G51: =F51*G50 -> 43157.92 | I51: =G51-D51 -> 1563.25 | J51: =I51/D51 -> 0.03758294031 | L51: =G51/G54 -> 0.127826942
A52: Total Bill (including HST) | D52: =D51+D50 -> 361553.67 | G52: =G51+G50 -> 375141.92 | I52: =G52-D52 -> 13588.25 | J52: =I52/D52 -> 0.03758294031 | L52: =G52/G54 -> 1.111111111
A53: Ontario Clean Energy Benefit (OCEB) | C53: -0.1 | D53: =-0.1*D52 -> -36155.367 | F53: =C53 -> -0.1 | G53: =-0.1*G52 -> -37514.192 | I53: =G53-D53 -> -1358.825 | J53: =I53/D53 -> 0.03758294031 | L53: =G53/G54 -> -0.1111111111
A54: Total Bill on TOU (including OCEB) | D54: =D52+D53 -> 325398.303 | G54: =G52+G53 -> 337627.728 | I54: =G54-D54 -> 12229.425 | J54: =I54/D54 -> 0.03758294031 | L54: =G54/G54 -> 1
A57: Applicants must provide bill impacts for residential at 800 kWh and GS<50kW at 2000 kWh. In addition, their filing should cover the range that is relevant to their service territory, class by class. A general guideline of consumption levels follows: Residential (kWh) - 100, 250, 500, 800, 1000, 1500, 2000 GS<50kW (kWh) - 1000, 2000, 5000, 10000, 15000 GS>50kW (kW) 100, 500, 1000 Large User - range appropriate for utility Street/Sentinel Lighting Classes and USL - 150 kWh and 1 kW, range appropriate for utility.

Sheet 28. Bill Impacts
S1: 1 | Z1: =MATCH(C14, '3. Rate Class Selection'!B19:B40,0) -> 1 | AA1: =VLOOKUP(C14, lists!AO:AP,2,0) -> kWh
A14: Rate Class | C14: RESIDENTIAL
A16: Loss Factor | E16: 1.0335
A18: Consumption | C18: kWh | E18: 800
A20: If Billed on a kW basis:
A21: Demand | C21: kW
E25: Current Board-Approved | I25: Proposed | M25: Impact
E26: Rate | F26: Volume | G26: Charge | I26: Rate | J26: Volume | K26: Charge | M26: $ Change | N26: % Change
E27: ($) | G27: ($) | I27: ($) | K27: ($)
A28: Monthly Service Charge | E28: 11 | F28: 1 | G28: =F28*E28 -> 11 | I28: 11.14 | J28: 1 | K28: =J28*I28 -> 11.14 | M28: =K28-G28 -> 0.14 | N28: =IF((G28)=0,"",(M28/G28)) -> 0.01272727273
A29: Distribution Volumetric Rate | E29: 0.0178 | F29: 800 | G29: =F29*E29 -> 14.24 | I29: 0.018 | J29: =F29 -> 800 | K29: =J29*I29 -> 14.4 | M29: 0.16 | N29: 0.01123595506
A30: Fixed Rate Riders | E30: 3.02 | F30: 1 | G30: =F30*E30 -> 3.02 | I30: 0.44 | J30: 1 | K30: =J30*I30 -> 0.44 | M30: -2.58 | N30: -0.8543046358
A31: Volumetric Rate Riders | E31: -0.0024 | F31: 800 | G31: =F31*E31 -> -1.92 | I31: 0.0001 | J31: =F31 -> 800 | K31: =J31*I31 -> 0.08 | M31: 2 | N31: -1.041666667
A32: Sub-Total A (excluding pass through) | G32: =SUM(G28:G31) -> 26.34 | K32: =SUM(K28:K31) -> 26.06 | M32: -0.28 | N32: -0.0106302202
A33: Line Losses on Cost of Power | E33: =E45*0.64+E46*0.18+E47*0.18 -> 0.08392 | F33: =E18*(E16-1) -> 26.8 | G33: =E33*F33 -> 2.249056 | I33: =I45*0.64+I46*0.18+I47*0.18 -> 0.08392 | J33: =F33 -> 26.8 | K33: =I33*J33 -> 2.249056 | M33: 0 | N33: 0
A34: Total Deferral/Variance Account Rate Riders | E34: -0.002 | F34: 800 | G34: =F34*E34 -> -1.6 | I34: -0.0016 | J34: =F34 -> 800 | K34: =J34*I34 -> -1.28 | M34: 0.32 | N34: -0.2
A35: Low Voltage Service Charge | E35: 0.0001 | F35: 800 | G35: =F35*E35 -> 0.08 | I35: 0.0001 | J35: =F35 -> 800 | K35: =J35*I35 -> 0.08 | M35: 0 | N35: 0
A36: Smart Meter Entity Charge | E36: 0.79 | F36: 1 | G36: =F36*E36 -> 0.79 | I36: 0.79 | J36: =F36 -> 1 | K36: =J36*I36 -> 0.79 | M36: 0 | N36: 0
A37: Sub-Total B - Distribution (includes Sub-Total A) | G37: =SUM(G32:G36) -> 27.859056 | K37: =SUM(K32:K36) -> 27.899056 | M37: =K37-G37 -> 0.04 | N37: =IF((G37)=0,"",(M37/G37)) -> 0.00143579883
A38: RTSR - Network | E38: 0.0067 | F38: 826.8 | G38: =F38*E38 -> 5.53956 | I38: 0.0065 | J38: =F38 -> 826.8 | K38: =J38*I38 -> 5.3742 | M38: -0.16536 | N38: -0.02985074627
A39: RTSR - Connection and/or Line and Transformation Connection | E39: 0.0042 | F39: 826.8 | G39: =F39*E39 -> 3.47256 | I39: 0.0041 | J39: =F39 -> 826.8 | K39: =J39*I39 -> 3.38988 | M39: -0.08268 | N39: -0.02380952381
A40: Sub-Total C - Delivery (including Sub-Total B) | G40: =SUM(G37:G39) -> 36.871176 | K40: =SUM(K37:K39) -> 36.663136 | M40: -0.20804 | N40: -0.005642347833
A41: Wholesale Market Service Charge (WMSC) | E41: 0.0044 | F41: =E18*E16 -> 826.8 | G41: =F41*E41 -> 3.63792 | I41: 0.0044 | J41: =E18*E16 -> 826.8 | K41: =J41*I41 -> 3.63792 | M41: 0 | N41: 0
A42: Rural and Remote Rate Protection (RRRP) | E42: 0.0013 | F42: =E18*E16 -> 826.8 | G42: 1.07484 | I42: 0.0013 | J42: =E18*E16 -> 826.8 | K42: 1.07484 | M42: 0 | N42: 0
A43: Standard Supply Service Charge | E43: 0.25 | F43: 1 | G43: 0.25 | I43: 0.25 | J43: 1 | K43: 0.25 | M43: 0 | N43: 0
A44: Debt Retirement Charge (DRC) | E44: 0.007 | F44: =E18 -> 800 | G44: 5.6 | I44: 0.007 | J44: =E18 -> 800 | K44: 5.6 | M44: 0 | N44: 0
A45: TOU - Off Peak | E45: 0.067 | F45: 512 | G45: 34.304 | I45: 0.067 | J45: =F45 -> 512 | K45: 34.304 | M45: 0 | N45: 0
A46: TOU - Mid Peak | E46: 0.104 | F46: 144 | G46: 14.976 | I46: 0.104 | J46: =F46 -> 144 | K46: 14.976 | M46: 0 | N46: 0
A47: TOU - On Peak | E47: 0.124 | F47: 144 | G47: 17.856 | I47: 0.124 | J47: =F47 -> 144 | K47: 17.856 | M47: 0 | N47: 0
A49: Total Bill on TOU (before Taxes) | G49: =SUM(G40:G44,G45:G47) -> 114.569936 | K49: =SUM(K40:K44,K45:K47) -> 114.361896 | M49: =K49-G49 -> -0.20804 | N49: =IF((G49)=0,"",(M49/G49)) -> -0.001815834129
A50: HST | E50: 0.13 | G50: =G49*E50 -> 14.89409168 | I50: 0.13 | K50: =K49*I50 -> 14.86704648 | M50: -0.0270452 | N50: -0.001815834129
A51: Total Bill (including HST) | G51: =G49+G50 -> 129.4640277 | K51: =K49+K50 -> 129.2289425 | M51: -0.2350852 | N51: -0.001815834129
A52: Ontario Clean Energy Benefit 1 | G52: =ROUND(-G51*10%,2) -> -12.95 | K52: =ROUND(-K51*10%,2) -> -12.92 | M52: 0.03 | N52: -0.002316602317
A53: Total Bill on TOU (including OCEB) | G53: =G51+G52 -> 116.5140277 | K53: =K51+K52 -> 116.3089425 | M53: -0.2050852 | N53: -0.001760176041
A58: Note: For distributors who have a majority of customers on Tiered pricing, please provide a separate bill impact for such customers.

Sheet lists (hidden)
A1: DISTRIBUTED GENERATION [DGEN] | B1: Embedded Distributor | C1: =COUNTA(B1:B17) -> 4 | I1: A Standby Service Charge will be applied for a month where standby power is not provided. The applicable rate is the approved Distribution Volumetric Rate of the applicable service class and is applied to gross metered demand or contracted amount, whichever is greater. A monthly administration charge of $200, for simple metering arrangements, or $500, for complex metering arrangements, will also be applied. | L1: Loss Factors | N1: Units | O1: Units1 | P1: Units2 | Z1: Account History | AA1: Account set up charge/change of occupancy charge (plus credit agency costs if applicable) | AB1: Total Loss Factor – Embedded Distributor – Hydro One Networks Inc. | AL1: Algoma Power Inc. | AM1: Algoma Power Inc. | AO1: DISTRIBUTED GENERATION [DGEN] | AP1: kW | AT1: Sub-Total: Delivery (Distribution and Retail Transmission)
A2: EMBEDDED DISTRIBUTOR | B2: General Service 3,000 to 4,999 kW | I2: Distribution Volumetric Rate | L2: Total Loss Factor – Primary Metered Customer | N2: $ | O2: $/kWh | P2: $ | Z2: Account set up charge/change of occupancy charge | AA2: Administrative Billing Charge | AB2: Total Loss Factor – Primary Metered Customer | AL2: Atikokan Hydro Inc. | AM2: Atikokan Hydro Inc. | AO2: EMBEDDED DISTRIBUTOR | AP2: kW | AT2: Wholesale Market Service Rate | AW2: =AU2*AV2 -> 0 | AX2: =AU2 -> 0 | AY2: 0 | AZ2: =AX2*AY2 -> 0 | BB2: =AZ2-AW2 -> 0 | BC2: =BB2/AW2 -> 
A3: EMBEDDED DISTRIBUTOR | B3: General Service 1,000 to 4,999 kW | I3: Distribution Volumetric Rate - $/kW of contracted amount | L3: Total Loss Factor – Primary Metered Customer < 5,000 kW | N3: $/kWh | O3: $/kW | P3: % | W3: MSC | Z3: Account set up charge/change of occupancy charge (plus credit agency costs if applicable – Residential) | AA3: Bell Canada Pole Rentals | AB3: Total Loss Factor – Primary Metered Customer < 5,000 kW | AL3: Bluewater Power Distribution Corporation | AM3: Bluewater Power Distribution Corporation | AO3: EMBEDDED DISTRIBUTOR | AP3: kW | AT3: Rural or Remote Electricity Rate Protection Charge (RRRP) | AW3: =AU3*AV3 -> 0 | AX3: 0 | AY3: 0 | AZ3: =AX3*AY3 -> 0 | BB3: =AZ3-AW3 -> 0 | BC3: =BB3/AW3 -> 
A4: FARMS - SINGLE PHASE ENERGY-BILLED [F1] | B4: General Service Equal To Or Greater Than 1,500 kW - Interval Metered | I4: Distribution Wheeling Service Rate | L4: Total Loss Factor – Primary Metered Customer > 5,000 kW | N4: $/kW | O4: $/kVA | W4: SM_Rate_Adder | Z4: Account set up charge/change of occupancy charge (plus credit agency costs if applicable) | AA4: Clearance Pole Attachment charge $/pole/year | AB4: Total Loss Factor – Primary Metered Customer > 5,000 kW | AL4: Brant County Power Inc. | AM4: Brant County Power Inc. | AO4: FARMS - SINGLE PHASE ENERGY-BILLED [F1] | AP4: kWh | AT4: Standard Supply Service – Administration Charge (if applicable) | AW4: =AU4*AV4 -> 0 | AX4: 0 | AY4: 0 | AZ4: =AX4*AY4 -> 0 | BB4: =AZ4-AW4 -> 0 | BC4: =BB4/AW4 -> 
A5: FARMS - THREE PHASE ENERGY-BILLED [F3] | I5: Electricity Rate | L5: Total Loss Factor – Secondary Metered Customer | N5: $/kVA | W5: MSC_Rate_Rider_ | Z5: Arrears certificate | AA5: Collection of account charge – no disconnection | AB5: Total Loss Factor – Secondary Metered Customer | AL5: Brantford Power Inc. | AM5: Brantford Power Inc. | AO5: FARMS - THREE PHASE ENERGY-BILLED [F3] | AP5: kWh | AT5: Sub-Total: Regulatory | AW5: =SUM(AW2:AW4) -> 0 | AZ5: =SUM(AZ2:BA4) -> 0 | BB5: =AZ5-AW5 -> 0 | BC5: =BB5/AW5 -> 
A6: GENERAL SERVICE - COMMERCIAL | I6: Electricity Rate - All Additional kWh | L6: Total Loss Factor – Secondary Metered Customer < 5,000 kW | W6: VC | Z6: Arrears certificate (credit reference) | AA6: Collection of account charge – no disconnection – after regular hours | AB6: Total Loss Factor – Secondary Metered Customer < 5,000 kW | AL6: Burlington Hydro Inc. | AM6: Burlington Hydro Inc. | AO6: GENERAL SERVICE - COMMERCIAL | AP6: kW | AT6: Debt Retirement Charge (DRC) | AW6: =AU6*AV6 -> 0 | AX6: =AU6 -> 0 | AY6: =AV6 -> 0 | AZ6: =AX6*AY6 -> 0 | BB6: =AZ6-AW6 -> 0 | BC6: =BB6/AW6 -> 
A7: GENERAL SERVICE - INSTITUTIONAL | I7: Electricity Rate - First 250 kWh | AL7: Cambridge and North Dumfries Hydro Inc. | AM7: Cambridge and North Dumfries Hydro Inc. | AO7: GENERAL SERVICE - INSTITUTIONAL | AP7: kW
A8: GENERAL SERVICE 1,000 TO 2,999 KW | I8: Electricity Rate -All Additional kWh | L8: Total Loss Factor – Secondary Metered Customer > 5,000 kW | W8: VC_Rate_Rider_ | Z8: Charge to certify cheque | AA8: Collection of account charge – no disconnection - during regular business hours | AB8: Total Loss Factor – Secondary Metered Customer > 5,000 kW | AL8: Canadian Niagara Power Inc. | AM8: Canadian Niagara Power Inc. | AO8: GENERAL SERVICE 1,000 TO 2,999 KW | AP8: kW | AT8: Total Bill on RPP (before taxes) | BB8: =AZ8-AW8 -> 0
A9: GENERAL SERVICE 1,000 TO 4,999 KW | I9: Electricity Rate First 1,000 kWh | L9: Distribution Loss Factor - Secondary Metered Customer < 5,000 kW | W9: VC_GA_Rate_Rider_kW_ | Z9: Collection of Account Charge – No Disconnection | AA9: Collection of account charge – no disconnection – during regular hours | AL9: Centre Wellington Hydro Ltd. | AM9: Centre Wellington Hydro Ltd. | AO9: GENERAL SERVICE 1,000 TO 4,999 KW | AP9: kW | AT9: HST | AW9: =AV9*AW8 -> 0 | AY9: =AV9 -> 0 | AZ9: =AY9*AZ8 -> 0 | BB9: =AZ9-AW9 -> 0 | BC9: =BB9/AW9 -> 
A10: GENERAL SERVICE 1,000 TO 4,999 KW - INTERVAL METERS | I10: Electricity Rate First 25,000 kWh | L10: Distribution Loss Factor - Secondary Metered Customer > 5,000 kW | W10: VC_LV_Rate | Z10: Credit Card Convenience Charge | AA10: Collection/Disconnection/Load Limiter/Reconnection – if in Community | AL10: Chapleau Public Utilities Corporation | AM10: Chapleau Public Utilities Corporation | AO10: GENERAL SERVICE 1,000 TO 4,999 KW - INTERVAL METERS | AP10: kW | AT10: Total Bill (including HST) | AW10: =AW9+AW8 -> 0 | AZ10: =AZ9+AZ8 -> 0 | BB10: =AZ10-AW10 -> 0 | BC10: =BB10/AW10 -> 
A11: GENERAL SERVICE 1,000 TO 4,999 KW (CO-GENERATION) | I11: Electricity Rate First 6,000 kWh | L11: Distribution Loss Factor - Primary Metered Customer < 5,000 kW | W11: RTSR_Network | Z11: Credit check (plus credit agency costs) | AA11: Credit Card Convenience Charge | AL11: Collus PowerStream Corporation | AM11: Collus PowerStream Corporation | AO11: GENERAL SERVICE 1,000 TO 4,999 KW (CO-GENERATION) | AP11: kW | AT11: Ontario Clean Energy Benefit (OCEB) | AW11: =-0.1*AW10 -> 0 | AY11: =AV11 -> 0 | AZ11: =-0.1*AZ10 -> 0 | BB11: =AZ11-AW11 -> 0 | BC11: =BB11/AW11 -> 
A12: GENERAL SERVICE 1,500 TO 4,999 KW | I12: Electricity Rate Next 1,500 kWh | L12: Distribution Loss Factor - Primary Metered Customer > 5,000 kW | W12: RTSR_Connection | Z12: Credit reference Letter | AA12: Disconnect/Reconnect at meter – after regular hours | AL12: Cooperative Hydro Embrun Inc. | AM12: Cooperative Hydro Embrun Inc. | AO12: GENERAL SERVICE 1,500 TO 4,999 KW | AP12: kW | AT12: Total Bill on RPP (including OCEB) | AW12: =AW10+AW11 -> 0 | AZ12: =AZ10+AZ11 -> 0 | BB12: =AZ12-AW12 -> 0 | BC12: =BB12/AW12 -> 
A13: GENERAL SERVICE 2,500 TO 4,999 KW | I13: General Service 1,500 to 4,999 kW customer | AL13: E.L.K. Energy Inc. | AM13: E.L.K. Energy Inc. | AO13: GENERAL SERVICE 2,500 TO 4,999 KW | AP13: kW
A14: GENERAL SERVICE 3,000 TO 4,999 KW | I14: General Service 50 to 1,499 kW customer | L14: Total Loss Factor - Embedded Distributor | W14: RTSR_Network_Interval | Z14: Credit reference/credit check (plus credit agency costs – General Service) | AA14: Disconnect/Reconnect at meter – during regular hours | AL14: Enersource Hydro Mississauga Inc. | AM14: Enersource Hydro Mississauga Inc. | AO14: GENERAL SERVICE 3,000 TO 4,999 KW | AP14: kW | AT14: Total Bill on TOU (before taxes) | BB14: =AZ14-AW14 -> 0
A15: GENERAL SERVICE 3,000 TO 4,999 KW - INTERMEDIATE USE | I15: General Service Large Use customer | L15: Total Loss Factor – Embedded Distributor – Hydro One Networks Inc. | W15: RTSR_Connection_Interval | Z15: Credit Reference/credit check (plus credit agency costs) | AA15: Disconnect/Reconnect at pole – after regular hours | AL15: Entegrus Powerlines Inc. | AM15: Entegrus Powerlines Inc. | AO15: GENERAL SERVICE 3,000 TO 4,999 KW - INTERMEDIATE USE | AP15: kW | AT15: HST | AW15: =AV15*AW14 -> 0 | AY15: =AV15 -> 0 | AZ15: =AY15*AZ14 -> 0 | BB15: =AZ15-AW15 -> 0 | BC15: =BB15/AW15 -> 
A16: GENERAL SERVICE 3,000 TO 4,999 KW - INTERVAL METERED | I16: Green Energy Act Initiatives Funding Adder - effective until the date of the next cost of service-based rate order | W16: RTSR_Network_Interval_GR1000kW | Z16: Dispute Test – Commercial self contained -- MC | AA16: Disconnect/Reconnect at pole – during regular hours | AL16: Entegrus Powerlines Inc. - Dutton Service Area | AM16: Entegrus Powerlines Inc. - Dutton Service Area | AO16: GENERAL SERVICE 3,000 TO 4,999 KW - INTERVAL METERED | AP16: kW | AT16: Total Bill (including HST) | AW16: =AW15+AW14 -> 0 | AZ16: =AZ15+AZ14 -> 0 | BB16: =AZ16-AW16 -> 0 | BC16: =BB16/AW16 -> 
A17: GENERAL SERVICE 3,000 TO 4,999 KW - TIME OF USE | I17: Green Energy Act Plan Funding Adder | W17: RTSR_Connection_Interval_GR1000kW | Z17: Dispute Test – Commercial TT -- MC | AA17: Disconnect/Reconnect Charge – At Meter – After Hours | AL17: Entegrus Powerlines Inc. - former Chatham-Kent Hydro Service Area | AM17: Entegrus Powerlines Inc. - former Chatham-Kent Hydro Service Area | AO17: GENERAL SERVICE 3,000 TO 4,999 KW - TIME OF USE | AP17: kW | AT17: Ontario Clean Energy Benefit (OCEB) | AW17: =-0.1*AW16 -> 0 | AY17: =AV17 -> 0 | AZ17: =-0.1*AZ16 -> 0 | BB17: =AZ17-AW17 -> 0 | BC17: =BB17/AW17 -> 
A18: GENERAL SERVICE 50 TO 1,000 KW | I18: Green Energy Act Plan Funding Adder - effective April 1, 2013 until March 31, 2014 | W18: RTSR_Line_Connection | Z18: Dispute Test – Residential | AA18: Disconnect/Reconnect Charge – At Meter – During Regular Hours | AL18: Entegrus Powerlines Inc. - Newbury Service Area | AM18: Entegrus Powerlines Inc. - Newbury Service Area | AO18: GENERAL SERVICE 50 TO 1,000 KW | AP18: kW | AT18: Total Bill on TOU (including OCEB) | AW18: =AW16+AW17 -> 0 | AZ18: =AZ16+AZ17 -> 0 | BB18: =AZ18-AW18 -> 0 | BC18: =BB18/AW18 -> 
A19: GENERAL SERVICE 50 TO 1,000 KW - INTERVAL METERS | I19: Green Energy Act Plan Funding Adder - effective April 1, 2014 until March 31, 2015 | W19: RTSR_Transformer_Connection | Z19: Duplicate Invoices for previous billing | AA19: Disconnect/Reconnect Charge – At Pole – After Hours | AL19: Entegrus Powerlines Inc. - Strathroy, Mount Brydges and Parkhill Service Areas | AM19: Entegrus Powerlines Inc. - Strathroy, Mount Brydges and Parkhill Service Areas | AO19: GENERAL SERVICE 50 TO 1,000 KW - INTERVAL METERS | AP19: kW
A20: GENERAL SERVICE 50 TO 1,000 KW - NON INTERVAL METERS | I20: ICM Rate Rider (2014) - in effect until the effective date of the next cost of service rates | W20: WMSR | Z20: Easement Letter | AA20: Disconnect/Reconnect Charge – At Pole – During Regular Hours | AL20: ENWIN Utilities Ltd. | AM20: ENWIN Utilities Ltd. | AO20: GENERAL SERVICE 50 TO 1,000 KW - NON INTERVAL METERS | AP20: kW
A21: GENERAL SERVICE 50 TO 1,499 KW | I21: Low Voltage Service Charge | W21: RRRP | Z21: Income Tax Letter | AA21: Disconnect/Reconnect Charges for non payment of account - At Meter After Hours | AL21: Erie Thames Powerlines Corporation | AM21: Erie Thames Powerlines Corporation | AO21: GENERAL SERVICE 50 TO 1,499 KW | AP21: kW
A22: GENERAL SERVICE 50 TO 1,499 KW - INTERVAL METERED | I22: Low Voltage Service Rate | W22: SPC | Z22: Interval Meter Interrogation | AA22: Disconnect/Reconnect charges for non payment of account – at meter after regular hours | AL22: Espanola Regional Hydro Distribution Corporation | AM22: Espanola Regional Hydro Distribution Corporation | AO22: GENERAL SERVICE 50 TO 1,499 KW - INTERVAL METERED | AP22: kW
A23: GENERAL SERVICE 50 TO 2,499 KW | I23: Low Voltage Volumetric Rate | W23: DRC | Z23: Interval meter request change | AA23: Disconnect/Reconnect Charges for non payment of account - At Meter During Regular Hours | AL23: Essex Powerlines Corporation | AM23: Essex Powerlines Corporation | AO23: GENERAL SERVICE 50 TO 2,499 KW | AP23: kW
A24: GENERAL SERVICE 50 TO 2,999 KW | I24: LRAM Rate Rider - Effective Until April 30, 2015 | W24: SSS | Z24: Legal letter | AA24: Disconnect/Reconnect charges for non payment of account – at meter during regular hours | AL24: Festival Hydro Inc. | AM24: Festival Hydro Inc. | AO24: GENERAL SERVICE 50 TO 2,999 KW | AP24: kW
A25: GENERAL SERVICE 50 TO 2,999 KW - INTERVAL METERED | I25: Minimum Distribution Charge - per KW of maximum billing demand in the previous 11 months | W25: SFLF | Z25: Legal letter charge | AA25: Disconnect/Reconnect charges for non payment of account – at pole after regular hours | AL25: Fort Frances Power Corporation | AM25: Fort Frances Power Corporation | AO25: GENERAL SERVICE 50 TO 2,999 KW - INTERVAL METERED | AP25: kW
A26: GENERAL SERVICE 50 TO 2,999 KW - TIME OF USE | B26: January | I26: Monthly Distribution Wheeling Service Rate - Dedicated LV Line | W26: DLF_Secondary_LT_5000kW | Z26: Meter dispute charge plus Measurement Canada fees (if meter found correct) | AA26: Disconnect/Reconnect charges for non payment of account – at pole during regular hours | AL26: Greater Sudbury Hydro Inc. | AM26: Greater Sudbury Hydro Inc. | AO26: GENERAL SERVICE 50 TO 2,999 KW - TIME OF USE | AP26: kW
A27: GENERAL SERVICE 50 TO 4,999 KW | B27: February | I27: Monthly Distribution Wheeling Service Rate - Hydro One Networks | W27: DLF_Secondary_GT_5000kW | Z27: Notification charge | AA27: Disconnect/Reconnection for >300 volts - after regular hours | AL27: Grimsby Power Inc. | AM27: Grimsby Power Inc. | AO27: GENERAL SERVICE 50 TO 4,999 KW | AP27: kW
A28: GENERAL SERVICE 50 TO 4,999 KW - INTERVAL METERED | B28: March | I28: Monthly Distribution Wheeling Service Rate - Shared LV Line | W28: DLF_Primary_LT_5000kW | Z28: Pulling Post Dated Cheques | AA28: Disconnect/Reconnection for >300 volts - during regular hours | AL28: Guelph Hydro Electric Systems Inc. | AM28: Guelph Hydro Electric Systems Inc. | AO28: GENERAL SERVICE 50 TO 4,999 KW - INTERVAL METERED | AP28: kW
A29: GENERAL SERVICE 50 TO 4,999 KW - TIME OF USE | B29: April | I29: Monthly Distribution Wheeling Service Rate - Waterloo North Hydro | W29: DLF_Primary_GT_5000kW | Z29: Request for other billing information | AA29: Disposal of Concrete Poles | AL29: Haldimand County Hydro Inc. | AM29: Haldimand County Hydro Inc. | AO29: GENERAL SERVICE 50 TO 4,999 KW - TIME OF USE | AP29: kW
A30: GENERAL SERVICE 50 TO 4,999 KW (COGENERATION) | B30: May | I30: Rate Rider for Application of Tax Change - effective until April 30, 2015 | W30: TLF_Secondary_LT_5000kW | Z30: Returned cheque (plus bank charges) | AA30: Dispute Test – Commercial TT -- MC | AL30: Halton Hills Hydro Inc. | AM30: Halton Hills Hydro Inc. | AO30: GENERAL SERVICE 50 TO 4,999 KW (COGENERATION) | AP30: kW
A31: GENERAL SERVICE 50 TO 4,999 KW (FORMERLY TIME OF USE) | B31: June | I31: Rate Rider for Application of Tax Change - effective until December 31, 2014 | W31: TLF_Secondary_GT_5000kW | Z31: Returned cheque charge (plus bank charges) | AA31: Install/Remove load control device – after regular hours | AL31: Hearst Power Distribution Company Limited | AM31: Hearst Power Distribution Company Limited | AO31: GENERAL SERVICE 50 TO 4,999 KW (FORMERLY TIME OF USE) | AP31: kW
A32: GENERAL SERVICE 50 TO 499 KW | B32: July | I32: Rate Rider for Application of Tax Change (2014) - effective until April 30, 2015 | W32: TLF_Primary_LT_5000kW | Z32: Special Billing Service (aggregation) | AA32: Install/Remove load control device – during regular hours | AL32: Horizon Utilities Corporation | AM32: Horizon Utilities Corporation | AO32: GENERAL SERVICE 50 TO 499 KW | AP32: kW
A33: GENERAL SERVICE 50 TO 699 KW | B33: August | I33: Rate Rider for Application of Tax Change (per connection) - effective until April 30, 2015 | W33: TLF_Primary_GT_5000kW | Z33: Special Billing Service (sub-metering charge per meter) | AA33: Interval Meter Interrogation | AL33: Hydro 2000 Inc. | AM33: Hydro 2000 Inc. | AO33: GENERAL SERVICE 50 TO 699 KW | AP33: kW
A34: GENERAL SERVICE 50 TO 999 KW | B34: September | I34: Rate Rider for CGAAP Accounting Changes (2013) - effective until April 30, 2017 | W34: TLF_EmbeddedDistributor | Z34: Special meter reads | AA34: Interval Meter Load Management Tool Charge $/month | AL34: Hydro Hawkesbury Inc. | AM34: Hydro Hawkesbury Inc. | AO34: GENERAL SERVICE 50 TO 999 KW | AP34: kW
A35: GENERAL SERVICE 50 TO 999 KW - INTERVAL METERED | B35: October | I35: Rate Rider for Deferral/Variance Account (2012) - effective unitl April 30, 2016 | Z35: Statement of Account | AA35: Interval meter request change | AL35: Hydro One Brampton Networks Inc. | AM35: Hydro One Brampton Networks Inc. | AO35: GENERAL SERVICE 50 TO 999 KW - INTERVAL METERED | AP35: kW
A36: GENERAL SERVICE 500 TO 4,999 KW | B36: November | I36: Rate Rider for Deferral/Variance Account Disposition – effective until April 30, 2015 | Z36: Unprocessed Payment Charge (plus bank charges) | AA36: Late Payment – per annum | AL36: Hydro One Networks Inc. | AM36: Hydro One Networks Inc. | AO36: GENERAL SERVICE 500 TO 4,999 KW | AP36: kW
A37: GENERAL SERVICE 700 TO 4,999 KW | B37: December | I37: Rate Rider for Deferral/Variance Account Disposition (2012) - effective until April 30, 2016 | AA37: Late Payment – per month | AL37: Hydro Ottawa Limited | AM37: Hydro Ottawa Limited | AO37: GENERAL SERVICE 700 TO 4,999 KW | AP37: kW
A38: GENERAL SERVICE DEMAND BILLED (50 KW AND ABOVE) [GSD] | I38: Rate Rider for Deferral/Variance Account Disposition (2013) - effective until April 30, 2014 | AA38: Layout fees | AL38: Innisfil Hydro Distribution Systems Limited | AM38: Innisfil Hydro Distribution Systems Limited | AO38: GENERAL SERVICE DEMAND BILLED (50 KW AND ABOVE) [GSD] | AP38: kW
A39: GENERAL SERVICE ENERGY BILLED (LESS THAN 50 KW) [GSE-METERED] | I39: Rate Rider for Deferral/Variance Account Disposition (2014) - effective until April 28, 2016 | AA39: Meter dispute charge plus Measurement Canada fees (if meter found correct) | AL39: Kenora Hydro Electric Corporation Ltd. | AM39: Kenora Hydro Electric Corporation Ltd. | AO39: GENERAL SERVICE ENERGY BILLED (LESS THAN 50 KW) [GSE-METERED] | AP39: kWh
A40: GENERAL SERVICE ENERGY BILLED (LESS THAN TO 50 KW) [GSE-UNMETERED] | I40: Rate Rider for Deferral/Variance Account Disposition (2014) - effective until April 30, 2015 | AA40: Meter Interrogation Charge | AL40: Kingston Hydro Corporation | AM40: Kingston Hydro Corporation | AO40: GENERAL SERVICE ENERGY BILLED (LESS THAN TO 50 KW) [GSE-UNMETERED] | AP40: kWh
A41: GENERAL SERVICE EQUAL TO OR GREATER THAN 1,500 KW | I41: Rate Rider for Deferral/Variance Account Disposition (2014) - effective until December 31, 2014 | AA41: Missed Service Appointment | AL41: Kitchener-Wilmot Hydro Inc. | AM41: Kitchener-Wilmot Hydro Inc. | AO41: GENERAL SERVICE EQUAL TO OR GREATER THAN 1,500 KW | AP41: kW
A42: GENERAL SERVICE EQUAL TO OR GREATER THAN 1,500 KW - INTERVAL METERED | I42: Rate Rider for Deferral/Variance Account Disposition (2014) - effective until December 31, 2015 | AA42: Norfolk Pole Rentals – Billed | AL42: Lakefront Utilities Inc. | AM42: Lakefront Utilities Inc. | AO42: GENERAL SERVICE EQUAL TO OR GREATER THAN 1,500 KW - INTERVAL METERED | AP42: kW
A43: GENERAL SERVICE GREATER THAN 1,000 KW | I43: Rate Rider for Deferral/Variance Account Dispositon (2012) - effective until April 30, 2016 | AA43: Optional Interval/TOU Meter charge $/month | AL43: Lakeland Power Distribution Ltd. | AM43: Lakeland Power Distribution Ltd. | AO43: GENERAL SERVICE GREATER THAN 1,000 KW | AP43: kW
A44: GENERAL SERVICE GREATER THAN 50 kW - WMP | I44: Rate Rider for Disposition of Accounting Changes Under CGAAP Account 1576 - effective until April 30, 2016 | AA44: Overtime Locate | AL44: London Hydro Inc. | AM44: London Hydro Inc. | AO44: GENERAL SERVICE GREATER THAN 50 kW - WMP | AP44: kW
A45: GENERAL SERVICE INTERMEDIATE 1,000 TO 4,999 KW | I45: Rate Rider for Disposition of Deferral/Variance Accounts (2010) - effective until December 31, 2014 | AA45: Owner Requested Disconnection/Reconnection – after regular hours | AL45: Midland Power Utility Corporation | AM45: Midland Power Utility Corporation | AO45: GENERAL SERVICE INTERMEDIATE 1,000 TO 4,999 KW | AP45: kW
A46: GENERAL SERVICE INTERMEDIATE RATE CLASS 1,000 TO 4,999 KW (FORMERLY GENERAL SERVICE > 50 KW CUSTOMERS) | I46: Rate Rider for Disposition of Deferral/Variance Accounts (2011) - effective until April 30, 2015 | AA46: Owner Requested Disconnection/Reconnection – during regular hours | AL46: Milton Hydro Distribution Inc. | AM46: Milton Hydro Distribution Inc. | AO46: GENERAL SERVICE INTERMEDIATE RATE CLASS 1,000 TO 4,999 KW (FORMERLY GENERAL SERVICE > 50 KW CUSTOMERS) | AP46: kW
A47: GENERAL SERVICE INTERMEDIATE RATE CLASS 1,000 TO 4,999 KW (FORMERLY LARGE USE CUSTOMERS) | I47: Rate Rider for Disposition of Deferral/Variance Accounts (2011) - effective until April 30, 2016 | AA47: Returned cheque (plus bank charges) | AL47: Newmarket - Tay Power Distribution Ltd. | AM47: Newmarket - Tay Power Distribution Ltd. | AO47: GENERAL SERVICE INTERMEDIATE RATE CLASS 1,000 TO 4,999 KW (FORMERLY LARGE USE CUSTOMERS) | AP47: kW
A48: GENERAL SERVICE LESS THAN 50 KW | I48: Rate Rider for Disposition of Deferral/Variance Accounts (2012) - effective until April 30, 2014 | AA48: Rural system expansion / line connection fee | AL48: Niagara Peninsula Energy Inc. | AM48: Niagara Peninsula Energy Inc. | AO48: GENERAL SERVICE LESS THAN 50 KW | AP48: kWh
A49: GENERAL SERVICE LESS THAN 50 KW - SINGLE PHASE ENERGY-BILLED [G1] | I49: Rate Rider for Disposition of Deferral/Variance Accounts (2012) - effective until April 30, 2015 | AA49: Same Day Open Trench | AL49: Niagara-on-the-Lake Hydro Inc. | AM49: Niagara-on-the-Lake Hydro Inc. | AO49: GENERAL SERVICE LESS THAN 50 KW - SINGLE PHASE ENERGY-BILLED [G1] | AP49: kWh
A50: GENERAL SERVICE LESS THAN 50 KW - THREE PHASE ENERGY-BILLED [G3] | I50: Rate Rider for Disposition of Deferral/Variance Accounts (2012) - effective until April 30, 2016 | AA50: Scheduled Day Open Trench | AL50: Norfolk Power Distribution Inc. | AM50: Norfolk Power Distribution Inc. | AO50: GENERAL SERVICE LESS THAN 50 KW - THREE PHASE ENERGY-BILLED [G3] | AP50: kWh
A51: GENERAL SERVICE LESS THAN 50 KW - TRANSMISSION CLASS ENERGY-BILLED [T] | I51: Rate Rider for Disposition of Deferral/Variance Accounts (2012) - effective until August 31, 2014 | AA51: Service call – after regular hours | AL51: North Bay Hydro Distribution Limited | AM51: North Bay Hydro Distribution Limited | AO51: GENERAL SERVICE LESS THAN 50 KW - TRANSMISSION CLASS ENERGY-BILLED [T] | AP51: kWh
A52: GENERAL SERVICE LESS THAN 50 KW - URBAN ENERGY-BILLED [UG] | I52: Rate Rider for Disposition of Deferral/Variance Accounts (2012) - effective until December 31, 2015 | AA52: Service call – customer owned equipment | AL52: Northern Ontario Wires Inc. | AM52: Northern Ontario Wires Inc. | AO52: GENERAL SERVICE LESS THAN 50 KW - URBAN ENERGY-BILLED [UG] | AP52: kWh
A53: GENERAL SERVICE SINGLE PHASE - G1 | I53: Rate Rider for Disposition of Deferral/Variance Accounts (2012) - effective until December 31, 2016 Applicable only in the former service area of Clinton Power | AA53: Service Call – Customer-owned Equipment – After Regular Hours | AL53: Oakville Hydro Electricity Distribution Inc. | AM53: Oakville Hydro Electricity Distribution Inc. | AO53: GENERAL SERVICE SINGLE PHASE - G1 | AP53: kW
A54: GENERAL SERVICE THREE PHASE - G3 | I54: Rate Rider for Disposition of Deferral/Variance Accounts (2012) – effective until December 31, 2016 Applicable only in the former service area of Clinton Power | AA54: Service Call – Customer-owned Equipment – During Regular Hours | AL54: Orangeville Hydro Limited | AM54: Orangeville Hydro Limited | AO54: GENERAL SERVICE THREE PHASE - G3 | AP54: kW
A55: INTERMEDIATE USERS | I55: Rate Rider for Disposition of Deferral/Variance Accounts (2012) - effective until January 31, 2014 | AA55: Service Charge for onsite interrogation of interval meter due to customer phone line failure - required weekly until line repaired $ 6 | AL55: Orillia Power Distribution Corporation | AM55: Orillia Power Distribution Corporation | AO55: INTERMEDIATE USERS | AP55: kW
A56: INTERMEDIATE WITH SELF GENERATION | I56: Rate Rider for Disposition of Deferral/Variance Accounts (2012) - effective until June 30, 2014 | AA56: Service Layout - Commercial | AL56: Oshawa PUC Networks Inc. | AM56: Oshawa PUC Networks Inc. | AO56: INTERMEDIATE WITH SELF GENERATION | AP56: kW
A57: LARGE USE | I57: Rate Rider for Disposition of Deferral/Variance Accounts (2013) - Applicable only to Wholesale Market Participants - effective until April 30, 2015 | AA57: Service Layout - ResidentiaI | AL57: Ottawa River Power Corporation | AM57: Ottawa River Power Corporation | AO57: LARGE USE | AP57: kW
A58: LARGE USE - 3TS | I58: Rate Rider for Disposition of Deferral/Variance Accounts (2013) - effective until April 30, 2014 | AA58: Special Billing Service (sub-metering charge per meter) | AL58: Parry Sound Power Corporation | AM58: Parry Sound Power Corporation | AO58: LARGE USE - 3TS | AP58: kW
A59: LARGE USE - FORD ANNEX | I59: Rate Rider for Disposition of Deferral/Variance Accounts (2013) - effective until April 30, 2015 | AA59: Special meter reads | AL59: Peterborough Distribution Incorporated | AM59: Peterborough Distribution Incorporated | AO59: LARGE USE - FORD ANNEX | AP59: kW
A60: LARGE USE - REGULAR | I60: Rate Rider for Disposition of Deferral/Variance Accounts (2013) - effective until April 30, 2015 - not applicable to Wholesale Market Participants | AA60: Specific Charge for Access to the Power Poles - $/pole/year | AL60: PowerStream Inc. | AM60: PowerStream Inc. | AO60: LARGE USE - REGULAR | AP60: kW
A61: LARGE USE > 5000 KW | I61: Rate Rider for Disposition of Deferral/Variance Accounts (2013) - effective until April 30, 2017 | AA61: Specific Charge for Bell Canada Access to the Power Poles – per pole/year | AL61: PUC Distribution Inc. | AM61: PUC Distribution Inc. | AO61: LARGE USE > 5000 KW | AP61: kW
A62: microFIT | I62: Rate Rider for Disposition of Deferral/Variance Accounts (2013) - effective until August 31, 2014 | AA62: Switching for company maintenance – Charge based on Time and Materials | AL62: Renfrew Hydro Inc. | AM62: Renfrew Hydro Inc. | AO62: microFIT | AP62: $
A63: RESIDENTIAL | I63: Rate Rider for Disposition of Deferral/Variance Accounts (2013) - effective until December 31, 2014 | AA63: Temporary Service – Install & remove – overhead – no transformer | AL63: Rideau St. Lawrence Distribution Inc. | AM63: Rideau St. Lawrence Distribution Inc. | AO63: RESIDENTIAL | AP63: kWh
A64: RESIDENTIAL - HENSALL | I64: Rate Rider for Disposition of Deferral/Variance Accounts (2013) - effective until May 31, 2014 | AA64: Temporary Service – Install & remove – overhead – with transformer | AL64: Sioux Lookout Hydro Inc. | AM64: Sioux Lookout Hydro Inc. | AO64: RESIDENTIAL - HENSALL | AP64: kWh
A65: RESIDENTIAL - HIGH DENSITY [R1] | I65: Rate Rider for Disposition of Deferral/Variance Accounts (2014) - effective until December 31, 2015 | AA65: Temporary Service – Install & remove – underground – no transformer | AL65: St. Thomas Energy Inc. | AM65: St. Thomas Energy Inc. | AO65: RESIDENTIAL - HIGH DENSITY [R1] | AP65: kWh
A66: RESIDENTIAL - LOW DENSITY [R2] | I66: Rate Rider for Disposition of Deferred PILs Variance Account 1562 - effective until March 31, 2016 | AA66: Temporary service install & remove – overhead – no transformer | AL66: Thunder Bay Hydro Electricity Distribution Inc. | AM66: Thunder Bay Hydro Electricity Distribution Inc. | AO66: RESIDENTIAL - LOW DENSITY [R2] | AP66: kWh
A67: RESIDENTIAL - MEDIUM DENSITY [R1] | I67: Rate Rider for Disposition of Deferred PILs Variance Account 1562 (2012) - effective until April 30, 2015 | AA67: Temporary Service Install & Remove – Overhead – With Transformer | AL67: Tillsonburg Hydro Inc. | AM67: Tillsonburg Hydro Inc. | AO67: RESIDENTIAL - MEDIUM DENSITY [R1] | AP67: kWh
A68: RESIDENTIAL - NORMAL DENSITY [R2] | I68: Rate Rider for Disposition of Deferred PILs Variance Account 1562 (2012) - effective until April 30, 2016 | AA68: Temporary Service Install & Remove – Underground – No Transformer | AL68: Toronto Hydro-Electric System Limited | AM68: Toronto Hydro-Electric System Limited | AO68: RESIDENTIAL - NORMAL DENSITY [R2] | AP68: kWh
A69: RESIDENTIAL - TIME OF USE | I69: Rate Rider for Disposition of Deferred PILs Variance Account 1562 (2nd Installment - 2012) - effective until April 30, 2016 | AA69: Temporary service installation and removal – overhead – no transformer | AL69: Veridian Connections Inc. | AM69: Veridian Connections Inc. | AO69: RESIDENTIAL - TIME OF USE | AP69: kWh
A70: RESIDENTIAL - URBAN [UR] | I70: Rate Rider for Disposition of Deferred PILs Variance Account 1562 (per connection) (2012) - effective until April 30, 2015 | AA70: Temporary service installation and removal – overhead – with transformer | AL70: Wasaga Distribution Inc. | AM70: Wasaga Distribution Inc. | AO70: RESIDENTIAL - URBAN [UR] | AP70: kWh
A71: RESIDENTIAL REGULAR | I71: Rate Rider for Disposition of Deferred PILs Variance Account 1562 (per connection) (2012) - effective until April 30, 2016 | AA71: Temporary service installation and removal – underground – no transformer | AL71: Waterloo North Hydro Inc. | AM71: Waterloo North Hydro Inc. | AO71: RESIDENTIAL REGULAR | AP71: kWh
A72: RESIDENTIAL SUBURBAN | I72: Rate Rider for Disposition of Global Adjustment Sub-Account (2011) - effective until April 30, 2015 Applicable only for Non-RPP Customers | AL72: Welland Hydro-Electric System Corp. | AM72: Welland Hydro-Electric System Corp. | AO72: RESIDENTIAL SUBURBAN | AP72: kWh
A73: RESIDENTIAL SUBURBAN SEASONAL | I73: Rate Rider for Disposition of Global Adjustment Sub-Account (2011) - effective until April 30, 2016 Applicable only for Non-RPP Customers | AL73: Wellington North Power Inc. | AM73: Wellington North Power Inc. | AO73: RESIDENTIAL SUBURBAN SEASONAL | AP73: kWh
A74: RESIDENTIAL SUBURBAN YEAR ROUND | I74: Rate Rider for Disposition of Global Adjustment Sub-Account (2012) - effective until April 30, 2014 Applicable only for Non-RPP Customers | AL74: West Coast Huron Energy Inc. | AM74: West Coast Huron Energy Inc. | AO74: RESIDENTIAL SUBURBAN YEAR ROUND | AP74: kWh
A75: RESIDENTIAL URBAN | I75: Rate Rider for Disposition of Global Adjustment Sub-Account (2012) - effective until April 30, 2015 Applicable only for Non-RPP Customers | AL75: Westario Power Inc. | AM75: Westario Power Inc. | AO75: RESIDENTIAL URBAN | AP75: kWh
A76: RESIDENTIAL URBAN YEAR-ROUND | I76: Rate Rider for Disposition of Global Adjustment Sub-Account (2012) - effective until April 30, 2015 Applicatble only for Non-RPP Customers | AL76: Whitby Hydro Electric Corporation | AM76: Whitby Hydro Electric Corporation | AO76: RESIDENTIAL URBAN YEAR-ROUND | AP76: kWh
A77: SEASONAL RESIDENTIAL | I77: Rate Rider for Disposition of Global Adjustment Sub-Account (2012) - effective until April 30, 2016 Applicable only for Non-RPP Customers | AL77: Woodstock Hydro Services Inc. | AM77: Woodstock Hydro Services Inc. | AO77: SEASONAL RESIDENTIAL | AP77: kWh
A78: SEASONAL RESIDENTIAL - HIGH DENSITY [R3] | I78: Rate Rider for Disposition of Global Adjustment Sub-Account (2012) - effective until January 31, 2014. Applicable only for Non-RPP Customers | AO78: SEASONAL RESIDENTIAL - HIGH DENSITY [R3] | AP78: kWh
A79: SEASONAL RESIDENTIAL - NORMAL DENSITY [R4] | I79: Rate Rider for Disposition of Global Adjustment Sub-Account (2012) - effective until June 30, 2014 Applicable only for Non-RPP Customers | AO79: SEASONAL RESIDENTIAL - NORMAL DENSITY [R4] | AP79: kWh
A80: SENTINEL LIGHTING | I80: Rate Rider for Disposition of Global Adjustment Sub-Account (2012) Applicable only for Non-RPP Customers - effective until August 31, 2014 | AO80: SENTINEL LIGHTING | AP80: kW
A81: SMALL COMMERCIAL AND USL - PER CONNECTION | I81: Rate Rider for Disposition of Global Adjustment Sub-Account (2012) Applicable only to Non-RPP Customers - effective until August 31, 2014 | AO81: SMALL COMMERCIAL AND USL - PER CONNECTION | AP81: kWh
A82: SMALL COMMERCIAL AND USL - PER METER | I82: Rate Rider for Disposition of Global Adjustment Sub-Account (2013) - effective until April 30, 2014 Applicable only for Non-RPP Customers | AO82: SMALL COMMERCIAL AND USL - PER METER | AP82: kWh
A83: STANDARD A GENERAL SERVICE AIR ACCESS | I83: Rate Rider for Disposition of Global Adjustment Sub-Account (2013) - effective until April 30, 2015 Applicable only for Non-RPP Customers | AO83: STANDARD A GENERAL SERVICE AIR ACCESS | AP83: kWh
A84: STANDARD A GENERAL SERVICE ROAD/RAIL | I84: Rate Rider for Disposition of Global Adjustment Sub-Account (2013) - effective until April 30, 2015 Applicable only for Non-RPP Customers and excluding Wholesale Market Participants | AO84: STANDARD A GENERAL SERVICE ROAD/RAIL | AP84: kWh
A85: STANDARD A GRID CONNECTED | I85: Rate Rider for Disposition of Global Adjustment Sub-Account (2013) - effective until April 30, 2017 Applicable only for Non-RPP Customers | AO85: STANDARD A GRID CONNECTED | AP85: kWh
A86: STANDARD A RESIDENTIAL AIR ACCESS | I86: Rate Rider For Disposition of Global Adjustment Sub-Account (2013) - effective until August 31, 2014 Applicable only for Non-RPP Customers | AO86: STANDARD A RESIDENTIAL AIR ACCESS | AP86: kWh
A87: STANDARD A RESIDENTIAL ROAD/RAIL | I87: Rate Rider for Disposition of Global Adjustment Sub-Account (2013) - effective until December 31, 2014 Applicable only for Non-RPP Customers | AO87: STANDARD A RESIDENTIAL ROAD/RAIL | AP87: kWh
A88: STANDBY - GENERAL SERVICE 1,000 - 5,000 KW | I88: Rate Rider for Disposition of Global Adjustment Sub-Account (2013) - effective until May 31, 2014 Applicable only for Non-RPP Customers | AO88: STANDBY - GENERAL SERVICE 1,000 - 5,000 KW | AP88: kW
A89: STANDBY - GENERAL SERVICE 50 - 1,000 KW | I89: Rate Rider for Disposition of Global Adjustment Sub-Account (2014) - effective until December 31, 2014. Applicable only for Non-RPP - Class B Customers | AO89: STANDBY - GENERAL SERVICE 50 - 1,000 KW | AP89: kW
A90: STANDBY - LARGE USE | I90: Rate Rider for Disposition of Global Adjustment Sub-Account (2014) - effective until December 31, 2014. Applicable only for Non-RPP Customers | AO90: STANDBY - LARGE USE | AP90: kW
A91: STANDBY DISTRIBUTION SERVICE | I91: Rate Rider for Disposition of Global Adjustment Sub-Account (2014) - effective until December 31, 2014. Applicable only for Non-RPP Customers - Class A Customers | AO91: STANDBY DISTRIBUTION SERVICE | AP91: kW
A92: STANDBY POWER | I92: Rate Rider for Disposition of Global Adjustment Sub-Account (2014) - effective until December 31, 2014. Applicable only for Non-RPP Customers - Interval Metered | AO92: STANDBY POWER | AP92: kW
A93: STANDBY POWER - APPROVED ON AN INTERIM BASIS | I93: Rate Rider for Disposition of Global Adjustment Sub-Account (2014) - effective until December 31, 2014. Applicable only for Non-RPP Customers - Non Interval Metered | AO93: STANDBY POWER - APPROVED ON AN INTERIM BASIS | AP93: kW
A94: STANDBY POWER GENERAL SERVICE 1,500 TO 4,999 KW | I94: Rate Rider for Disposition of Global Adjustment Sub-Account (2014) - effective until December 31, 2015. Applicable only for Non-RPP Customers. | AO94: STANDBY POWER GENERAL SERVICE 1,500 TO 4,999 KW | AP94: kW
A95: STANDBY POWER GENERAL SERVICE 50 TO 1,499 KW | I95: Rate Rider for Disposition of Post Retirement Actuarial Gain - effective until March 31, 2025 | AO95: STANDBY POWER GENERAL SERVICE 50 TO 1,499 KW | AP95: kW
A96: STANDBY POWER GENERAL SERVICE LARGE USE | I96: Rate Rider for Disposition of Residual Hisotrical Smart Meter Costs - effective until April 30, 2015 | AO96: STANDBY POWER GENERAL SERVICE LARGE USE | AP96: kW
A97: STREET LIGHTING | I97: Rate Rider for Disposition of Residual Hisotrical Smart Meter Costs - effective until April 30, 2017 | AO97: STREET LIGHTING | AP97: kW
A98: SUB TRANSMISSION [ST] | I98: Rate Rider for Disposition of Residual Historical Smart Meter Costs - effective until April 30, 2014 | AO98: SUB TRANSMISSION [ST] | AP98: kW
A99: UNMETERED SCATTERED LOAD | I99: Rate Rider for Disposition of Residual Historical Smart Meter Costs - effective until April 30, 2016 | AO99: UNMETERED SCATTERED LOAD | AP99: kWh
A100: URBAN GENERAL SERVICE DEMAND BILLED (50 KW AND ABOVE) [UGD] | I100: Rate Rider for Disposition of Residual Historical Smart Meter Costs - effective until August 31, 2014 | AO100: URBAN GENERAL SERVICE DEMAND BILLED (50 KW AND ABOVE) [UGD] | AP100: kW
A101: URBAN GENERAL SERVICE ENERGY BILLED (LESS THAN 50 KW) [UGE] | I101: Rate Rider for Disposition of Residual Historical Smart Meter Costs - effective until August 31, 2015 | AO101: URBAN GENERAL SERVICE ENERGY BILLED (LESS THAN 50 KW) [UGE] | AP101: kWh
A102: WESTPORT SEWAGE TREATMENT PLANT | I102: Rate Rider for Disposition of Residual Historical Smart Meter Costs - effective until December 31, 2014 | AO102: WESTPORT SEWAGE TREATMENT PLANT | AP102: kW
A103: YEAR-ROUND RESIDENTIAL - R2 | I103: Rate Rider for Disposition of Residual Historical Smart Meter Costs – effective until December 31, 2014 | AO103: YEAR-ROUND RESIDENTIAL - R2 | AP103: kWh
I104: Rate Rider for Disposition of Residual Historical Smart Meter Costs - effective until December 31, 2015
I105: Rate Rider for Disposition of Residual Historical Smart Meter Costs - effective until December 31, 2016
I106: Rate Rider for Disposition of Residual Historical Smart Meter Costs - effective until October 31, 2014
I107: Rate Rider for Disposition of Residual Historical Smart Meter Costs - effective until September 30, 2014
I108: Rate Rider for Disposition of Residual Historical Smart Meter Costs - Non-Interval Metered - effective until April 30, 2014
I109: Rate Rider for Disposition of Residual Historical Smart Meter Costs 2 - in effect until the effective date of the next cost of service-based rate order
I110: Rate Rider for Disposition of Residual Historical Smart Meter Costs 3 - in effect until the effective date of the next cost of service-based rate order
I111: Rate Rider for Disposition of Residual Incremental Historical Smart Meter Costs - effective until August 31, 2015
I112: Rate Rider for Disposition of Stranded Meter costs - effective until April 30, 2015
I113: Rate Rider for Disposition of Stranded Meter Costs - effective until April 30, 2016
I114: Rate Rider for Disposition of Stranded Meter Costs - effective until April 30, 2017
I115: Rate Rider for Global Adjustment Sub Account Disposition - effective until April 30, 2016 Applicable only for Non RPP Customers
I116: Rate Rider for Global Adjustment Sub-Account Disposition (2014) - effective until April 28, 2016 Applicable only for Non-RPP Customers
I117: Rate Rider for Global Adjustment Sub-Account Disposition (2014) - effective until April 30, 2015 Applicable only for Non-RPP Customers
I118: Rate Rider for Global Adjustment Sub-Account Disposition (2014) - effective until December 30, 2015 Applicable only for Non-RPP Customers
I119: Rate Rider for Global Adjustment Sub-Account Disposition (2014) - effective until December 31, 2014 Applicable only for Non-RPP Customers
I120: Rate Rider for Global Adjustment Sub-Account Disposition (2014) - effective until December 31, 2015 Applicable only for Non-RPP Customers
I121: Rate Rider for Global Adjustment Sub-Account Disposition Applicable only for Non-RPP Customers - effective until April 30, 2015
I122: Rate Rider for Incremental Capital - Distribution Volumetric - effective until April 30, 2016
I123: Rate Rider for Incremental Capital - Service Charge - effective until April 30, 2016
I124: Rate Rider for Incremental Capital (2012) - effective until April 30, 2015
I125: Rate Rider for Lost Revenue Adjustment Mechanism Variance Account (LRAMVA) Recovery (2012 CDM Activities) - effective until April 30, 2015
I126: Rate Rider for Recover of Residual Historical Smart meter Costs - effective until June 30, 2014
I127: Rate Rider for Recovery of CGAAP/CWIP Differential - in effect until December 31, 2016
I128: Rate Rider for Recovery of Foregone Revenue - effective until April 30, 2015
I129: Rate Rider for Recovery of Forgone Revenue - effective until April 30, 2015
I130: Rate Rider for Recovery of Forgone Revenue - effective until December 31, 2014
I131: Rate Rider for Recovery of Green Energy Act related costs - effective until December 31, 2014
I132: Rate Rider for Recovery of Incremental Capital (2013) - in effect until the effective date of the next cost of service-based rate order
I133: Rate Rider for Recovery of Incremental Capital (2013) - in effect until the effective date of the next cost of service-based rate order
I134: Rate Rider for Recovery of Incremental Capital (2013) (per connection) - in effect until the effective date of the next cost of service-based rate order
I135: Rate Rider for Recovery of Incremental Capital (2013) (per connection)- in effect until the effective date of the next cost of service-based rate order
I136: Rate Rider for Recovery of Incremental Capital Costs
I137: Rate Rider for Recovery of Incremental Capital Costs - effective until April 30, 2015
I138: Rate Rider for Recovery of Incremental Capital Module Costs (2014) - in effect until the effective date of the next cost of service-based rate order
I139: Rate Rider for Recovery of Incremental Capital Module Costs (2014) - in effect until the effective date of the next cost of service-based rate order
I140: Rate Rider for Recovery of Lost Revenue Adjustment Mechanism ( LRAM)/Shared Savings Mechanism (SSM) (2012) - effective until August 31, 2014
I141: Rate Rider for Recovery of Lost Revenue Adjustment Mechanism (2013) - effective until December 31, 2014
I142: Rate Rider for Recovery of Lost Revenue Adjustment Mechanism (LRAM) - effective until April 30, 2016
I143: Rate Rider for Recovery of Lost Revenue Adjustment Mechanism (LRAM) (pre-2011 CDM Activities) - effective until April 30, 2015
I144: Rate Rider for Recovery of Lost Revenue Adjustment Mechanism (LRAM) (pre-2011 CDM Activities) (2013) - effective until April 30, 2015
I145: Rate Rider for Recovery of Lost Revenue Adjustment Mechanism (LRAM)/Shared Savings
I146: Rate Rider for Recovery of Lost Revenue Adjustment Mechanism (LRAM)/Shared Savings Mechanism (SSM) - effective until December 31, 2018 and applicable in the service area excluding the former service areas of Clinton Power and West Perth Power
I147: Rate Rider for Recovery of Lost Revenue Adjustment Mechanism (LRAM)/Shared Savings Mechanism (SSM) - effective until December 31, 2014 and applicable in the service area excluding the former service areas of Clinton Power and West Perth Power
I148: Rate Rider for Recovery of Lost Revenue Adjustment Mechanism (LRAM)/Shared Savings Mechanism (SSM) - effective until December 31, 2014 and applicable only in the former service area of Clinton Power
I149: Rate Rider for Recovery of Lost Revenue Adjustment Mechanism (LRAM)/Shared Savings Mechanism (SSM) - effective until December 31, 2014 and applicable only in the former service area of West Perth Power
I150: Rate Rider for Recovery of Lost Revenue Adjustment Mechanism (LRAM)/Shared Savings Mechanism (SSM) - effective until December 31, 2014 and applicable in the service area excluding the former service area of Clinton Power
I151: Rate Rider for Recovery of Lost Revenue Adjustment Mechanism (LRAM)/Shared Savings Mechanism (SSM) - effective until March 31, 2016
I152: Rate Rider for Recovery of Lost Revenue Adjustment Mechanism (LRAM)/Shared Savings Mechanism (SSM) (2012) - effective until August 31, 2014
I153: Rate Rider for Recovery of Lost Revenue Adjustment Mechanism (LRAM)/Shared Savings Mechanism (SSM) Recovery - effective until April 30, 2015
I154: Rate Rider for Recovery of Lost Revenue Adjustment Mechanism Variance Account (LRAMVA) (2014) - effective until April 30, 2015
I155: Rate Rider for Recovery of Residual Historical Smart Meter Costs - effective July 1, 2012 - April 30, 2016
I156: Rate Rider for Recovery of Smart Meter Incremental Revenue Requirement - effective until the date of the next cost of service-based rate order
I157: Rate Rider for Recovery of Smart Meter Incremental Revenue Requirement - effective until the effective date of the next cost of service-based rate order, or October 31, 2017, whichever occurs earlier
I158: Rate Rider for Recovery of Smart Meter Incremental Revenue Requirement - in effect until the effective date of the next cost of service-based rate order
I159: Rate Rider for Recovery of Smart Meter Incremental Revenue Requirement - Non-Interval Metered - in effect until the effective date of the next cost of service-based rate order
I160: Rate Rider for Recovery of Smart Meter Incremental Revenue Requirements - in effect until the effective date of the next cost of service application
I161: Rate Rider for Recovery of Smart Meter Stranded Assets - effective until April 30, 2016
I162: Rate Rider for Recovery of Storm Damage Costs - effective until August 31, 2017
I163: Rate Rider for Recovery of Stranded Assets - effective until April 30, 2016
I164: Rate Rider for Recovery of Stranded Meter Assets - effective July 1, 2012 - April 30, 2016
I165: Rate Rider for Recovery of Stranded Meter Assets – effective until April 30, 2015
I166: Rate Rider for Recovery of Stranded Meter Assets - effective until April 30, 2016
I167: Rate Rider for Recovery of Stranded Meter Assets - effective until April 30, 2017
I168: Rate Rider for Recovery of Stranded Meter Assets - effective until August 31, 2015
I169: Rate Rider for Recovery of Stranded Meter Assets - effective until August 31, 2017
I170: Rate Rider for Recovery of Stranded Meter Assets - effective until December 31, 2014
I171: Rate Rider for Recovery of Stranded Meter Assets - effective until December 31, 2015
I172: Rate Rider for Recovery of Stranded Meter Assets - effective until June 30, 2016
I173: Rate Rider for Recovery of Stranded Meter Assets - effective until March 31, 2016
I174: Rate Rider for Recovery of Stranded Meter Assets - effective until May 31, 2014
I175: Rate Rider for Reversal of Deferral/Variance Account Disposition (2011) - effective until April 30, 2015
I176: Rate Rider for Smart Meter Disposition - effective until April 30, 2016
I177: Rate Rider for Smart Meter Incremental Revenue Requirement - in effect until the effective date of the next cost of service-based rate order
I178: Rate Rider for Smart Metering Entity Charge - effective until October 31, 2018
I179: Rate Rider for Stranded Meter Cost Recovery - effective until April 30, 2017
I180: Rate Rider for Tax Change
I181: Rate Rider for Tax Change - effective until April 30, 2015
I182: Rate Rider for Tax Change (2014) - effective until April 30, 2015
I183: Retail Transmission Rate - Line and Transformation Connection Service Rate
I184: Retail Transmission Rate - Line and Transformation Connection Service Rate - (less than 1,000 kW)
I185: Retail Transmission Rate - Line and Transformation Connection Service Rate - Interval Metered
I186: Retail Transmission Rate - Line and Transformation Connection Service Rate - Interval Metered (1,000 to 4,999 kW)
I187: Retail Transmission Rate - Line and Transformation Connection Service Rate - Interval Metered (less than 1,000 kW)
I188: Retail Transmission Rate - Line and Transformation Connection Service Rate - Interval Metered < 1,000 kW
I189: Retail Transmission Rate - Line and Transformation Connection Service Rate FOR ALL SERVICE AREAS EXCEPT HENSALL
I190: Retail Transmission Rate - Line and Transformation Connection Service Rate - Interval Metered > 1,000 kW
I191: Retail Transmission Rate - Line Connection Service Rate
I192: Retail Transmission Rate - Network Service Rate
I193: Retail Transmission Rate - Network Service Rate - (less than 1,000 kW)
I194: Retail Transmission Rate - Network Service Rate - Interval Metered
I195: Retail Transmission Rate - Network Service Rate - Interval Metered (1,000 to 4,999 kW)
I196: Retail Transmission Rate - Network Service Rate - Interval Metered (less than 1,000 kW)
I197: Retail Transmission Rate - Network Service Rate - Interval Metered > 1,000 kW
I198: Retail Transmission Rate - Transformation Connection Service Rate
I199: Rider for Global Adjustment Sub-Account Disposition (2012) - effective until April 30, 2016 Applicable only for Non-RPP Customers
I200: Rural or Remote Electricity Rate Protection Charge (RRRP)
... 14 more rows

Sheet Sheet1 (hidden)
